date,department/service,beneficiary,amount,summary of purpose,category,transaction number,SAP vendor number
01.03.2022,ASSET MANAGEMENT,SANDERSONS BUILDING SERVICES LTD,"4,459.97",DISREPAIR,PAYMENTS FOR LEGAL SERVICES,2103391348,3000002065
01.03.2022,ASSET MANAGEMENT,GC CONSTRUCT LTD,683.09,DISREPAIR,PAYMENTS FOR LEGAL SERVICES,2103394427,3000002106
01.03.2022,EDUCATION,MARGARETS MUSIC LTD,700,LEA MUSIC SERVICE(310) - 5018566,CONSULTANTS SERVICES,5902512195,1000073116
01.03.2022,ENVIRONMENT DIRECTORATE,DAWSON RENTALS BUS & COACH LTD,"1,455.65",COMMERCIAL VEH CTRL A/C,HIRED VEHICLES,5902512322,1000042174
01.03.2022,F&CS,CAPITA BUSINESS SERVICES LTD,"56,395.13",INCOME MANAGEMENT,BANK CHARGES,6102017454,DIRECT DEBIT PAYMENT
02.03.2022,ADULT SOCIAL CARE,REDACTED PERSONAL DATA,395.2,APPOINTEESHIPS,OTHER PAYMENTS FOR CLIENTS,REDACTED,REDACTED
02.03.2022,ADULT SOCIAL CARE,THE DRIVE CARE HOMES LTD,"13,433.56",DISABILITIES LAC,EXTERNAL AGENCIES AND BODIES,2103395178,1000003889
02.03.2022,ADULT SOCIAL CARE,THE DRIVE CARE HOMES LTD,"1,760.00",DISABILITIES LAC,OTHER PAYMENTS FOR CLIENTS,2103395179,1000003889
02.03.2022,ADULT SOCIAL CARE,THE DRIVE CARE HOMES LTD,810,DISABILITIES LAC,RESIDENTIAL CARE,2103395177,1000003889
02.03.2022,ADULT SOCIAL CARE,THE DRIVE CARE HOMES LTD,"12,759.44",DISABILITIES LAC,RESIDENTIAL CARE,2103395176,1000003889
02.03.2022,ADULT SOCIAL CARE,REDACTED PERSONAL DATA,444,FAMILY LINK,PAYMENTS TO CARERS,REDACTED,REDACTED
02.03.2022,ADULT SOCIAL CARE,SWEETTREE HOME CARE SERVICES LTD,"1,162.57",LD LTS 18-64,SUPPORTED LIVING,2103394774,1000058171
02.03.2022,ADULT SOCIAL CARE,SWEETTREE HOME CARE SERVICES LTD,"1,201.68",LD LTS 18-64,SUPPORTED LIVING,2103394776,1000058171
02.03.2022,ADULT SOCIAL CARE,SWEETTREE HOME CARE SERVICES LTD,"1,269.13",LD LTS 18-64,SUPPORTED LIVING,2103394775,1000058171
02.03.2022,ADULT SOCIAL CARE,SWEETTREE HOME CARE SERVICES LTD,"1,314.70",LD LTS 18-64,SUPPORTED LIVING,2103394777,1000058171
02.03.2022,ADULT SOCIAL CARE,CARE DIRECT UK LTD,486,LD LTS 18-64,SUPPORTED LIVING,2103394784,1000066322
02.03.2022,ADULT SOCIAL CARE,KEMKARE LTD,350,LD LTS 18-64,SUPPORTED LIVING,2103395186,1000084181
02.03.2022,ADULT SOCIAL CARE,KEMKARE LTD,412.5,LD LTS 18-64,SUPPORTED LIVING,2103395183,1000084181
02.03.2022,ADULT SOCIAL CARE,KEMKARE LTD,525,LD LTS 18-64,SUPPORTED LIVING,2103395182,1000084181
02.03.2022,ADULT SOCIAL CARE,KEMKARE LTD,612.5,LD LTS 18-64,SUPPORTED LIVING,2103395181,1000084181
02.03.2022,ADULT SOCIAL CARE,KEMKARE LTD,990,LD LTS 18-64,SUPPORTED LIVING,2103395185,1000084181
02.03.2022,ADULT SOCIAL CARE,KEMKARE LTD,"1,225.00",LD LTS 18-64,SUPPORTED LIVING,2103395180,1000084181
02.03.2022,ADULT SOCIAL CARE,KEMKARE LTD,"11,700.00",LD LTS 18-64,SUPPORTED LIVING,2103395184,1000084181
02.03.2022,ADULT SOCIAL CARE,LONDON CARE LTD,295.04,MH LTS 18-64,HOMECARE - C&V,2103395189,1000003398
02.03.2022,ADULT SOCIAL CARE,ANDREW RELIABLE REMOVAL,550,MH LTS 18-64,REMOVAL EXPENSES,5902512998,1000071141
02.03.2022,ADULT SOCIAL CARE,SWEETTREE HOME CARE SERVICES LTD,493.5,MH LTS 18-64,SUPPORTED LIVING,2103394778,1000058171
02.03.2022,ADULT SOCIAL CARE,LONDON CARE LTD,322.7,PHY LTS 65+,HOMECARE - C&V,2103395195,1000003398
02.03.2022,ADULT SOCIAL CARE,LONDON CARE LTD,451.78,PHY LTS 65+,HOMECARE - C&V,2103395187,1000003398
02.03.2022,ADULT SOCIAL CARE,LONDON CARE LTD,650.01,PHY LTS 65+,HOMECARE - C&V,2103395194,1000003398
02.03.2022,ADULT SOCIAL CARE,LONDON CARE LTD,875.9,PHY LTS 65+,HOMECARE - C&V,2103395191,1000003398
02.03.2022,ADULT SOCIAL CARE,LONDON CARE LTD,"1,106.40",PHY LTS 65+,HOMECARE - C&V,2103395198,1000003398
02.03.2022,ADULT SOCIAL CARE,LONDON CARE LTD,"1,138.67",PHY LTS 65+,HOMECARE - C&V,2103395188,1000003398
02.03.2022,ADULT SOCIAL CARE,LONDON CARE LTD,"1,138.67",PHY LTS 65+,HOMECARE - C&V,2103395193,1000003398
02.03.2022,ADULT SOCIAL CARE,LONDON CARE LTD,"1,452.15",PHY LTS 65+,HOMECARE - C&V,2103395190,1000003398
02.03.2022,ADULT SOCIAL CARE,CARE DIRECT UK LTD,280,PHY LTS 65+,HOMECARE - SPOT,2103394782,1000066322
02.03.2022,ADULT SOCIAL CARE,CARE DIRECT UK LTD,314.13,PHY LTS 65+,HOMECARE - SPOT,2103394798,1000066322
02.03.2022,ADULT SOCIAL CARE,CARE DIRECT UK LTD,367.5,PHY LTS 65+,HOMECARE - SPOT,2103394799,1000066322
02.03.2022,ADULT SOCIAL CARE,CARE DIRECT UK LTD,376.95,PHY LTS 65+,HOMECARE - SPOT,2103394771,1000066322
02.03.2022,ADULT SOCIAL CARE,CARE DIRECT UK LTD,376.95,PHY LTS 65+,HOMECARE - SPOT,2103394783,1000066322
02.03.2022,ADULT SOCIAL CARE,CARE DIRECT UK LTD,502.6,PHY LTS 65+,HOMECARE - SPOT,2103394791,1000066322
02.03.2022,ADULT SOCIAL CARE,CARE DIRECT UK LTD,559.13,PHY LTS 65+,HOMECARE - SPOT,2103394779,1000066322
02.03.2022,ADULT SOCIAL CARE,CARE DIRECT UK LTD,621.25,PHY LTS 65+,HOMECARE - SPOT,2103394792,1000066322
02.03.2022,ADULT SOCIAL CARE,LONDON CARE LTD,456.39,PHY STS 65+,HOMECARE - IC,2103395197,1000003398
02.03.2022,ADULT SOCIAL CARE,LONDON CARE LTD,"1,016.66",PHY STS 65+,HOMECARE - IC,2103395196,1000003398
02.03.2022,ADULT SOCIAL CARE,CARE DIRECT UK LTD,471.19,PHY STS 65+,HOMECARE - IC,2103394790,1000066322
02.03.2022,ADULT SOCIAL CARE,LONDON CARE LTD,975.78,SEN STS 65+,HOMECARE - IC,2103395192,1000003398
02.03.2022,ADULT SOCIAL CARE,NATIONAL AUTISTIC SOCIETY CARE PACK,"2,184.65",SPECIALIST CARE,SECTION 17 PAYMENTS TO AGENCIES/CARERS,2103395172,1000020538
02.03.2022,ADULT SOCIAL CARE,KEMKARE LTD,"1,868.75",SPECIALIST CARE,SECTION 17 PAYMENTS TO AGENCIES/CARERS,2103395171,1000084181
02.03.2022,ADULT SOCIAL CARE,ACHIEVERS CARE SOLUTIONS LIMITED,400,SPECIALIST CARE,SECTION 17 PAYMENTS TO AGENCIES/CARERS,2103395169,1000086268
02.03.2022,ADULT SOCIAL CARE,ACHIEVERS CARE SOLUTIONS LIMITED,"1,240.00",SPECIALIST CARE,SECTION 17 PAYMENTS TO AGENCIES/CARERS,2103395168,1000086268
02.03.2022,ADULT SOCIAL CARE,ACHIEVERS CARE SOLUTIONS LIMITED,"1,380.00",SPECIALIST CARE,SECTION 17 PAYMENTS TO AGENCIES/CARERS,2103395167,1000086268
02.03.2022,ADULT SOCIAL CARE,ACHIEVERS CARE SOLUTIONS LIMITED,"1,440.00",SPECIALIST CARE,SECTION 17 PAYMENTS TO AGENCIES/CARERS,2103395165,1000086268
02.03.2022,ADULT SOCIAL CARE,ACHIEVERS CARE SOLUTIONS LIMITED,"1,820.00",SPECIALIST CARE,SECTION 17 PAYMENTS TO AGENCIES/CARERS,2103395166,1000086268
02.03.2022,ADULT SOCIAL CARE,DE VERE CARE PARTNERSHIP LTD,350,SPECIALIST CARE,SECTION 17 PAYMENTS TO AGENCIES/CARERS,2103395163,1000086901
02.03.2022,ASSET MANAGEMENT,SANDERSONS BUILDING SERVICES LTD,"2,992.55",DISREPAIR,PAYMENTS FOR LEGAL SERVICES,2103395209,3000002065
02.03.2022,ASSET MANAGEMENT,SANDERSONS BUILDING SERVICES LTD,"3,667.83",DISREPAIR,PAYMENTS FOR LEGAL SERVICES,2103395204,3000002065
02.03.2022,ASSET MANAGEMENT,LONDON FIRE BRIGADE,352,ENG CONTRACTS (NORTH),LIFTS,5902512776,1000083629
02.03.2022,ASSET MANAGEMENT,LONDON FIRE BRIGADE,352,ENG CONTRACTS (NORTH),LIFTS,5902512779,1000083629
02.03.2022,ASSET MANAGEMENT,LONDON FIRE BRIGADE,352,ENG CONTRACTS (NORTH),LIFTS,5902512782,1000083629
02.03.2022,ASSET MANAGEMENT,LONDON FIRE BRIGADE,352,ENG CONTRACTS (NORTH),LIFTS,5902512784,1000083629
02.03.2022,ASSET MANAGEMENT,LONDON FIRE BRIGADE,352,ENG CONTRACTS (NORTH),LIFTS,5902512786,1000083629
02.03.2022,ASSET MANAGEMENT HGF,IRON MOUNTAIN (UK) LTD,"7,974.02",REPAIR AND MAINTENANCE SERVICES,INFORMATION MANAGEMENT,5902512901,1000078591
02.03.2022,ASSET MANAGEMENT HGF,IRON MOUNTAIN (UK) LTD,"8,182.53",REPAIR AND MAINTENANCE SERVICES,INFORMATION MANAGEMENT,5902512873,1000078591
02.03.2022,ASSET MANAGEMENT HGF,IRON MOUNTAIN (UK) LTD,"8,195.79",REPAIR AND MAINTENANCE SERVICES,INFORMATION MANAGEMENT,5902512922,1000078591
02.03.2022,ASSET MANAGEMENT HGF,IRON MOUNTAIN (UK) LTD,"8,240.84",REPAIR AND MAINTENANCE SERVICES,INFORMATION MANAGEMENT,5902512905,1000078591
02.03.2022,ASSET MANAGEMENT HGF,IRON MOUNTAIN (UK) LTD,"8,400.29",REPAIR AND MAINTENANCE SERVICES,INFORMATION MANAGEMENT,5902512933,1000078591
02.03.2022,ASSET MANAGEMENT HGF,IRON MOUNTAIN (UK) LTD,"8,597.36",REPAIR AND MAINTENANCE SERVICES,INFORMATION MANAGEMENT,5902512911,1000078591
02.03.2022,ASSET MANAGEMENT HGF,IRON MOUNTAIN (UK) LTD,"8,671.13",REPAIR AND MAINTENANCE SERVICES,INFORMATION MANAGEMENT,5902512811,1000078591
02.03.2022,ASSET MANAGEMENT HGF,IRON MOUNTAIN (UK) LTD,"8,728.86",REPAIR AND MAINTENANCE SERVICES,INFORMATION MANAGEMENT,5902512813,1000078591
02.03.2022,CHIEF EXECUTIVE,HAYATSU ARCHITECTS LTD,"4,100.00",CAPITAL PS (REGEN),CONSTRUCTION FEES,5902512645,1000082843
02.03.2022,CHIEF EXECUTIVE'S OFFICE,UNITY WORKS SOCIAL ENTERPRISES,"38,627.08",CHIEF EXECUTIVE'S OFFICE,EXTERNAL AGENCIES AND BODIES,5902512735,1000083486
02.03.2022,CHILDREN AND ADULT,BLOOM PROCUREMENT SERVICES LTD,"13,775.00",CAPITAL PS (EDUCATION),CONSTRUCTION FEES  - EXTERNAL,5902513238,1000082531
02.03.2022,CHILDREN AND FAMILIES,ZENITH CARS LTD,505,AI TEAMS E-G & KFT,CLIENT TRANSPORT,5902512853,1000070570
02.03.2022,CHILDREN AND FAMILIES,KEYS PCE LTD,"13,700.00",CHILDREN�S RESID,RESIDENTIAL CARE,2103395175,1000080090
02.03.2022,CHILDREN AND FAMILIES,ZENITH CARS LTD,480,CONTACT SERVICE,CLIENT TRANSPORT,5902512840,1000070570
02.03.2022,CHILDREN AND FAMILIES,CARE O LINE,559.72,CONTACT SERVICE,OTHER PAYMENTS FOR CLIENTS,2103395138,11241743
02.03.2022,CHILDREN AND FAMILIES,CARE O LINE,888.5,CONTACT SERVICE,OTHER PAYMENTS FOR CLIENTS,2103395146,11241743
02.03.2022,CHILDREN AND FAMILIES,CARE O LINE,"1,745.00",CONTACT SERVICE,OTHER PAYMENTS FOR CLIENTS,2103395150,11241743
02.03.2022,CHILDREN AND FAMILIES,CARE O LINE,"7,315.00",CONTACT SERVICE,OTHER PAYMENTS FOR CLIENTS,2103395149,11241743
02.03.2022,CHILDREN AND FAMILIES,CONTACT PROFESSIONALS,273,CONTACT SERVICE,OTHER PAYMENTS FOR CLIENTS,2103395145,1000057263
02.03.2022,CHILDREN AND FAMILIES,CONTACT PROFESSIONALS,315,CONTACT SERVICE,OTHER PAYMENTS FOR CLIENTS,2103395154,1000057263
02.03.2022,CHILDREN AND FAMILIES,CONTACT PROFESSIONALS,695,CONTACT SERVICE,OTHER PAYMENTS FOR CLIENTS,2103395142,1000057263
02.03.2022,CHILDREN AND FAMILIES,CONTACT PROFESSIONALS,903,CONTACT SERVICE,OTHER PAYMENTS FOR CLIENTS,2103395143,1000057263
02.03.2022,CHILDREN AND FAMILIES,CHANGING GENERATIONS JM LTD,"13,191.92",FAMILY ASSESSMENTS,RESIDENTIAL CARE,2103395162,1000087810
02.03.2022,CHILDREN AND FAMILIES,REDACTED PERSONAL DATA,300,FOSTERING ALLOWANCES,ADDITIONAL PAYMENTS TO AGENCIES/CARERS,REDACTED,REDACTED
02.03.2022,CHILDREN AND FAMILIES,REDACTED PERSONAL DATA,300,FOSTERING ALLOWANCES,ADDITIONAL PAYMENTS TO AGENCIES/CARERS,REDACTED,REDACTED
02.03.2022,CHILDREN AND FAMILIES,REDACTED PERSONAL DATA,300,FOSTERING ALLOWANCES,ADDITIONAL PAYMENTS TO AGENCIES/CARERS,REDACTED,REDACTED
02.03.2022,CHILDREN AND FAMILIES,REDACTED PERSONAL DATA,300,FOSTERING ALLOWANCES,ADDITIONAL PAYMENTS TO AGENCIES/CARERS,REDACTED,REDACTED
02.03.2022,CHILDREN AND FAMILIES,REDACTED PERSONAL DATA,"1,103.56",FOSTERING ALLOWANCES,PAYMENTS TO CARERS,REDACTED,REDACTED
02.03.2022,CHILDREN AND FAMILIES,REDACTED PERSONAL DATA,800.43,FOSTERING ALLOWANCES,PAYMENTS TO CARERS,REDACTED,REDACTED
02.03.2022,CHILDREN AND FAMILIES,REDACTED PERSONAL DATA,-340.29,FOSTERING ALLOWANCES,PAYMENTS TO CARERS,REDACTED,REDACTED
02.03.2022,CHILDREN AND FAMILIES,REDACTED PERSONAL DATA,"1,252.00",FOSTERING ALLOWANCES,PAYMENTS TO CARERS,REDACTED,REDACTED
02.03.2022,CHILDREN AND FAMILIES,REDACTED PERSONAL DATA,862,FOSTERING ALLOWANCES,PAYMENTS TO CARERS,REDACTED,REDACTED
02.03.2022,CHILDREN AND FAMILIES,REDACTED PERSONAL DATA,610.28,FOSTERING ALLOWANCES,PAYMENTS TO CARERS,REDACTED,REDACTED
02.03.2022,CHILDREN AND FAMILIES,REDACTED PERSONAL DATA,653.14,FOSTERING ALLOWANCES,PAYMENTS TO CARERS,REDACTED,REDACTED
02.03.2022,CHILDREN AND FAMILIES,REDACTED PERSONAL DATA,"1,129.14",FOSTERING ALLOWANCES,PAYMENTS TO CARERS,REDACTED,REDACTED
02.03.2022,CHILDREN AND FAMILIES,REDACTED PERSONAL DATA,"1,354.57",FOSTERING ALLOWANCES,PAYMENTS TO CARERS,REDACTED,REDACTED
02.03.2022,CHILDREN AND FAMILIES,LOGICOUS LTD,"1,236.75",FRIENDS &FAMILY FOST,NURSING PLACEMENTS FEES,5902512942,1000073852
02.03.2022,CHILDREN AND FAMILIES,REDACTED PERSONAL DATA,816.15,FRIENDS &FAMILY FOST,PAYMENTS TO CARERS,REDACTED,REDACTED
02.03.2022,CHILDREN AND FAMILIES,ZENITH CARS LTD,300,P & R CARE TEAM,CLIENT TRANSPORT,5902512851,1000070570
02.03.2022,CHILDREN AND FAMILIES,ZENITH CARS LTD,480,P & R CARE TEAM,CLIENT TRANSPORT,5902512850,1000070570
02.03.2022,CHILDREN AND FAMILIES,ZENITH CARS LTD,500,P & R CARE TEAM,CLIENT TRANSPORT,5902512837,1000070570
02.03.2022,CHILDREN AND FAMILIES,ZENITH CARS LTD,630,P & R CARE TEAM,CLIENT TRANSPORT,5902512852,1000070570
02.03.2022,CHILDREN AND FAMILIES,CONTACT PROFESSIONALS,287.48,SEMI-IND CARELEAVERS,EXTERNAL AGENCIES AND BODIES,2103395125,1000057263
02.03.2022,CHILDREN AND FAMILIES,HARVEST CARE GROUP LTD,"1,870.12",SEMI-IND CARELEAVERS,EXTERNAL AGENCIES AND BODIES,2103395135,1000079059
02.03.2022,CHILDREN AND FAMILIES,HARVEST CARE GROUP LTD,"1,929.99",SEMI-IND CARELEAVERS,EXTERNAL AGENCIES AND BODIES,2103395137,1000079059
02.03.2022,CHILDREN AND FAMILIES,HARVEST CARE GROUP LTD,"2,070.49",SEMI-IND CARELEAVERS,EXTERNAL AGENCIES AND BODIES,2103395132,1000079059
02.03.2022,CHILDREN AND FAMILIES,HARVEST CARE GROUP LTD,"2,136.78",SEMI-IND CARELEAVERS,EXTERNAL AGENCIES AND BODIES,2103395131,1000079059
02.03.2022,CHILDREN AND FAMILIES,HARVEST CARE GROUP LTD,"2,199.99",SEMI-IND CARELEAVERS,EXTERNAL AGENCIES AND BODIES,2103395128,1000079059
02.03.2022,CHILDREN AND FAMILIES,HARVEST CARE GROUP LTD,"2,435.67",SEMI-IND CARELEAVERS,EXTERNAL AGENCIES AND BODIES,2103395129,1000079059
02.03.2022,CHILDREN AND FAMILIES,HARVEST CARE GROUP LTD,"4,099.76",SEMI-IND CARELEAVERS,EXTERNAL AGENCIES AND BODIES,2103395136,1000079059
02.03.2022,CHILDREN AND FAMILIES,HARVEST CARE GROUP LTD,"4,299.96",SEMI-IND CARELEAVERS,EXTERNAL AGENCIES AND BODIES,2103395126,1000079059
02.03.2022,CHILDREN AND FAMILIES,HARVEST CARE GROUP LTD,"4,539.02",SEMI-IND CARELEAVERS,EXTERNAL AGENCIES AND BODIES,2103395127,1000079059
02.03.2022,CHILDREN AND FAMILIES,HARVEST CARE GROUP LTD,"4,760.67",SEMI-IND CARELEAVERS,EXTERNAL AGENCIES AND BODIES,2103395130,1000079059
02.03.2022,CHILDREN AND FAMILIES,CARE O LINE,"12,765.00",SEMI-IND LAC 16-17,EXTERNAL AGENCIES AND BODIES,2103395124,11241743
02.03.2022,CHILDREN AND FAMILIES,HARVEST CARE GROUP LTD,"4,749.97",SEMI-IND LAC 16-17,EXTERNAL AGENCIES AND BODIES,2103395123,1000079059
02.03.2022,CHILDREN AND FAMILIES,HARVEST CARE GROUP LTD,"5,258.90",SEMI-IND LAC 16-17,EXTERNAL AGENCIES AND BODIES,2103395113,1000079059
02.03.2022,CHILDREN AND FAMILIES,HIGHER LEVEL CARE LTD,"1,800.02",SEMI-IND LAC 16-17,EXTERNAL AGENCIES AND BODIES,2103395096,1000087055
02.03.2022,CHILDREN AND FAMILIES,HIGHER LEVEL CARE LTD,"1,942.83",SEMI-IND LAC 16-17,EXTERNAL AGENCIES AND BODIES,2103395108,1000087055
02.03.2022,CHILDREN AND FAMILIES,HIGHER LEVEL CARE LTD,"3,000.04",SEMI-IND LAC 16-17,EXTERNAL AGENCIES AND BODIES,2103395100,1000087055
02.03.2022,CHILDREN AND FAMILIES,HIGHER LEVEL CARE LTD,"3,000.05",SEMI-IND LAC 16-17,EXTERNAL AGENCIES AND BODIES,2103395098,1000087055
02.03.2022,CHILDREN AND FAMILIES,HIGHER LEVEL CARE LTD,"3,100.04",SEMI-IND LAC 16-17,EXTERNAL AGENCIES AND BODIES,2103395091,1000087055
02.03.2022,CHILDREN AND FAMILIES,HIGHER LEVEL CARE LTD,"3,100.04",SEMI-IND LAC 16-17,EXTERNAL AGENCIES AND BODIES,2103395106,1000087055
02.03.2022,CHILDREN AND FAMILIES,HIGHER LEVEL CARE LTD,"3,100.05",SEMI-IND LAC 16-17,EXTERNAL AGENCIES AND BODIES,2103395102,1000087055
02.03.2022,CHILDREN AND FAMILIES,HIGHER LEVEL CARE LTD,342.85,SEMI-IND LAC 16-17,OTHER PAYMENTS FOR CLIENTS,2103395099,1000087055
02.03.2022,CHILDREN AND FAMILIES,HIGHER LEVEL CARE LTD,342.86,SEMI-IND LAC 16-17,OTHER PAYMENTS FOR CLIENTS,2103395101,1000087055
02.03.2022,CHILDREN AND FAMILIES,HIGHER LEVEL CARE LTD,354.28,SEMI-IND LAC 16-17,OTHER PAYMENTS FOR CLIENTS,2103395103,1000087055
02.03.2022,CHILDREN AND FAMILIES,HIGHER LEVEL CARE LTD,354.29,SEMI-IND LAC 16-17,OTHER PAYMENTS FOR CLIENTS,2103395092,1000087055
02.03.2022,CHILDREN AND FAMILIES,HIGHER LEVEL CARE LTD,354.29,SEMI-IND LAC 16-17,OTHER PAYMENTS FOR CLIENTS,2103395107,1000087055
02.03.2022,CHILDREN AND FAMILIES,REDACTED PERSONAL DATA,400,SEMI-IND LAC 16-17,OTHER PAYMENTS FOR CLIENTS,REDACTED,REDACTED
02.03.2022,CHILDREN AND FAMILIES,REDACTED PERSONAL DATA,"3,229.28",SEMI-IND LAC 16-17,OTHER PAYMENTS FOR CLIENTS,REDACTED,REDACTED
02.03.2022,CHILDREN AND FAMILIES,REDACTED PERSONAL DATA,388.04,SPECIAL GUARDIANSHIP,PAYMENTS TO CARERS,REDACTED,REDACTED
02.03.2022,CHILDREN AND FAMILIES,REDACTED PERSONAL DATA,342.45,SPECIAL GUARDIANSHIP,PAYMENTS TO CARERS,REDACTED,REDACTED
02.03.2022,CHILDREN AND FAMILIES,REDACTED PERSONAL DATA,389.34,SPECIAL GUARDIANSHIP,PAYMENTS TO CARERS,REDACTED,REDACTED
02.03.2022,CHILDREN AND FAMILIES,REDACTED PERSONAL DATA,356.15,SPECIAL GUARDIANSHIP,PAYMENTS TO CARERS,REDACTED,REDACTED
02.03.2022,CHILDREN AND FAMILIES,REDACTED PERSONAL DATA,403.04,SPECIAL GUARDIANSHIP,PAYMENTS TO CARERS,REDACTED,REDACTED
02.03.2022,CHILDREN AND FAMILIES,REDACTED PERSONAL DATA,525,SPECIAL GUARDIANSHIP,PAYMENTS TO CARERS,REDACTED,REDACTED
02.03.2022,CHILDREN AND FAMILIES,REDACTED PERSONAL DATA,341.15,SPECIAL GUARDIANSHIP,PAYMENTS TO CARERS,REDACTED,REDACTED
02.03.2022,CHILDREN AND FAMILIES,REDACTED PERSONAL DATA,338,SPECIAL GUARDIANSHIP,PAYMENTS TO CARERS,REDACTED,REDACTED
02.03.2022,CHILDREN AND FAMILIES,REDACTED PERSONAL DATA,338,SPECIAL GUARDIANSHIP,PAYMENTS TO CARERS,REDACTED,REDACTED
02.03.2022,CHILDREN AND FAMILIES,REDACTED PERSONAL DATA,472.71,SPECIAL GUARDIANSHIP,PAYMENTS TO CARERS,REDACTED,REDACTED
02.03.2022,CHILDREN AND FAMILIES,REDACTED PERSONAL DATA,472.71,SPECIAL GUARDIANSHIP,PAYMENTS TO CARERS,REDACTED,REDACTED
02.03.2022,CHILDREN AND FAMILIES,ZENITH CARS LTD,880,TEAM A,CLIENT TRANSPORT,5902512847,1000070570
02.03.2022,CHILDREN AND FAMILIES,BE BRIGHT PROJECT LTD,414.55,TEAM A,OTHER PAYMENTS FOR CLIENTS,5902513023,1000086212
02.03.2022,CHILDREN AND FAMILIES,ZENITH CARS LTD,285,TEAM B,CLIENT TRANSPORT,5902512848,1000070570
02.03.2022,CHILDREN AND FAMILIES,ZENITH CARS LTD,290,TEAM B,CLIENT TRANSPORT,5902512853,1000070570
02.03.2022,CHILDREN AND FAMILIES,ZENITH CARS LTD,340,TEAM B,CLIENT TRANSPORT,5902512845,1000070570
02.03.2022,CHILDREN AND FAMILIES,ZENITH CARS LTD,920,TEAM C,CLIENT TRANSPORT,5902512853,1000070570
02.03.2022,CHILDREN AND FAMILIES,ZENITH CARS LTD,880,TEAM D,CLIENT TRANSPORT,5902512838,1000070570
02.03.2022,CHILDREN AND FAMILIES,HARVEST CARE GROUP LTD,"1,900.08",UASC CARELEAVERS,EXTERNAL AGENCIES AND BODIES,2103395134,1000079059
02.03.2022,CHILDREN AND FAMILIES,HARVEST CARE GROUP LTD,"2,103.66",UASC CARELEAVERS,EXTERNAL AGENCIES AND BODIES,2103395133,1000079059
02.03.2022,CHILDREN AND FAMILIES,HARVEST CARE GROUP LTD,"2,357.14",UASC LAC 16-17,EXTERNAL AGENCIES AND BODIES,2103395119,1000079059
02.03.2022,CHILDREN AND FAMILIES,HARVEST CARE GROUP LTD,"3,248.56",UASC LAC 16-17,EXTERNAL AGENCIES AND BODIES,2103395122,1000079059
02.03.2022,CHILDREN AND FAMILIES,HARVEST CARE GROUP LTD,"3,299.99",UASC LAC 16-17,EXTERNAL AGENCIES AND BODIES,2103395095,1000079059
02.03.2022,CHILDREN AND FAMILIES,HARVEST CARE GROUP LTD,"3,299.99",UASC LAC 16-17,EXTERNAL AGENCIES AND BODIES,2103395111,1000079059
02.03.2022,CHILDREN AND FAMILIES,HARVEST CARE GROUP LTD,"3,299.99",UASC LAC 16-17,EXTERNAL AGENCIES AND BODIES,2103395117,1000079059
02.03.2022,CHILDREN AND FAMILIES,HARVEST CARE GROUP LTD,"3,299.99",UASC LAC 16-17,EXTERNAL AGENCIES AND BODIES,2103395120,1000079059
02.03.2022,CHILDREN AND FAMILIES,HARVEST CARE GROUP LTD,"3,404.99",UASC LAC 16-17,EXTERNAL AGENCIES AND BODIES,2103395094,1000079059
02.03.2022,CHILDREN AND FAMILIES,HARVEST CARE GROUP LTD,"3,653.56",UASC LAC 16-17,EXTERNAL AGENCIES AND BODIES,2103395104,1000079059
02.03.2022,CHILDREN AND FAMILIES,HARVEST CARE GROUP LTD,"3,653.56",UASC LAC 16-17,EXTERNAL AGENCIES AND BODIES,2103395112,1000079059
02.03.2022,CHILDREN AND FAMILIES,HARVEST CARE GROUP LTD,"3,653.56",UASC LAC 16-17,EXTERNAL AGENCIES AND BODIES,2103395116,1000079059
02.03.2022,CHILDREN AND FAMILIES,HARVEST CARE GROUP LTD,"3,653.57",UASC LAC 16-17,EXTERNAL AGENCIES AND BODIES,2103395110,1000079059
02.03.2022,CHILDREN AND FAMILIES,HARVEST CARE GROUP LTD,"3,653.57",UASC LAC 16-17,EXTERNAL AGENCIES AND BODIES,2103395114,1000079059
02.03.2022,CHILDREN AND FAMILIES,HARVEST CARE GROUP LTD,"3,653.57",UASC LAC 16-17,EXTERNAL AGENCIES AND BODIES,2103395115,1000079059
02.03.2022,CHILDREN AND FAMILIES,HARVEST CARE GROUP LTD,942.85,UASC LAC 16-17,OTHER PAYMENTS FOR CLIENTS,2103395118,1000079059
02.03.2022,COMMUNITIES,SOCIAL LIFE LTD,"3,921.43",COMMUNITIES PROJECTS,PROFESSIONAL FEES,5902512801,1000084157
02.03.2022,COMMUNITIES,LONDON CARE LTD,"1,099.03",NO RECOURSE TO PUBLIC FUNDS,HOMECARE - C&V,2103394773,1000003398
02.03.2022,COMMUNITIES,CARNAVAL DEL PUEBLO ASSOCIATION,"4,000.00",NORTH WEST,GRANTS,5902512867,1000060476
02.03.2022,CORPORATE & DEMOCRATIC CORE,LOCAL INFORMATION UNIT LTD,"22,995.00",CORPORATE MANAGEMENT,SUBSCRIPTIONS,5902512733,1000021393
02.03.2022,CUSTOMER EXPERIENCE HGF,VIRGIN MEDIA,315,IT MANAGEMENT,COMMS & COMPUTING CONTRACT CHARGES,5902512760,1000026457
02.03.2022,CUSTOMER EXPERIENCE HGF,VIRGIN MEDIA,480,IT MANAGEMENT,COMMS & COMPUTING CONTRACT CHARGES,5902512751,1000026457
02.03.2022,CUSTOMER EXPERIENCE HGF,VIRGIN MEDIA,776.8,IT MANAGEMENT,COMMS & COMPUTING CONTRACT CHARGES,5902512764,1000026457
02.03.2022,CUSTOMER EXPERIENCE HGF,VIRGIN MEDIA,"1,040.00",IT MANAGEMENT,COMMS & COMPUTING CONTRACT CHARGES,5902512759,1000026457
02.03.2022,CUSTOMER EXPERIENCE HGF,VIRGIN MEDIA,"1,355.40",IT MANAGEMENT,COMMS & COMPUTING CONTRACT CHARGES,5902512762,1000026457
02.03.2022,CUSTOMER EXPERIENCE HGF,VIRGIN MEDIA,"5,660.22",IT MANAGEMENT,COMMS & COMPUTING CONTRACT CHARGES,5902512757,1000026457
02.03.2022,CUSTOMER EXPERIENCE HGF,VIRGIN MEDIA,"6,500.52",IT MANAGEMENT,COMMS & COMPUTING CONTRACT CHARGES,5902512765,1000026457
02.03.2022,CUSTOMER EXPERIENCE HGF,VIRGIN MEDIA,"9,346.62",IT MANAGEMENT,COMMS & COMPUTING CONTRACT CHARGES,5902512777,1000026457
02.03.2022,CUSTOMER EXPERIENCE HGF,VIRGIN MEDIA,"13,367.13",IT MANAGEMENT,COMMS & COMPUTING CONTRACT CHARGES,5902512770,1000026457
02.03.2022,CUSTOMER EXPERIENCE HGF,CAPITA SECURE INFORMATION,"10,438.38",IT MANAGEMENT,COMMS & COMPUTING CONTRACT CHARGES,5902512744,1000070739
02.03.2022,CUSTOMER EXPERIENCE HGF,BRITISH TELECOM PLC,"5,863.72",IT MANAGEMENT,DATA COMMUNICATIONS,5902512783,1756938
02.03.2022,CUSTOMER EXPERIENCE HGF,J2 GLOBAL CANADA,"1,254.00",IT MANAGEMENT,DATA COMMUNICATIONS,5902512758,1000070066
02.03.2022,CUSTOMER EXPERIENCE HGF,DAISY CORPORATE SERVICES TRADING LIMITED,"14,777.64",IT MANAGEMENT,DATA COMMUNICATIONS,5902512780,1000075666
02.03.2022,CUSTOMER EXPERIENCE HGF,ITEC CONNECT LTD,"1,000.00",IT MANAGEMENT,PRINTING,5902512763,1000080418
02.03.2022,CUSTOMER EXPERIENCE HGF,ITEC CONNECT LTD,"5,312.89",IT MANAGEMENT,PRINTING,5902512761,1000080418
02.03.2022,CUSTOMER EXPERIENCE HGF,CAPITA SECURE INFORMATION,"124,173.00",SAP OPERATING COSTS,COMMS & COMPUTING CONTRACT CHARGES,5902512740,1000070739
02.03.2022,CUSTOMER EXPERIENCE HGF,BLACKFOOT UK LIMITED,"12,490.00",SHARED SERVICES,CONSULTANTS SERVICES,5902512785,1000087718
02.03.2022,DSG,THE CHARTER SCHOOL EDUCATIONAL TRUST,"2,379.49",AC & FREE - MSTREAM,STATEMENTED FEES,2103390936,1000079578
02.03.2022,DSG,THE CHARTER SCHOOL EDUCATIONAL TRUST,"2,687.18",AC & FREE - MSTREAM,STATEMENTED FEES,2103390927,1000079578
02.03.2022,DSG,THE CHARTER SCHOOL EDUCATIONAL TRUST,"2,687.18",AC & FREE - MSTREAM,STATEMENTED FEES,2103390929,1000079578
02.03.2022,DSG,THE CHARTER SCHOOL EDUCATIONAL TRUST,"2,687.18",AC & FREE - MSTREAM,STATEMENTED FEES,2103390932,1000079578
02.03.2022,DSG,THE CHARTER SCHOOL EDUCATIONAL TRUST,"2,687.18",AC & FREE - MSTREAM,STATEMENTED FEES,2103390934,1000079578
02.03.2022,DSG,THE CHARTER SCHOOL EDUCATIONAL TRUST,"2,687.18",AC & FREE - MSTREAM,STATEMENTED FEES,2103390937,1000079578
02.03.2022,DSG,THE CHARTER SCHOOL EDUCATIONAL TRUST,"2,687.18",AC & FREE - MSTREAM,STATEMENTED FEES,2103390938,1000079578
02.03.2022,DSG,THE CHARTER SCHOOL EDUCATIONAL TRUST,"2,687.18",AC & FREE - MSTREAM,STATEMENTED FEES,2103390940,1000079578
02.03.2022,DSG,THE CHARTER SCHOOL EDUCATIONAL TRUST,"2,687.18",AC & FREE - MSTREAM,STATEMENTED FEES,2103390941,1000079578
02.03.2022,DSG,THE CHARTER SCHOOL EDUCATIONAL TRUST,"2,687.18",AC & FREE - MSTREAM,STATEMENTED FEES,2103390946,1000079578
02.03.2022,DSG,THE CHARTER SCHOOL EDUCATIONAL TRUST,"2,687.18",AC & FREE - MSTREAM,STATEMENTED FEES,2103390947,1000079578
02.03.2022,DSG,THE CHARTER SCHOOL EDUCATIONAL TRUST,"2,687.18",AC & FREE - MSTREAM,STATEMENTED FEES,2103390948,1000079578
02.03.2022,DSG,THE CHARTER SCHOOL EDUCATIONAL TRUST,"2,687.18",AC & FREE - MSTREAM,STATEMENTED FEES,2103390949,1000079578
02.03.2022,DSG,THE CHARTER SCHOOL EDUCATIONAL TRUST,"2,687.18",AC & FREE - MSTREAM,STATEMENTED FEES,2103390950,1000079578
02.03.2022,DSG,THE CHARTER SCHOOL EDUCATIONAL TRUST,"2,687.18",AC & FREE - MSTREAM,STATEMENTED FEES,2103390953,1000079578
02.03.2022,DSG,THE CHARTER SCHOOL EDUCATIONAL TRUST,"2,687.18",AC & FREE - MSTREAM,STATEMENTED FEES,2103390955,1000079578
02.03.2022,DSG,THE CHARTER SCHOOL EDUCATIONAL TRUST,"4,492.31",AC & FREE - MSTREAM,STATEMENTED FEES,2103390930,1000079578
02.03.2022,DSG,THE CHARTER SCHOOL EDUCATIONAL TRUST,"5,374.36",AC & FREE - MSTREAM,STATEMENTED FEES,2103390928,1000079578
02.03.2022,DSG,THE CHARTER SCHOOL EDUCATIONAL TRUST,"5,374.36",AC & FREE - MSTREAM,STATEMENTED FEES,2103390931,1000079578
02.03.2022,DSG,THE CHARTER SCHOOL EDUCATIONAL TRUST,"5,374.36",AC & FREE - MSTREAM,STATEMENTED FEES,2103390935,1000079578
02.03.2022,DSG,THE CHARTER SCHOOL EDUCATIONAL TRUST,"5,374.36",AC & FREE - MSTREAM,STATEMENTED FEES,2103390939,1000079578
02.03.2022,DSG,THE CHARTER SCHOOL EDUCATIONAL TRUST,"5,374.36",AC & FREE - MSTREAM,STATEMENTED FEES,2103390942,1000079578
02.03.2022,DSG,THE CHARTER SCHOOL EDUCATIONAL TRUST,"5,374.36",AC & FREE - MSTREAM,STATEMENTED FEES,2103390944,1000079578
02.03.2022,DSG,THE CHARTER SCHOOL EDUCATIONAL TRUST,"5,374.36",AC & FREE - MSTREAM,STATEMENTED FEES,2103390945,1000079578
02.03.2022,DSG,THE CHARTER SCHOOL EDUCATIONAL TRUST,"5,374.36",AC & FREE - MSTREAM,STATEMENTED FEES,2103390954,1000079578
02.03.2022,DSG,THE CHARTER SCHOOL EDUCATIONAL TRUST,"5,374.36",AC & FREE - MSTREAM,STATEMENTED FEES,2103390956,1000079578
02.03.2022,DSG,THE CHARTER SCHOOL EDUCATIONAL TRUST,"5,374.36",AC & FREE - MSTREAM,STATEMENTED FEES,2103390958,1000079578
02.03.2022,DSG,THE CHARTER SCHOOL EDUCATIONAL TRUST,"8,061.54",AC & FREE - MSTREAM,STATEMENTED FEES,2103390933,1000079578
02.03.2022,DSG,THE CHARTER SCHOOL EDUCATIONAL TRUST,"8,061.54",AC & FREE - MSTREAM,STATEMENTED FEES,2103390943,1000079578
02.03.2022,DSG,THE CHARTER SCHOOL EDUCATIONAL TRUST,"8,061.54",AC & FREE - MSTREAM,STATEMENTED FEES,2103390957,1000079578
02.03.2022,DSG,THE CHARTER SCHOOL EDUCATIONAL TRUST,"8,541.87",AC & FREE - MSTREAM,STATEMENTED FEES,2103390951,1000079578
02.03.2022,DSG,THE CHARTER SCHOOL EDUCATIONAL TRUST,"8,541.87",AC & FREE - MSTREAM,STATEMENTED FEES,2103390952,1000079578
02.03.2022,DSG,THE CHARTER SCHOOL EDUCATIONAL TRUST,"14,000.00",EHCP INCLUSION FUND,HIGH NEEDS - TOP UP FUNDING,2103394392,1000079578
02.03.2022,EMPLOYEE EXPERIENCE,NATASHA THOMAS,500,WOMEN�S NETWORK,TRAINING,5902513029,1000087998
02.03.2022,ENVIRONMENT AND LEISURE,RIVERSIDE PARENTS & CARERS ASSN,"2,024.84",CAPITAL PS (LEISURE),CAPITAL GRANTS,5902512815,1000060478
02.03.2022,ENVIRONMENT AND LEISURE,BLOOM PROCUREMENT SERVICES LTD,"-10,340.24",CAPITAL PS (LEISURE),CONSTRUCTION FEES  - EXTERNAL,5902513233,1000082531
02.03.2022,ENVIRONMENT AND LEISURE,BLOOM PROCUREMENT SERVICES LTD,"-3,434.76",CAPITAL PS (LEISURE),CONSTRUCTION FEES  - EXTERNAL,5902513233,1000082531
02.03.2022,ENVIRONMENT DIRECTORATE,AUTOMOTIVE LEASING,"10,521.35",COMMERCIAL VEH CTRL A/C,HIRED VEHICLES,5902513009,11014756
02.03.2022,ENVIRONMENT DIRECTORATE,DAWSON RENTALS SWEEPERS,394.55,COMMERCIAL VEH CTRL A/C,HIRED VEHICLES,5902512816,1000068168
02.03.2022,ENVIRONMENT DIRECTORATE,AUTOMOTIVE LEASING,740,COMMERCIAL VEH CTRL A/C,PARKING CHARGES,5902512794,11014756
02.03.2022,ENVIRONMENT DIRECTORATE,SHELL UK OIL PRODUCTS LTD,298.31,COMMERCIAL VEH CTRL A/C,VEHICLE FUEL,5902512996,1000081254
02.03.2022,ENVIRONMENT DIRECTORATE,SHELL UK OIL PRODUCTS LTD,307.79,COMMERCIAL VEH CTRL A/C,VEHICLE FUEL,5902512993,1000081254
02.03.2022,ENVIRONMENT DIRECTORATE,SHELL UK OIL PRODUCTS LTD,328.33,COMMERCIAL VEH CTRL A/C,VEHICLE FUEL,5902512966,1000081254
02.03.2022,ENVIRONMENT DIRECTORATE,SHELL UK OIL PRODUCTS LTD,334.56,COMMERCIAL VEH CTRL A/C,VEHICLE FUEL,5902512947,1000081254
02.03.2022,ENVIRONMENT DIRECTORATE,SHELL UK OIL PRODUCTS LTD,747.04,COMMERCIAL VEH CTRL A/C,VEHICLE FUEL,5902513015,1000081254
02.03.2022,ENVIRONMENT DIRECTORATE,SHELL UK OIL PRODUCTS LTD,"1,116.90",COMMERCIAL VEH CTRL A/C,VEHICLE FUEL,5902512960,1000081254
02.03.2022,ENVIRONMENT DIRECTORATE,SHELL UK OIL PRODUCTS LTD,"1,224.55",COMMERCIAL VEH CTRL A/C,VEHICLE FUEL,5902513001,1000081254
02.03.2022,ENVIRONMENT DIRECTORATE,SHELL UK OIL PRODUCTS LTD,"4,179.72",COMMERCIAL VEH CTRL A/C,VEHICLE FUEL,5902513018,1000081254
02.03.2022,ENVIRONMENT DIRECTORATE,AUTOMOTIVE LEASING,945,COMMERCIAL VEH CTRL A/C,VEHICLE LICENCES,5902512781,11014756
02.03.2022,ENVIRONMENT DIRECTORATE,PIRTEK HOSES & ASSEMBLIES,582.39,COMMERCIAL VEH CTRL A/C,VEHICLE REPAIRS & MAINTENANCE,5902512827,1468925
02.03.2022,ENVIRONMENT DIRECTORATE,1ENV SOLUTIONS LTD,"1,064.25",PEST CONTROL,MATERIALS,5902512790,1000075410
02.03.2022,ENVIRONMENT DIRECTORATE,1ENV SOLUTIONS LTD,"5,040.93",PEST CONTROL,MATERIALS,5902512792,1000075410
02.03.2022,ENVIRONMENT DIRECTORATE,CROMWELL POLYTHENE LTD,"1,488.00",STREET CLEANING-GENERAL,MATERIALS,5902512812,1000021159
02.03.2022,F & C S EXCLUDING CORPORATE BUDGETS,REDACTED PERSONAL DATA,500,SESS,OTHER PAYMENTS FOR CLIENTS,REDACTED,REDACTED
02.03.2022,F & C S EXCLUDING CORPORATE BUDGETS,REDACTED PERSONAL DATA,500,SESS,OTHER PAYMENTS FOR CLIENTS,REDACTED,REDACTED
02.03.2022,F & C S EXCLUDING CORPORATE BUDGETS,REDACTED PERSONAL DATA,500,SESS,OTHER PAYMENTS FOR CLIENTS,REDACTED,REDACTED
02.03.2022,F & C S EXCLUDING CORPORATE BUDGETS,REDACTED PERSONAL DATA,500,SESS,OTHER PAYMENTS FOR CLIENTS,REDACTED,REDACTED
02.03.2022,F & C S EXCLUDING CORPORATE BUDGETS,REDACTED PERSONAL DATA,500,SESS,OTHER PAYMENTS FOR CLIENTS,REDACTED,REDACTED
02.03.2022,F & C S EXCLUDING CORPORATE BUDGETS,REDACTED PERSONAL DATA,500,SESS,OTHER PAYMENTS FOR CLIENTS,REDACTED,REDACTED
02.03.2022,F & C S EXCLUDING CORPORATE BUDGETS,REDACTED PERSONAL DATA,500,SESS,OTHER PAYMENTS FOR CLIENTS,REDACTED,REDACTED
02.03.2022,F & C S EXCLUDING CORPORATE BUDGETS,REDACTED PERSONAL DATA,500,SESS,OTHER PAYMENTS FOR CLIENTS,REDACTED,REDACTED
02.03.2022,F & C S EXCLUDING CORPORATE BUDGETS,REDACTED PERSONAL DATA,500,SESS,OTHER PAYMENTS FOR CLIENTS,REDACTED,REDACTED
02.03.2022,F & C S EXCLUDING CORPORATE BUDGETS,REDACTED PERSONAL DATA,500,SESS,OTHER PAYMENTS FOR CLIENTS,REDACTED,REDACTED
02.03.2022,F & C S EXCLUDING CORPORATE BUDGETS,REDACTED PERSONAL DATA,500,SESS,OTHER PAYMENTS FOR CLIENTS,REDACTED,REDACTED
02.03.2022,F & C S EXCLUDING CORPORATE BUDGETS,REDACTED PERSONAL DATA,500,SESS,OTHER PAYMENTS FOR CLIENTS,REDACTED,REDACTED
02.03.2022,F & C S EXCLUDING CORPORATE BUDGETS,REDACTED PERSONAL DATA,500,SESS,OTHER PAYMENTS FOR CLIENTS,REDACTED,REDACTED
02.03.2022,F & C S EXCLUDING CORPORATE BUDGETS,REDACTED PERSONAL DATA,500,SESS,OTHER PAYMENTS FOR CLIENTS,REDACTED,REDACTED
02.03.2022,F & C S EXCLUDING CORPORATE BUDGETS,REDACTED PERSONAL DATA,500,SESS,OTHER PAYMENTS FOR CLIENTS,REDACTED,REDACTED
02.03.2022,F & C S EXCLUDING CORPORATE BUDGETS,REDACTED PERSONAL DATA,500,SESS,OTHER PAYMENTS FOR CLIENTS,REDACTED,REDACTED
02.03.2022,F & C S EXCLUDING CORPORATE BUDGETS,REDACTED PERSONAL DATA,500,SESS,OTHER PAYMENTS FOR CLIENTS,REDACTED,REDACTED
02.03.2022,F & C S EXCLUDING CORPORATE BUDGETS,REDACTED PERSONAL DATA,500,SESS,OTHER PAYMENTS FOR CLIENTS,REDACTED,REDACTED
02.03.2022,F & C S EXCLUDING CORPORATE BUDGETS,REDACTED PERSONAL DATA,500,SESS,OTHER PAYMENTS FOR CLIENTS,REDACTED,REDACTED
02.03.2022,F & C S EXCLUDING CORPORATE BUDGETS,REDACTED PERSONAL DATA,500,SESS,OTHER PAYMENTS FOR CLIENTS,REDACTED,REDACTED
02.03.2022,F & C S EXCLUDING CORPORATE BUDGETS,REDACTED PERSONAL DATA,500,SESS,OTHER PAYMENTS FOR CLIENTS,REDACTED,REDACTED
02.03.2022,F & C S EXCLUDING CORPORATE BUDGETS,REDACTED PERSONAL DATA,500,SESS,OTHER PAYMENTS FOR CLIENTS,REDACTED,REDACTED
02.03.2022,F & C S EXCLUDING CORPORATE BUDGETS,REDACTED PERSONAL DATA,500,SESS,OTHER PAYMENTS FOR CLIENTS,REDACTED,REDACTED
02.03.2022,F & C S EXCLUDING CORPORATE BUDGETS,REDACTED PERSONAL DATA,500,SESS,OTHER PAYMENTS FOR CLIENTS,REDACTED,REDACTED
02.03.2022,F & C S EXCLUDING CORPORATE BUDGETS,REDACTED PERSONAL DATA,500,SESS,OTHER PAYMENTS FOR CLIENTS,REDACTED,REDACTED
02.03.2022,F & C S EXCLUDING CORPORATE BUDGETS,REDACTED PERSONAL DATA,500,SESS,OTHER PAYMENTS FOR CLIENTS,REDACTED,REDACTED
02.03.2022,F & C S EXCLUDING CORPORATE BUDGETS,REDACTED PERSONAL DATA,500,SESS,OTHER PAYMENTS FOR CLIENTS,REDACTED,REDACTED
02.03.2022,HOUSING,OCO LIMITED,"138,474.13",PAYMENTS CONTROL ACCOUNT - OCO,I-WORLD CONTRACTORS HOLDING ACCOUNT,5902512841,1006066
02.03.2022,HOUSING,SMITH & BYFORD LTD,"113,765.62",SMITH AND BYFORD,I-WORLD CONTRACTORS HOLDING ACCOUNT,5902512842,11212119
02.03.2022,HOUSING GENERAL FUND,SOUTH EAST BUILDING CONTRACTORS LTD,"8,940.17",CAPITAL PS (HOUSING GF),CAPITAL GRANTS,5902512731,1000049893
02.03.2022,HOUSING GENERAL FUND,RICOH UK LTD,380,CAPITAL PS (HOUSING GF),ICT ACQUISITION,5902512755,1000001712
02.03.2022,HOUSING GENERAL FUND,RICOH UK LTD,570,CAPITAL PS (HOUSING GF),ICT ACQUISITION,5902512745,1000001712
02.03.2022,HOUSING GENERAL FUND,RICOH UK LTD,"1,140.00",CAPITAL PS (HOUSING GF),ICT ACQUISITION,5902512750,1000001712
02.03.2022,HOUSING GENERAL FUND,COLT TECHNOLOGY SERVICES,"1,298.00",CAPITAL PS (STRAT SERV),ICT ACQUISITION,5902512749,1000009377
02.03.2022,HOUSING HRA,NIBLOCK (BUILDERS) LTD,"2,466.20",CAPITAL PS (HRA),CONSTRUCTION MAIN CONTRACT -CERTIFICATED,2103395203,3000000235
02.03.2022,HOUSING HRA,FAITHDEAN PLC,"12,469.84",CAPITAL PS (HRA),CONSTRUCTION MAIN CONTRACT -CERTIFICATED,2103394493,3000002188
02.03.2022,HOUSING HRA,SOUTH EAST BUILDING CONTRACTORS LTD,580,CAPITAL PS (HRA),UTILITIES INSTALLATION,2103394492,3000001168
02.03.2022,LEISURE DIRECTORATE,CASTLE WATER LTD,"-1,916.50",BURGESS AREA TEAM,WATER,5902512551,1000078867
02.03.2022,LEISURE DIRECTORATE,CASTLE WATER LTD,284.79,BURGESS AREA TEAM,WATER,5902512975,1000078867
02.03.2022,LEISURE DIRECTORATE,CASTLE WATER LTD,307.77,BURGESS AREA TEAM,WATER,5902512975,1000078867
02.03.2022,LEISURE DIRECTORATE,FRIENDS OF PASLEY PARK,800,CULTURAL CELEBRATIONS FUND,GRANTS,5902512793,1000074848
02.03.2022,LEISURE DIRECTORATE,CASTLE WATER LTD,"1,290.82",DULWICH AREA TEAM,WATER,5902513013,1000078867
02.03.2022,LEISURE DIRECTORATE,WESTMINSTER HOUSE YOUTH CLUB,"7,740.00",GRANTS COMMISSIONING,GRANTS,5902511582,11088645
02.03.2022,LEISURE DIRECTORATE,KENT COUNTY COUNCIL - LASER,286.24,PLAY NORTH,GAS,5902512738,1000012926
02.03.2022,LEISURE DIRECTORATE,QUADRON SERVICES LIMITED,665,SOUTHWARK AREA TEAM,GROUNDS MAINTENANCE,5902512862,1000066528
02.03.2022,LEISURE DIRECTORATE,CASTLE WATER LTD,"4,578.66",SOUTHWARK AREA TEAM,WATER,5902512976,1000078867
02.03.2022,PUBLIC HEALTH,REDACTED PERSONAL DATA,500,COVID-19 CONTROL OUTBREAK MGMNT.FUND,OTHER PAYMENTS FOR CLIENTS,REDACTED,REDACTED
02.03.2022,REGENERATION,KENT COUNTY COUNCIL - LASER,"3,461.40",CPHA  MANAGED PROPERTIES,ELECTRICITY,5902512817,1000012926
02.03.2022,REGENERATION,KENT COUNTY COUNCIL - LASER,"3,623.74",CPHA  MANAGED PROPERTIES,ELECTRICITY,5902512819,1000012926
02.03.2022,REGENERATION,KENT COUNTY COUNCIL - LASER,"3,822.07",CPHA  MANAGED PROPERTIES,ELECTRICITY,5902512822,1000012926
02.03.2022,REGENERATION,KENT COUNTY COUNCIL - LASER,"3,897.02",CPHA  MANAGED PROPERTIES,ELECTRICITY,5902512825,1000012926
02.03.2022,RESIDENT SERVICES,BRITISH GAS TRADING LTD,"6,036.68",OPERATIONS/OFFICES ACCOMMODATION,ELECTRICITY,5902512732,1000055977
02.03.2022,RESIDENT SERVICES HGF,MAIER LANG LIMITED,"29,761.80",NIGHTLY TA (NSC),EXTERNAL AGENCIES AND BODIES,5902512788,1000084930
02.03.2022,SOUTHWARK BUILDING SERVICES,LONDON TOOLS LIMITED,270,STORES/LOGISTICS,CREDITORS -GR/IR CLEARING ACCOUNT,5902512939,1000003017
02.03.2022,SOUTHWARK BUILDING SERVICES,LONDON TOOLS LIMITED,395,STORES/LOGISTICS,CREDITORS -GR/IR CLEARING ACCOUNT,5902512927,1000003017
02.03.2022,SOUTHWARK BUILDING SERVICES,LONDON TOOLS LIMITED,405,STORES/LOGISTICS,CREDITORS -GR/IR CLEARING ACCOUNT,5902512945,1000003017
02.03.2022,SOUTHWARK BUILDING SERVICES,LONDON TOOLS LIMITED,414,STORES/LOGISTICS,CREDITORS -GR/IR CLEARING ACCOUNT,5902512968,1000003017
02.03.2022,SOUTHWARK BUILDING SERVICES,LONDON TOOLS LIMITED,450,STORES/LOGISTICS,CREDITORS -GR/IR CLEARING ACCOUNT,5902512925,1000003017
02.03.2022,SOUTHWARK BUILDING SERVICES,LONDON TOOLS LIMITED,580,STORES/LOGISTICS,CREDITORS -GR/IR CLEARING ACCOUNT,5902512927,1000003017
02.03.2022,SOUTHWARK BUILDING SERVICES,LONDON TOOLS LIMITED,690,STORES/LOGISTICS,CREDITORS -GR/IR CLEARING ACCOUNT,5902512937,1000003017
02.03.2022,SOUTHWARK BUILDING SERVICES,LONDON TOOLS LIMITED,954.72,STORES/LOGISTICS,CREDITORS -GR/IR CLEARING ACCOUNT,5902512953,1000003017
02.03.2022,SOUTHWARK BUILDING SERVICES,LONDON TOOLS LIMITED,"1,812.00",STORES/LOGISTICS,CREDITORS -GR/IR CLEARING ACCOUNT,5902512973,1000003017
02.03.2022,SOUTHWARK BUILDING SERVICES,LONDON TOOLS LIMITED,"1,875.00",STORES/LOGISTICS,CREDITORS -GR/IR CLEARING ACCOUNT,5902512939,1000003017
02.03.2022,SOUTHWARK BUILDING SERVICES,LONDON TOOLS LIMITED,"2,400.00",STORES/LOGISTICS,CREDITORS -GR/IR CLEARING ACCOUNT,5902512972,1000003017
02.03.2022,SOUTHWARK BUILDING SERVICES,LONDON TOOLS LIMITED,"2,808.00",STORES/LOGISTICS,CREDITORS -GR/IR CLEARING ACCOUNT,5902512937,1000003017
02.03.2022,SOUTHWARK BUILDING SERVICES,LONDON TOOLS LIMITED,"6,250.00",STORES/LOGISTICS,CREDITORS -GR/IR CLEARING ACCOUNT,5902512965,1000003017
02.03.2022,SOUTHWARK BUILDING SERVICES,LONDON TOOLS LIMITED,"19,775.00",STORES/LOGISTICS,CREDITORS -GR/IR CLEARING ACCOUNT,5902512957,1000003017
02.03.2022,SOUTHWARK BUILDING SERVICES,LONDON TOOLS LIMITED,"30,975.00",STORES/LOGISTICS,CREDITORS -GR/IR CLEARING ACCOUNT,5902512958,1000003017
03.03.2022,ADULT SOCIAL CARE,REDACTED PERSONAL DATA,600,APPOINTEESHIPS,OTHER PAYMENTS FOR CLIENTS,REDACTED,REDACTED
03.03.2022,ADULT SOCIAL CARE,REDACTED PERSONAL DATA,"8,768.64",APPOINTEESHIPS,OTHER PAYMENTS FOR CLIENTS,REDACTED,REDACTED
03.03.2022,ADULT SOCIAL CARE,REDACTED PERSONAL DATA,"21,271.71",APPOINTEESHIPS,OTHER PAYMENTS FOR CLIENTS,REDACTED,REDACTED
03.03.2022,ADULT SOCIAL CARE,PARISHIL PATEL QC,"2,000.00",DIR OF ASC,LEGAL FEES & COURT COSTS,2103395565,1000069020
03.03.2022,ADULT SOCIAL CARE,CHAILEY HERITAGE FOUNDATION,"63,590.00",DISABILITIES LAC,RESIDENTIAL CARE,2103395522,1000045082
03.03.2022,ADULT SOCIAL CARE,REDACTED PERSONAL DATA,407.16,LD LTS 18-64,DISCRETIONARY FLEXIBLE FEES & INCOME,REDACTED,REDACTED
03.03.2022,ADULT SOCIAL CARE,REDACTED PERSONAL DATA,"1,363.50",LD LTS 18-64,PAYMENTS TO CLIENTS (DIRECT PAYMENTS),REDACTED,REDACTED
03.03.2022,ADULT SOCIAL CARE,KENT COUNTY COUNCIL - LASER,602.13,ORIENT ST � RESPITE,GAS,5902513246,1000012926
03.03.2022,ADULT SOCIAL CARE,REDACTED PERSONAL DATA,"-15,907.50",PHB- SOUTHWARK CCG,RECOVERABLE COSTS INCL. HEALTH,REDACTED,REDACTED
03.03.2022,ADULT SOCIAL CARE,REDACTED PERSONAL DATA,"19,032.11",PHB- SOUTHWARK CCG,RECOVERABLE COSTS INCL. HEALTH,REDACTED,REDACTED
03.03.2022,ADULT SOCIAL CARE,REDACTED PERSONAL DATA,"3,251.50",PHY LTS 18-64,PAYMENTS TO CLIENTS (DIRECT PAYMENTS),REDACTED,REDACTED
03.03.2022,ADULT SOCIAL CARE,MEDACS HOMECARE,791.92,PHY LTS 65+,HOMECARE - C&V,2103395270,11287415
03.03.2022,ADULT SOCIAL CARE,MEDACS HOMECARE,934.29,PHY LTS 65+,HOMECARE - C&V,2103395258,11287415
03.03.2022,ADULT SOCIAL CARE,MEDACS HOMECARE,968.51,PHY LTS 65+,HOMECARE - C&V,2103395276,11287415
03.03.2022,ADULT SOCIAL CARE,MEDACS HOMECARE,969.06,PHY LTS 65+,HOMECARE - C&V,2103395268,11287415
03.03.2022,ADULT SOCIAL CARE,MEDACS HOMECARE,969.99,PHY LTS 65+,HOMECARE - C&V,2103395272,11287415
03.03.2022,ADULT SOCIAL CARE,MEDACS HOMECARE,971.28,PHY LTS 65+,HOMECARE - C&V,2103395274,11287415
03.03.2022,ADULT SOCIAL CARE,MEDACS HOMECARE,971.29,PHY LTS 65+,HOMECARE - C&V,2103395262,11287415
03.03.2022,ADULT SOCIAL CARE,MEDACS HOMECARE,971.3,PHY LTS 65+,HOMECARE - C&V,2103395260,11287415
03.03.2022,ADULT SOCIAL CARE,MEDACS HOMECARE,971.3,PHY LTS 65+,HOMECARE - C&V,2103395266,11287415
03.03.2022,ADULT SOCIAL CARE,MEDACS HOMECARE,974.44,PHY LTS 65+,HOMECARE - C&V,2103395264,11287415
03.03.2022,ADULT SOCIAL CARE,LOOK AHEAD CARE AND SUPPORT LTD,"32,287.50",S75 SUPHSG SCH LBS LEAD,EXTERNAL AGENCIES AND BODIES,5902513117,1000047299
03.03.2022,ADULT SOCIAL CARE,LOOK AHEAD CARE AND SUPPORT LTD,"32,287.50",S75 SUPHSG SCH LBS LEAD,EXTERNAL AGENCIES AND BODIES,5902513119,1000047299
03.03.2022,ADULT SOCIAL CARE,LOOK AHEAD CARE AND SUPPORT LTD,"32,287.50",S75 SUPHSG SCH LBS LEAD,EXTERNAL AGENCIES AND BODIES,5902513120,1000047299
03.03.2022,ADULT SOCIAL CARE,LOOK AHEAD CARE AND SUPPORT LTD,"55,380.56",S75 SUPHSG SCH LBS LEAD,EXTERNAL AGENCIES AND BODIES,5902513153,1000047299
03.03.2022,ADULT SOCIAL CARE,LOOK AHEAD CARE AND SUPPORT LTD,"55,630.50",S75 SUPHSG SCH LBS LEAD,EXTERNAL AGENCIES AND BODIES,5902513145,1000047299
03.03.2022,ADULT SOCIAL CARE,LOOK AHEAD CARE AND SUPPORT LTD,"55,630.50",S75 SUPHSG SCH LBS LEAD,EXTERNAL AGENCIES AND BODIES,5902513148,1000047299
03.03.2022,ADULT SOCIAL CARE,LOOK AHEAD CARE AND SUPPORT LTD,"59,210.00",S75 SUPHSG SCH LBS LEAD,EXTERNAL AGENCIES AND BODIES,5902513062,1000047299
03.03.2022,ADULT SOCIAL CARE,LOOK AHEAD CARE AND SUPPORT LTD,"59,210.00",S75 SUPHSG SCH LBS LEAD,EXTERNAL AGENCIES AND BODIES,5902513064,1000047299
03.03.2022,ADULT SOCIAL CARE,LOOK AHEAD CARE AND SUPPORT LTD,"59,210.00",S75 SUPHSG SCH LBS LEAD,EXTERNAL AGENCIES AND BODIES,5902513066,1000047299
03.03.2022,ADULT SOCIAL CARE,LOOK AHEAD CARE AND SUPPORT LTD,"121,061.25",S75 SUPHSG SCH LBS LEAD,EXTERNAL AGENCIES AND BODIES,5902513175,1000047299
03.03.2022,ADULT SOCIAL CARE,LOOK AHEAD CARE AND SUPPORT LTD,"121,061.25",S75 SUPHSG SCH LBS LEAD,EXTERNAL AGENCIES AND BODIES,5902513180,1000047299
03.03.2022,ADULT SOCIAL CARE,LOOK AHEAD CARE AND SUPPORT LTD,"121,061.25",S75 SUPHSG SCH LBS LEAD,EXTERNAL AGENCIES AND BODIES,5902513185,1000047299
03.03.2022,ADULT SOCIAL CARE,LOOK AHEAD CARE AND SUPPORT LTD,"121,531.73",S75 SUPHSG SCH LBS LEAD,EXTERNAL AGENCIES AND BODIES,5902513163,1000047299
03.03.2022,ADULT SOCIAL CARE,LOOK AHEAD CARE AND SUPPORT LTD,"121,531.73",S75 SUPHSG SCH LBS LEAD,EXTERNAL AGENCIES AND BODIES,5902513168,1000047299
03.03.2022,ADULT SOCIAL CARE,LOOK AHEAD CARE AND SUPPORT LTD,"121,531.73",S75 SUPHSG SCH LBS LEAD,EXTERNAL AGENCIES AND BODIES,5902513171,1000047299
03.03.2022,ADULT SOCIAL CARE,KIDS,472,SPECIALIST CARE,SECTION 17 PAYMENTS TO AGENCIES/CARERS,2103395523,1000030036
03.03.2022,ADULT SOCIAL CARE,CONTACT PROFESSIONALS,266,SPECIALIST CARE,SECTION 17 PAYMENTS TO AGENCIES/CARERS,2103395316,1000057263
03.03.2022,ADULT SOCIAL CARE,CONTACT PROFESSIONALS,285,SPECIALIST CARE,SECTION 17 PAYMENTS TO AGENCIES/CARERS,2103395338,1000057263
03.03.2022,ADULT SOCIAL CARE,CONTACT PROFESSIONALS,285,SPECIALIST CARE,SECTION 17 PAYMENTS TO AGENCIES/CARERS,2103395393,1000057263
03.03.2022,ADULT SOCIAL CARE,CONTACT PROFESSIONALS,285,SPECIALIST CARE,SECTION 17 PAYMENTS TO AGENCIES/CARERS,2103395403,1000057263
03.03.2022,ADULT SOCIAL CARE,CONTACT PROFESSIONALS,323,SPECIALIST CARE,SECTION 17 PAYMENTS TO AGENCIES/CARERS,2103395336,1000057263
03.03.2022,ADULT SOCIAL CARE,CONTACT PROFESSIONALS,342,SPECIALIST CARE,SECTION 17 PAYMENTS TO AGENCIES/CARERS,2103395320,1000057263
03.03.2022,ADULT SOCIAL CARE,CONTACT PROFESSIONALS,342,SPECIALIST CARE,SECTION 17 PAYMENTS TO AGENCIES/CARERS,2103395358,1000057263
03.03.2022,ADULT SOCIAL CARE,CONTACT PROFESSIONALS,342,SPECIALIST CARE,SECTION 17 PAYMENTS TO AGENCIES/CARERS,2103395389,1000057263
03.03.2022,ADULT SOCIAL CARE,CONTACT PROFESSIONALS,342,SPECIALIST CARE,SECTION 17 PAYMENTS TO AGENCIES/CARERS,2103395404,1000057263
03.03.2022,ADULT SOCIAL CARE,CONTACT PROFESSIONALS,342,SPECIALIST CARE,SECTION 17 PAYMENTS TO AGENCIES/CARERS,2103395405,1000057263
03.03.2022,ADULT SOCIAL CARE,CONTACT PROFESSIONALS,361,SPECIALIST CARE,SECTION 17 PAYMENTS TO AGENCIES/CARERS,2103395348,1000057263
03.03.2022,ADULT SOCIAL CARE,CONTACT PROFESSIONALS,380,SPECIALIST CARE,SECTION 17 PAYMENTS TO AGENCIES/CARERS,2103395362,1000057263
03.03.2022,ADULT SOCIAL CARE,CONTACT PROFESSIONALS,380,SPECIALIST CARE,SECTION 17 PAYMENTS TO AGENCIES/CARERS,2103395399,1000057263
03.03.2022,ADULT SOCIAL CARE,CONTACT PROFESSIONALS,456,SPECIALIST CARE,SECTION 17 PAYMENTS TO AGENCIES/CARERS,2103395360,1000057263
03.03.2022,ADULT SOCIAL CARE,CONTACT PROFESSIONALS,456,SPECIALIST CARE,SECTION 17 PAYMENTS TO AGENCIES/CARERS,2103395388,1000057263
03.03.2022,ADULT SOCIAL CARE,CONTACT PROFESSIONALS,798,SPECIALIST CARE,SECTION 17 PAYMENTS TO AGENCIES/CARERS,2103395374,1000057263
03.03.2022,ASSET MANAGEMENT,BYRNE LOOBY  PARTNERS (UK) LIMITED,"4,400.00",MAJOR REPAIRS,BUILDING R&M,5902512414,1000087100
03.03.2022,ASSET MANAGEMENT HGF,ROYAL MAIL GROUP LTD,"2,188.60",160 TOOLEY ST.,POSTAGES,5902512390,1000061535
03.03.2022,CENTRAL FUNCTIONS,C&C BUILDERS LTD,"49,527.18",AYLESBURY,BUILDING R&M,2103395210,3000001986
03.03.2022,CHIEF EXECUTIVE,CURRIE & BROWN UK LTD,"9,095.00",CAPITAL PS (REGEN),CONSTRUCTION,5902512249,1000033455
03.03.2022,CHIEF EXECUTIVE'S OFFICE,STEP AHEAD SOCIAL ENTERPRISE CIC,"33,875.83",CHIEF EXECUTIVE'S OFFICE,EXTERNAL AGENCIES AND BODIES,5902512383,1000076420
03.03.2022,CHILDREN AND ADULT,E.NOVATION UK LTD,"9,035.00",CAPITAL PS (SOC SERV),CONSTRUCTION FEES  - EXTERNAL,5902513123,1000087743
03.03.2022,CHILDREN AND FAMILIES,ITL NORTH EAST LTD,"6,597.52",CENTRAL SUPPORT,INTERPRETING SERVICES,5902513099,1000082415
03.03.2022,CHILDREN AND FAMILIES,OWNLIFE RESIDENTIAL LTD,"23,600.00",CHILDREN�S RESID,RESIDENTIAL CARE,2103395521,1000085398
03.03.2022,CHILDREN AND FAMILIES,CONTACT PROFESSIONALS,273,CONTACT SERVICE,OTHER PAYMENTS FOR CLIENTS,2103395525,1000057263
03.03.2022,CHILDREN AND FAMILIES,CONTACT PROFESSIONALS,695,CONTACT SERVICE,OTHER PAYMENTS FOR CLIENTS,2103395524,1000057263
03.03.2022,CHILDREN AND FAMILIES,CONTACT PROFESSIONALS,873,CONTACT SERVICE,OTHER PAYMENTS FOR CLIENTS,2103395526,1000057263
03.03.2022,CHILDREN AND FAMILIES,NEGOTIATORS FAMILY CENTRE LIMITED,305,CONTACT SERVICE,OTHER PAYMENTS FOR CLIENTS,5902512371,1000075672
03.03.2022,CHILDREN AND FAMILIES,NEGOTIATORS FAMILY CENTRE LIMITED,400,CONTACT SERVICE,OTHER PAYMENTS FOR CLIENTS,5902512373,1000075672
03.03.2022,CHILDREN AND FAMILIES,JAMMA UMOJA (RESIDENTIAL SERVICES),990,FAMILY ASSESSMENTS,RESIDENTIAL CARE,2103395250,1000080325
03.03.2022,CHILDREN AND FAMILIES,REDACTED PERSONAL DATA,"-1,332.18",FOSTERING ALLOWANCES,PAYMENTS TO CARERS,REDACTED,REDACTED
03.03.2022,CHILDREN AND FAMILIES,REDACTED PERSONAL DATA,"2,867.90",FOSTERING ALLOWANCES,PAYMENTS TO CARERS,REDACTED,REDACTED
03.03.2022,CHILDREN AND FAMILIES,REDACTED PERSONAL DATA,"-2,760.17",FOSTERING ALLOWANCES,PAYMENTS TO CARERS,REDACTED,REDACTED
03.03.2022,CHILDREN AND FAMILIES,REDACTED PERSONAL DATA,"-2,485.52",FOSTERING ALLOWANCES,PAYMENTS TO CARERS,REDACTED,REDACTED
03.03.2022,CHILDREN AND FAMILIES,REDACTED PERSONAL DATA,"5,245.69",FOSTERING ALLOWANCES,PAYMENTS TO CARERS,REDACTED,REDACTED
03.03.2022,CHILDREN AND FAMILIES,REDACTED PERSONAL DATA,"-1,419.97",FOSTERING ALLOWANCES,PAYMENTS TO CARERS,REDACTED,REDACTED
03.03.2022,CHILDREN AND FAMILIES,REDACTED PERSONAL DATA,"-1,245.55",FOSTERING ALLOWANCES,PAYMENTS TO CARERS,REDACTED,REDACTED
03.03.2022,CHILDREN AND FAMILIES,REDACTED PERSONAL DATA,"2,665.52",FOSTERING ALLOWANCES,PAYMENTS TO CARERS,REDACTED,REDACTED
03.03.2022,CHILDREN AND FAMILIES,KASPER FOSTERING,652.15,FRIENDS & FAMILY FOSTERING,EXTERNAL AGENCIES AND BODIES,2103395298,1000036628
03.03.2022,CHILDREN AND FAMILIES,KASPER FOSTERING,"3,173.24",FRIENDS & FAMILY FOSTERING,EXTERNAL AGENCIES AND BODIES,2103395296,1000036628
03.03.2022,CHILDREN AND FAMILIES,KASPER FOSTERING,"4,191.32",FRIENDS & FAMILY FOSTERING,EXTERNAL AGENCIES AND BODIES,2103395288,1000036628
03.03.2022,CHILDREN AND FAMILIES,SUNBEAM FOSTERING AGENCY LTD,"3,100.00",FRIENDS & FAMILY FOSTERING,EXTERNAL AGENCIES AND BODIES,2103395300,1000041457
03.03.2022,CHILDREN AND FAMILIES,SUNBEAM FOSTERING AGENCY LTD,"5,100.00",FRIENDS & FAMILY FOSTERING,EXTERNAL AGENCIES AND BODIES,2103395302,1000041457
03.03.2022,CHILDREN AND FAMILIES,NEXUS FOSTERING,"3,150.00",FRIENDS & FAMILY FOSTERING,EXTERNAL AGENCIES AND BODIES,2103395520,1000069682
03.03.2022,CHILDREN AND FAMILIES,FAMILY FOSTERING LTD,"3,996.44",FRIENDS & FAMILY FOSTERING,EXTERNAL AGENCIES AND BODIES,2103395456,1000075179
03.03.2022,CHILDREN AND FAMILIES,RAINBOW FOSTERING SERVICES LTD,"1,000.00",FRIENDS & FAMILY FOSTERING,EXTERNAL AGENCIES AND BODIES,2103395294,1000076620
03.03.2022,CHILDREN AND FAMILIES,FOSTERING LONDON LTD,"4,599.84",FRIENDS & FAMILY FOSTERING,EXTERNAL AGENCIES AND BODIES,2103395290,1000077541
03.03.2022,CHILDREN AND FAMILIES,FOSTERING LONDON LTD,"7,908.00",FRIENDS & FAMILY FOSTERING,EXTERNAL AGENCIES AND BODIES,2103395292,1000077541
03.03.2022,CHILDREN AND FAMILIES,PARENT AND CHILD FOSTERING ASSESSMENTS,"7,784.00",FRIENDS & FAMILY FOSTERING,EXTERNAL AGENCIES AND BODIES,2103395286,1000078962
03.03.2022,CHILDREN AND FAMILIES,PARENT AND CHILD FOSTERING ASSESSMENTS,"8,618.00",FRIENDS & FAMILY FOSTERING,EXTERNAL AGENCIES AND BODIES,2103395304,1000078962
03.03.2022,CHILDREN AND FAMILIES,REDACTED PERSONAL DATA,300,P & R CARE TEAM,OTHER PAYMENTS FOR CLIENTS,REDACTED,REDACTED
03.03.2022,CHILDREN AND FAMILIES,YOUNG FUTURES,"-1,107.68",SEMI-IND CARELEAVERS,COSTS RECOVERED,2103395535,1000059563
03.03.2022,CHILDREN AND FAMILIES,PURPLE PEBBLES(CHILD CARE) SERVICES,"-1,100.00",SEMI-IND CARELEAVERS,COSTS RECOVERED,2103395538,1000070705
03.03.2022,CHILDREN AND FAMILIES,PURPLE PEBBLES(CHILD CARE) SERVICES,-866.67,SEMI-IND CARELEAVERS,COSTS RECOVERED,2103395533,1000070705
03.03.2022,CHILDREN AND FAMILIES,PURPLE PEBBLES(CHILD CARE) SERVICES,-723.3,SEMI-IND CARELEAVERS,COSTS RECOVERED,2103395534,1000070705
03.03.2022,CHILDREN AND FAMILIES,ELLIOT LEIGH TLC LTD,-899.99,SEMI-IND CARELEAVERS,COSTS RECOVERED,2103395532,1000079022
03.03.2022,CHILDREN AND FAMILIES,ELLIOT LEIGH TLC LTD,-491.47,SEMI-IND CARELEAVERS,COSTS RECOVERED,2103395537,1000079022
03.03.2022,CHILDREN AND FAMILIES,OASIS AQUILA HOUSING,"-1,873.51",SEMI-IND CARELEAVERS,EXTERNAL AGENCIES AND BODIES,2103388622,1000002184
03.03.2022,CHILDREN AND FAMILIES,OASIS AQUILA HOUSING,"1,116.92",SEMI-IND CARELEAVERS,EXTERNAL AGENCIES AND BODIES,2103395424,1000002184
03.03.2022,CHILDREN AND FAMILIES,OASIS AQUILA HOUSING,"1,442.72",SEMI-IND CARELEAVERS,EXTERNAL AGENCIES AND BODIES,2103395421,1000002184
03.03.2022,CHILDREN AND FAMILIES,CONTACT PROFESSIONALS,253,SEMI-IND CARELEAVERS,EXTERNAL AGENCIES AND BODIES,2103395452,1000057263
03.03.2022,CHILDREN AND FAMILIES,YOUNG FUTURES,"2,520.00",SEMI-IND CARELEAVERS,EXTERNAL AGENCIES AND BODIES,2103395447,1000059563
03.03.2022,CHILDREN AND FAMILIES,PURPLE PEBBLES(CHILD CARE) SERVICES,364.29,SEMI-IND CARELEAVERS,EXTERNAL AGENCIES AND BODIES,2103395466,1000070705
03.03.2022,CHILDREN AND FAMILIES,PURPLE PEBBLES(CHILD CARE) SERVICES,"1,540.00",SEMI-IND CARELEAVERS,EXTERNAL AGENCIES AND BODIES,2103395411,1000070705
03.03.2022,CHILDREN AND FAMILIES,PURPLE PEBBLES(CHILD CARE) SERVICES,"1,700.00",SEMI-IND CARELEAVERS,EXTERNAL AGENCIES AND BODIES,2103395464,1000070705
03.03.2022,CHILDREN AND FAMILIES,PURPLE PEBBLES(CHILD CARE) SERVICES,"1,900.00",SEMI-IND CARELEAVERS,EXTERNAL AGENCIES AND BODIES,2103395462,1000070705
03.03.2022,CHILDREN AND FAMILIES,PURPLE PEBBLES(CHILD CARE) SERVICES,"2,240.00",SEMI-IND CARELEAVERS,EXTERNAL AGENCIES AND BODIES,2103395451,1000070705
03.03.2022,CHILDREN AND FAMILIES,PURPLE PEBBLES(CHILD CARE) SERVICES,"5,000.03",SEMI-IND CARELEAVERS,EXTERNAL AGENCIES AND BODIES,2103395459,1000070705
03.03.2022,CHILDREN AND FAMILIES,ELLIOT LEIGH TLC LTD,"1,795.92",SEMI-IND CARELEAVERS,EXTERNAL AGENCIES AND BODIES,2103395414,1000079022
03.03.2022,CHILDREN AND FAMILIES,ELLIOT LEIGH TLC LTD,"1,820.00",SEMI-IND CARELEAVERS,EXTERNAL AGENCIES AND BODIES,2103395418,1000079022
03.03.2022,CHILDREN AND FAMILIES,ELLIOT LEIGH TLC LTD,"2,259.88",SEMI-IND CARELEAVERS,EXTERNAL AGENCIES AND BODIES,2103395442,1000079022
03.03.2022,CHILDREN AND FAMILIES,ELLIOT LEIGH TLC LTD,"2,621.08",SEMI-IND CARELEAVERS,EXTERNAL AGENCIES AND BODIES,2103395416,1000079022
03.03.2022,CHILDREN AND FAMILIES,ELLIOT LEIGH TLC LTD,"3,041.64",SEMI-IND CARELEAVERS,EXTERNAL AGENCIES AND BODIES,2103395445,1000079022
03.03.2022,CHILDREN AND FAMILIES,SYDNEY CARE LTD,"4,800.00",SEMI-IND CARELEAVERS,EXTERNAL AGENCIES AND BODIES,2103395441,1000081598
03.03.2022,CHILDREN AND FAMILIES,PURPLE PEBBLES(CHILD CARE) SERVICES,"6,400.00",SEMI-IND LAC 16-17,EXTERNAL AGENCIES AND BODIES,2103395490,1000070705
03.03.2022,CHILDREN AND FAMILIES,SYDNEY CARE LTD,"6,876.00",SEMI-IND LAC 16-17,EXTERNAL AGENCIES AND BODIES,2103395472,1000081598
03.03.2022,CHILDREN AND FAMILIES,DREAMFO HOUSING LTD,"5,229.80",SEMI-IND LAC 16-17,EXTERNAL AGENCIES AND BODIES,2103395479,1000087273
03.03.2022,CHILDREN AND FAMILIES,PURPLE PEBBLES(CHILD CARE) SERVICES,450,SEMI-IND LAC 16-17,OTHER PAYMENTS FOR CLIENTS,2103395491,1000070705
03.03.2022,CHILDREN AND FAMILIES,PARSONS MARSHALL PSYCHOLOGY LTD,509.49,SFS MGMT & SUPPORT,LEGAL FEES & COURT COSTS,2103395566,1000076158
03.03.2022,CHILDREN AND FAMILIES,ALPHA BIOLABORATORIES LEGAL LTD,377.25,SFS MGMT & SUPPORT,LEGAL FEES & COURT COSTS,2103395546,1000086208
03.03.2022,CHILDREN AND FAMILIES,TABITHA BARRAN,750,SFS MGMT & SUPPORT,LEGAL FEES & COURT COSTS,2103395581,1000053940
03.03.2022,CHILDREN AND FAMILIES,SARAH HUNWICK,270,SFS MGMT & SUPPORT,LEGAL FEES & COURT COSTS,2103395574,1000073789
03.03.2022,CHILDREN AND FAMILIES,JOHN SCHMITT,575,SFS MGMT & SUPPORT,LEGAL FEES & COURT COSTS,2103395557,1000074146
03.03.2022,CHILDREN AND FAMILIES,ALEX LINE,"1,000.00",SFS MGMT & SUPPORT,LEGAL FEES & COURT COSTS,2103395545,1000080295
03.03.2022,CHILDREN AND FAMILIES,POLLY ALLISON,475,SFS MGMT & SUPPORT,LEGAL FEES & COURT COSTS,2103395570,1000084697
03.03.2022,CHILDREN AND FAMILIES,POLLY ALLISON,700,SFS MGMT & SUPPORT,LEGAL FEES & COURT COSTS,2103395569,1000084697
03.03.2022,CHILDREN AND FAMILIES,REDACTED PERSONAL DATA,654.57,SPECIAL GUARDIANSHIP,PAYMENTS TO CARERS,REDACTED,REDACTED
03.03.2022,CHILDREN AND FAMILIES,NEXUS FOSTERING,"1,195.88",STAYPUT- FOST CARERS,EXTERNAL AGENCIES AND BODIES,2103395460,1000069682
03.03.2022,CHILDREN AND FAMILIES,REDACTED PERSONAL DATA,"-1,535.72",STAYPUT- FOST CARERS,PAYMENTS TO CARERS,REDACTED,REDACTED
03.03.2022,CHILDREN AND FAMILIES,1ST PLACE CHILDREN & PARENTS CENTRE,549.12,TEAM C,OTHER PAYMENTS FOR CLIENTS,2103395254,1000049952
03.03.2022,CHILDREN AND FAMILIES,PURPLE PEBBLES(CHILD CARE) SERVICES,"-1,150.01",UASC CARELEAVERS,COSTS RECOVERED,2103395536,1000070705
03.03.2022,CHILDREN AND FAMILIES,PURPLE PEBBLES(CHILD CARE) SERVICES,-875,UASC CARELEAVERS,COSTS RECOVERED,2103395530,1000070705
03.03.2022,CHILDREN AND FAMILIES,PURPLE PEBBLES(CHILD CARE) SERVICES,-875,UASC CARELEAVERS,COSTS RECOVERED,2103395531,1000070705
03.03.2022,CHILDREN AND FAMILIES,OASIS AQUILA HOUSING,"-1,795.36",UASC CARELEAVERS,EXTERNAL AGENCIES AND BODIES,2103388621,1000002184
03.03.2022,CHILDREN AND FAMILIES,OASIS AQUILA HOUSING,-999.34,UASC CARELEAVERS,EXTERNAL AGENCIES AND BODIES,2103388620,1000002184
03.03.2022,CHILDREN AND FAMILIES,OASIS AQUILA HOUSING,"1,032.64",UASC CARELEAVERS,EXTERNAL AGENCIES AND BODIES,2103395423,1000002184
03.03.2022,CHILDREN AND FAMILIES,OASIS AQUILA HOUSING,"1,041.84",UASC CARELEAVERS,EXTERNAL AGENCIES AND BODIES,2103395422,1000002184
03.03.2022,CHILDREN AND FAMILIES,YOUNG FUTURES,"2,520.00",UASC CARELEAVERS,EXTERNAL AGENCIES AND BODIES,2103395446,1000059563
03.03.2022,CHILDREN AND FAMILIES,FUTURE FOUNDATIONS LTD,312.47,UASC CARELEAVERS,EXTERNAL AGENCIES AND BODIES,2103395428,1000063272
03.03.2022,CHILDREN AND FAMILIES,FUTURE FOUNDATIONS LTD,472.67,UASC CARELEAVERS,EXTERNAL AGENCIES AND BODIES,2103395448,1000063272
03.03.2022,CHILDREN AND FAMILIES,PURPLE PEBBLES(CHILD CARE) SERVICES,"1,440.00",UASC CARELEAVERS,EXTERNAL AGENCIES AND BODIES,2103395430,1000070705
03.03.2022,CHILDREN AND FAMILIES,PURPLE PEBBLES(CHILD CARE) SERVICES,"1,500.00",UASC CARELEAVERS,EXTERNAL AGENCIES AND BODIES,2103395410,1000070705
03.03.2022,CHILDREN AND FAMILIES,PURPLE PEBBLES(CHILD CARE) SERVICES,"1,500.00",UASC CARELEAVERS,EXTERNAL AGENCIES AND BODIES,2103395438,1000070705
03.03.2022,CHILDREN AND FAMILIES,PURPLE PEBBLES(CHILD CARE) SERVICES,"1,500.00",UASC CARELEAVERS,EXTERNAL AGENCIES AND BODIES,2103395461,1000070705
03.03.2022,CHILDREN AND FAMILIES,PURPLE PEBBLES(CHILD CARE) SERVICES,"1,500.00",UASC CARELEAVERS,EXTERNAL AGENCIES AND BODIES,2103395465,1000070705
03.03.2022,CHILDREN AND FAMILIES,PURPLE PEBBLES(CHILD CARE) SERVICES,"1,580.00",UASC CARELEAVERS,EXTERNAL AGENCIES AND BODIES,2103395449,1000070705
03.03.2022,CHILDREN AND FAMILIES,PURPLE PEBBLES(CHILD CARE) SERVICES,"1,600.00",UASC CARELEAVERS,EXTERNAL AGENCIES AND BODIES,2103395432,1000070705
03.03.2022,CHILDREN AND FAMILIES,PURPLE PEBBLES(CHILD CARE) SERVICES,"1,640.00",UASC CARELEAVERS,EXTERNAL AGENCIES AND BODIES,2103395429,1000070705
03.03.2022,CHILDREN AND FAMILIES,PURPLE PEBBLES(CHILD CARE) SERVICES,"1,700.00",UASC CARELEAVERS,EXTERNAL AGENCIES AND BODIES,2103395434,1000070705
03.03.2022,CHILDREN AND FAMILIES,PURPLE PEBBLES(CHILD CARE) SERVICES,"1,700.00",UASC CARELEAVERS,EXTERNAL AGENCIES AND BODIES,2103395440,1000070705
03.03.2022,CHILDREN AND FAMILIES,PURPLE PEBBLES(CHILD CARE) SERVICES,"1,700.00",UASC CARELEAVERS,EXTERNAL AGENCIES AND BODIES,2103395467,1000070705
03.03.2022,CHILDREN AND FAMILIES,PURPLE PEBBLES(CHILD CARE) SERVICES,"1,720.00",UASC CARELEAVERS,EXTERNAL AGENCIES AND BODIES,2103395435,1000070705
03.03.2022,CHILDREN AND FAMILIES,PURPLE PEBBLES(CHILD CARE) SERVICES,"1,760.00",UASC CARELEAVERS,EXTERNAL AGENCIES AND BODIES,2103395419,1000070705
03.03.2022,CHILDREN AND FAMILIES,PURPLE PEBBLES(CHILD CARE) SERVICES,"1,760.00",UASC CARELEAVERS,EXTERNAL AGENCIES AND BODIES,2103395436,1000070705
03.03.2022,CHILDREN AND FAMILIES,PURPLE PEBBLES(CHILD CARE) SERVICES,"1,760.00",UASC CARELEAVERS,EXTERNAL AGENCIES AND BODIES,2103395453,1000070705
03.03.2022,CHILDREN AND FAMILIES,PURPLE PEBBLES(CHILD CARE) SERVICES,"1,760.00",UASC CARELEAVERS,EXTERNAL AGENCIES AND BODIES,2103395455,1000070705
03.03.2022,CHILDREN AND FAMILIES,PURPLE PEBBLES(CHILD CARE) SERVICES,"1,790.00",UASC CARELEAVERS,EXTERNAL AGENCIES AND BODIES,2103395450,1000070705
03.03.2022,CHILDREN AND FAMILIES,PURPLE PEBBLES(CHILD CARE) SERVICES,"1,800.00",UASC CARELEAVERS,EXTERNAL AGENCIES AND BODIES,2103395431,1000070705
03.03.2022,CHILDREN AND FAMILIES,PURPLE PEBBLES(CHILD CARE) SERVICES,"1,860.00",UASC CARELEAVERS,EXTERNAL AGENCIES AND BODIES,2103395457,1000070705
03.03.2022,CHILDREN AND FAMILIES,PURPLE PEBBLES(CHILD CARE) SERVICES,"1,890.00",UASC CARELEAVERS,EXTERNAL AGENCIES AND BODIES,2103395427,1000070705
03.03.2022,CHILDREN AND FAMILIES,PURPLE PEBBLES(CHILD CARE) SERVICES,"1,900.00",UASC CARELEAVERS,EXTERNAL AGENCIES AND BODIES,2103395439,1000070705
03.03.2022,CHILDREN AND FAMILIES,ELLIOT LEIGH TLC LTD,"1,547.84",UASC CARELEAVERS,EXTERNAL AGENCIES AND BODIES,2103395413,1000079022
03.03.2022,CHILDREN AND FAMILIES,ELLIOT LEIGH TLC LTD,"1,559.88",UASC CARELEAVERS,EXTERNAL AGENCIES AND BODIES,2103395412,1000079022
03.03.2022,CHILDREN AND FAMILIES,ELLIOT LEIGH TLC LTD,"2,191.28",UASC CARELEAVERS,EXTERNAL AGENCIES AND BODIES,2103395415,1000079022
03.03.2022,CHILDREN AND FAMILIES,OASIS AQUILA HOUSING,"1,442.72",UASC LAC 16-17,EXTERNAL AGENCIES AND BODIES,2103395475,1000002184
03.03.2022,CHILDREN AND FAMILIES,PURPLE PEBBLES(CHILD CARE) SERVICES,"1,700.00",UASC LAC 16-17,EXTERNAL AGENCIES AND BODIES,2103395487,1000070705
03.03.2022,CHILDREN AND FAMILIES,PURPLE PEBBLES(CHILD CARE) SERVICES,"1,999.99",UASC LAC 16-17,EXTERNAL AGENCIES AND BODIES,2103395476,1000070705
03.03.2022,CHILDREN AND FAMILIES,PURPLE PEBBLES(CHILD CARE) SERVICES,"3,200.00",UASC LAC 16-17,EXTERNAL AGENCIES AND BODIES,2103395470,1000070705
03.03.2022,CHILDREN AND FAMILIES,PURPLE PEBBLES(CHILD CARE) SERVICES,"3,200.00",UASC LAC 16-17,EXTERNAL AGENCIES AND BODIES,2103395471,1000070705
03.03.2022,CHILDREN AND FAMILIES,PURPLE PEBBLES(CHILD CARE) SERVICES,"3,200.00",UASC LAC 16-17,EXTERNAL AGENCIES AND BODIES,2103395478,1000070705
03.03.2022,CHILDREN AND FAMILIES,PURPLE PEBBLES(CHILD CARE) SERVICES,"3,200.00",UASC LAC 16-17,EXTERNAL AGENCIES AND BODIES,2103395481,1000070705
03.03.2022,CHILDREN AND FAMILIES,PURPLE PEBBLES(CHILD CARE) SERVICES,"3,200.00",UASC LAC 16-17,EXTERNAL AGENCIES AND BODIES,2103395489,1000070705
03.03.2022,CHILDREN AND FAMILIES,DREAMFO HOUSING LTD,"2,969.88",UASC LAC 16-17,EXTERNAL AGENCIES AND BODIES,2103395468,1000087273
03.03.2022,CHILDREN AND FAMILIES,DREAMFO HOUSING LTD,"2,969.88",UASC LAC 16-17,EXTERNAL AGENCIES AND BODIES,2103395485,1000087273
03.03.2022,CHILDREN AND FAMILIES,DREAMFO HOUSING LTD,270,UASC LAC 16-17,OTHER PAYMENTS FOR CLIENTS,2103395469,1000087273
03.03.2022,CHILDREN AND FAMILIES,DREAMFO HOUSING LTD,270,UASC LAC 16-17,OTHER PAYMENTS FOR CLIENTS,2103395486,1000087273
03.03.2022,COMMUNITIES,CHANGE GROW LIVE SERVICES LTD,"285,060.00",ADULT SM SERVICE,OTHER CONTRACTORS,5902512352,1000082721
03.03.2022,COMMUNITIES,SOUTHWARK REFUGEE COMMUNITIES FORUM,"24,750.00",AFGHAN RESETTLEMENT,GRANTS,5902512228,1000036926
03.03.2022,COMMUNITIES,RICHMOND FELLOWSHIP,"5,000.00",VIOLENCE AGAINST WOMEN & GIRLS,OTHER CONTRACTORS,5902512875,1000032807
03.03.2022,CUSTOMER EXPERIENCE HGF,HIAM ALI LTD,"6,575.70",CORONER'S,PROFESSIONAL FEES,5902513127,1000084044
03.03.2022,CUSTOMER EXPERIENCE HGF,HIAM ALI LTD,"9,653.50",CORONER'S,PROFESSIONAL FEES,5902513088,1000084044
03.03.2022,CUSTOMER EXPERIENCE HGF,HIAM ALI LTD,"12,627.70",CORONER'S,PROFESSIONAL FEES,5902513091,1000084044
03.03.2022,CUSTOMER EXPERIENCE HGF,FORENSIC PATHOLOGY SERVICES,276.9,CORONER'S,PROFESSIONAL FEES,5902513275,1000086871
03.03.2022,CUSTOMER EXPERIENCE HGF,FORENSIC PATHOLOGY SERVICES,321.45,CORONER'S,PROFESSIONAL FEES,5902513268,1000086871
03.03.2022,CUSTOMER EXPERIENCE HGF,FORENSIC PATHOLOGY SERVICES,465.8,CORONER'S,PROFESSIONAL FEES,5902513280,1000086871
03.03.2022,CUSTOMER EXPERIENCE HGF,FORENSIC PATHOLOGY SERVICES,471.9,CORONER'S,PROFESSIONAL FEES,5902513271,1000086871
03.03.2022,DSG,ST JOSEPHS RC JUNIOR  SCHOOL,"1,962.50",SUMMERHOUSE,CATERING MATERIALS & SUPPLIES,5902513288,5001000017
03.03.2022,EDUCATION,INVESTEC ASSET FINANCE PLC,334.44,THOMAS CALTON CENTRE,OP LEASE/HIRE CHARGES:PLANT/EQUIP/FURNIT,5902513239,1000046072
03.03.2022,EMPLOYEE EXPERIENCE,WORKING ON WELLBEING LTD,920,OPTIMA HEALTH,MEDICAL / HEALTH & SAFETY SERVICES,5902512376,1000077251
03.03.2022,EMPLOYEE EXPERIENCE,WORKING ON WELLBEING LTD,"1,410.00",OPTIMA HEALTH,MEDICAL / HEALTH & SAFETY SERVICES,5902512375,1000077251
03.03.2022,EMPLOYEE EXPERIENCE,WORKING ON WELLBEING LTD,"7,458.00",OPTIMA HEALTH,MEDICAL / HEALTH & SAFETY SERVICES,5902512375,1000077251
03.03.2022,ENVIRONMENT DIRECTORATE,KENT COUNTY COUNCIL - LASER,"2,726.95",BUSINESS CORE,ELECTRICITY,5902513157,1000012926
03.03.2022,ENVIRONMENT DIRECTORATE,ACCESS HIRE NATIONWIDE LTD,"1,368.00",COMMERCIAL VEH CTRL A/C,HIRED VEHICLES,5902513047,1000048527
03.03.2022,ENVIRONMENT DIRECTORATE,ACCESS HIRE NATIONWIDE LTD,"1,444.00",COMMERCIAL VEH CTRL A/C,HIRED VEHICLES,5902513041,1000048527
03.03.2022,ENVIRONMENT DIRECTORATE,ACCESS HIRE NATIONWIDE LTD,"1,444.00",COMMERCIAL VEH CTRL A/C,HIRED VEHICLES,5902513043,1000048527
03.03.2022,ENVIRONMENT DIRECTORATE,ACCESS HIRE NATIONWIDE LTD,"1,444.00",COMMERCIAL VEH CTRL A/C,HIRED VEHICLES,5902513044,1000048527
03.03.2022,ENVIRONMENT DIRECTORATE,TRAVIS PERKINS TRADING COMPANY LTD,299,ENGINEERING CRAFTS,MATERIALS,5902513154,1514319
03.03.2022,ENVIRONMENT DIRECTORATE,TRAVIS PERKINS TRADING COMPANY LTD,339.96,ENGINEERING CRAFTS,MATERIALS,5902513215,1514319
03.03.2022,ENVIRONMENT DIRECTORATE,TYCO INTEGRATED FIRE & SECURITY,"5,604.00",PARKING & CAR PARKS CCTV,PROFESSIONAL FEES,5902513296,1000077948
03.03.2022,ENVIRONMENT DIRECTORATE,TYCO INTEGRATED FIRE & SECURITY,"14,867.00",PARKING & CAR PARKS CCTV,PROFESSIONAL FEES,5902513302,1000077948
03.03.2022,ENVIRONMENT DIRECTORATE,TYCO INTEGRATED FIRE & SECURITY,"15,713.00",PARKING & CAR PARKS CCTV,PROFESSIONAL FEES,5902513290,1000077948
03.03.2022,ENVIRONMENT DIRECTORATE,LONDON TOOLS LIMITED,315,PARKS TECH UNIT (PREMISES),BUILDING R&M,5902513051,1000003017
03.03.2022,ENVIRONMENT DIRECTORATE,JARED NORMAN,500,SASBU,LEGAL FEES & COURT COSTS,2103395554,1000064080
03.03.2022,ENVIRONMENT DIRECTORATE,JARED NORMAN,500,SASBU,LEGAL FEES & COURT COSTS,2103395555,1000064080
03.03.2022,ENVIRONMENT DIRECTORATE,EMMA GODFREY,500,SASBU,LEGAL FEES & COURT COSTS,2103395553,1000068757
03.03.2022,ENVIRONMENT DIRECTORATE,CHRISTOPHER MCCARTHY,450,SASBU,LEGAL FEES & COURT COSTS,2103395550,1000086064
03.03.2022,ENVIRONMENT DIRECTORATE,PECKHAM LEVELS LTD,"11,000.00",SECTION 278 & 38,HIGHWAYS TERM CONTRACT,5902513321,1000084365
03.03.2022,ENVIRONMENT DIRECTORATE,KENT COUNTY COUNCIL - LASER,266,STREET LIGHTING REACTIVE,ELECTRICITY,5902513150,1000012926
03.03.2022,ENVIRONMENT DIRECTORATE,KENT COUNTY COUNCIL - LASER,"109,943.87",STREET LIGHTING REACTIVE,ELECTRICITY,5902513155,1000012926
03.03.2022,F & C S EXCLUDING CORPORATE BUDGETS,LISA CLARKE,450,BENEFITS,LEGAL FEES & COURT COSTS,2103395563,1000030215
03.03.2022,F & C S EXCLUDING CORPORATE BUDGETS,ROYAL MAIL GROUP LTD,842.44,ELECTORAL REGISTRATION,POSTAGES,2103395572,1000061535
03.03.2022,F & C S EXCLUDING CORPORATE BUDGETS,REDACTED PERSONAL DATA,500,SESS,OTHER PAYMENTS FOR CLIENTS,REDACTED,REDACTED
03.03.2022,F & C S EXCLUDING CORPORATE BUDGETS,REDACTED PERSONAL DATA,500,SESS,OTHER PAYMENTS FOR CLIENTS,REDACTED,REDACTED
03.03.2022,F & C S EXCLUDING CORPORATE BUDGETS,REDACTED PERSONAL DATA,500,SESS,OTHER PAYMENTS FOR CLIENTS,REDACTED,REDACTED
03.03.2022,F & C S EXCLUDING CORPORATE BUDGETS,REDACTED PERSONAL DATA,500,SESS,OTHER PAYMENTS FOR CLIENTS,REDACTED,REDACTED
03.03.2022,F & C S EXCLUDING CORPORATE BUDGETS,REDACTED PERSONAL DATA,500,SESS,OTHER PAYMENTS FOR CLIENTS,REDACTED,REDACTED
03.03.2022,F & C S EXCLUDING CORPORATE BUDGETS,REDACTED PERSONAL DATA,500,SESS,OTHER PAYMENTS FOR CLIENTS,REDACTED,REDACTED
03.03.2022,F & C S EXCLUDING CORPORATE BUDGETS,REDACTED PERSONAL DATA,500,SESS,OTHER PAYMENTS FOR CLIENTS,REDACTED,REDACTED
03.03.2022,F & C S EXCLUDING CORPORATE BUDGETS,REDACTED PERSONAL DATA,500,SESS,OTHER PAYMENTS FOR CLIENTS,REDACTED,REDACTED
03.03.2022,F & C S EXCLUDING CORPORATE BUDGETS,REDACTED PERSONAL DATA,500,SESS,OTHER PAYMENTS FOR CLIENTS,REDACTED,REDACTED
03.03.2022,F & C S EXCLUDING CORPORATE BUDGETS,REDACTED PERSONAL DATA,500,SESS,OTHER PAYMENTS FOR CLIENTS,REDACTED,REDACTED
03.03.2022,F & C S EXCLUDING CORPORATE BUDGETS,REDACTED PERSONAL DATA,500,SESS,OTHER PAYMENTS FOR CLIENTS,REDACTED,REDACTED
03.03.2022,HOUSING GENERAL FUND,STANNAH LIFT SERVICES LTD,"5,536.00",CAPITAL PS (HOUSING GF),CAPITAL GRANTS,5902513089,1063595
03.03.2022,HOUSING GENERAL FUND,COMPLETE SERVICES LONDON LTD,"16,500.00",CAPITAL PS (REGEN),CONSTRUCTION MAIN CONTRACT,2103394403,3000002160
03.03.2022,HOUSING HRA,POTTER RAPER LTD,650.16,CAPITAL PS (HRA),CONSTRUCTION FEES - EMPLOYERS AGENT,5902513209,1009369
03.03.2022,HOUSING HRA,ENGIE REGENERATION (APOLLO) LTD,962.78,CAPITAL PS (HRA),CONSTRUCTION MAIN CONTRACT -CERTIFICATED,2103394414,4000449
03.03.2022,HOUSING HRA,ENGIE REGENERATION (APOLLO) LTD,"2,909.50",CAPITAL PS (HRA),CONSTRUCTION MAIN CONTRACT -CERTIFICATED,2103394373,4000449
03.03.2022,HOUSING HRA,ENGIE REGENERATION (APOLLO) LTD,"7,987.90",CAPITAL PS (HRA),CONSTRUCTION MAIN CONTRACT -CERTIFICATED,2103394416,4000449
03.03.2022,HOUSING HRA,NIBLOCK (BUILDERS) LTD,"71,266.55",CAPITAL PS (HRA),CONSTRUCTION MAIN CONTRACT -CERTIFICATED,2103395202,3000000235
03.03.2022,HOUSING HRA,MONTAGU EVANS LLP,"1,950.00",CAPITAL PS (REGEN),CONSTRUCTION FEES  - EXTERNAL,5902513080,1000073283
03.03.2022,HOUSING HRA,MONTAGU EVANS LLP,"1,950.00",CAPITAL PS (REGEN),CONSTRUCTION FEES  - EXTERNAL,5902513080,1000073283
03.03.2022,LEISURE DIRECTORATE,CASTLE WATER LTD,292.63,BURGESS AREA TEAM,WATER,5902513132,1000078867
03.03.2022,LEISURE DIRECTORATE,CASTLE WATER LTD,506.6,BURGESS SPORTS CENTRE,WATER,5902513055,1000078867
03.03.2022,LEISURE DIRECTORATE,CASTLE WATER LTD,"1,002.62",DULWICH AREA TEAM,WATER,5902513057,1000078867
03.03.2022,LEISURE DIRECTORATE,COMPLETE ECOLOGY LIMITED,"15,000.00",SOUTHWARK AREA TEAM,GROUNDS MAINTENANCE,5902512269,1000062303
03.03.2022,LEISURE DIRECTORATE,QUADRON SERVICES LIMITED,370.92,SOUTHWARK AREA TEAM,GROUNDS MAINTENANCE,5902512591,1000066528
03.03.2022,LEISURE DIRECTORATE,QUADRON SERVICES LIMITED,416.32,SOUTHWARK AREA TEAM,GROUNDS MAINTENANCE,5902512605,1000066528
03.03.2022,LEISURE DIRECTORATE,QUADRON SERVICES LIMITED,"2,846.00",SOUTHWARK AREA TEAM,GROUNDS MAINTENANCE,5902512584,1000066528
03.03.2022,PLANNING AND TRANSPORT,RYAN THOMPSON,600,ENFORCEMENT AND MONITORING TEAM,LEGAL FEES & COURT COSTS,2103395573,1000068997
03.03.2022,PUBLIC HEALTH,REDACTED PERSONAL DATA,500,COVID-19 CONTROL OUTBREAK MGMNT.FUND,OTHER PAYMENTS FOR CLIENTS,REDACTED,REDACTED
03.03.2022,PUBLIC HEALTH,REDACTED PERSONAL DATA,500,COVID-19 CONTROL OUTBREAK MGMNT.FUND,OTHER PAYMENTS FOR CLIENTS,REDACTED,REDACTED
03.03.2022,PUBLIC HEALTH,REDACTED PERSONAL DATA,500,COVID-19 CONTROL OUTBREAK MGMNT.FUND,OTHER PAYMENTS FOR CLIENTS,REDACTED,REDACTED
03.03.2022,PUBLIC HEALTH,REDACTED PERSONAL DATA,500,COVID-19 CONTROL OUTBREAK MGMNT.FUND,OTHER PAYMENTS FOR CLIENTS,REDACTED,REDACTED
03.03.2022,PUBLIC HEALTH,REDACTED PERSONAL DATA,500,COVID-19 CONTROL OUTBREAK MGMNT.FUND,OTHER PAYMENTS FOR CLIENTS,REDACTED,REDACTED
03.03.2022,PUBLIC HEALTH,REDACTED PERSONAL DATA,500,COVID-19 CONTROL OUTBREAK MGMNT.FUND,OTHER PAYMENTS FOR CLIENTS,REDACTED,REDACTED
03.03.2022,PUBLIC HEALTH,REDACTED PERSONAL DATA,500,COVID-19 CONTROL OUTBREAK MGMNT.FUND,OTHER PAYMENTS FOR CLIENTS,REDACTED,REDACTED
03.03.2022,PUBLIC HEALTH,REDACTED PERSONAL DATA,500,COVID-19 CONTROL OUTBREAK MGMNT.FUND,OTHER PAYMENTS FOR CLIENTS,REDACTED,REDACTED
03.03.2022,REGENERATION,RICHARD MOULES,500,PROFESSIONAL SERVICES (GENERAL),LEGAL FEES & COURT COSTS,2103395571,1000068815
03.03.2022,RESIDENT SERVICES,LONDON TOOLS LIMITED,460.75,GREAT ESTATES,MATERIALS,5902513060,1000003017
03.03.2022,RESIDENT SERVICES,LISA CLARKE,"1,109.83",OPERATIONS/OFFICES ACCOMMODATION,LEGAL FEES & COURT COSTS,2103395559,1000030215
03.03.2022,RESIDENT SERVICES,CHRISTOPHER BAKER,"1,041.67",OPERATIONS/OFFICES ACCOMMODATION,LEGAL FEES & COURT COSTS,2103395549,1000043525
03.03.2022,RESIDENT SERVICES,DSI BILLING SERVICES LTD,561.59,OPERATIONS/OFFICES ACCOMMODATION,PRINTING,5902513104,1000058640
03.03.2022,RESIDENT SERVICES,DSI BILLING SERVICES LTD,"1,451.86",OPERATIONS/OFFICES ACCOMMODATION,PRINTING,5902513110,1000058640
03.03.2022,RESIDENT SERVICES,DSI BILLING SERVICES LTD,"2,052.84",OPERATIONS/OFFICES ACCOMMODATION,PRINTING,5902513112,1000058640
03.03.2022,RESIDENT SERVICES,DSI BILLING SERVICES LTD,"2,455.21",OPERATIONS/OFFICES ACCOMMODATION,PRINTING,5902513100,1000058640
03.03.2022,RESIDENT SERVICES,DSI BILLING SERVICES LTD,"2,881.17",OPERATIONS/OFFICES ACCOMMODATION,PRINTING,5902513101,1000058640
03.03.2022,RESIDENT SERVICES,LONDON TOOLS LIMITED,425,SHELTERED NORTH,MATERIALS,5902513056,1000003017
03.03.2022,RESIDENT SERVICES,LONDON TOOLS LIMITED,265,SHELTERED SOUTH,FURNITURE PURCHASE & REPAIR,5902513083,1000003017
03.03.2022,RESIDENT SERVICES,LONDON TOOLS LIMITED,430,SHELTERED SOUTH,MATERIALS,5902513052,1000003017
03.03.2022,RESIDENT SERVICES,LONDON TOOLS LIMITED,266.25,SUPPORTED HOSTELS,MATERIALS,5902513065,1000003017
03.03.2022,RESIDENT SERVICES,SOUTH OF THE RIVER INVESTMENTS LTD,"6,291.60",TA PLACEMENTS,EXTERNAL AGENCIES AND BODIES,5902513211,1000073638
03.03.2022,RESIDENT SERVICES,MX ESTATES LTD,"3,723.00",TA PLACEMENTS,EXTERNAL AGENCIES AND BODIES,5902513234,1000083639
03.03.2022,RESIDENT SERVICES HGF,DAVID GEORGE HALL,960,HOMELESS PROJECTS,LEGAL FEES & COURT COSTS,2103395551,1000059226
03.03.2022,RESIDENT SERVICES HGF,CATHERINE ROWLANDS,"1,750.00",HOMELESS PROJECTS,LEGAL FEES & COURT COSTS,2103395548,1000069104
03.03.2022,RESIDENT SERVICES HGF,TAAKSVALE HOUSING LTD,"58,405.40",NIGHTLY TA (NSC),EXTERNAL AGENCIES AND BODIES,5902513314,1000073665
03.03.2022,RESIDENT SERVICES HGF,M ESTATES LONDON LTD,"2,202.04",RAPID REHOUSING,EXTERNAL AGENCIES AND BODIES,5902512640,1000083459
03.03.2022,SBS OPERATIONS,TRAVIS PERKINS TRADING COMPANY LTD,"1,337.17",BOROUGH & BANKSIDE VOIDS,MATERIALS,5902513189,1514319
03.03.2022,SBS OPERATIONS,TRAVIS PERKINS TRADING COMPANY LTD,510.49,ELECTRICIANS - DAY TO DAY,MATERIALS,5902513146,1514319
03.03.2022,SBS OPERATIONS,LONDON TOOLS LIMITED,"1,057.50",ELECTRICIANS - DAY TO DAY,MATERIALS,5902513048,1000003017
03.03.2022,SBS OPERATIONS,AKW MEDI-CARE LTD,253.16,PECKHAM DD,MATERIALS,5902513263,1000047103
03.03.2022,SBS OPERATIONS,TRAVIS PERKINS TRADING COMPANY LTD,306.2,PECKHAM VOIDS,MATERIALS,5902513160,1514319
03.03.2022,SBS OPERATIONS,AKW MEDI-CARE LTD,253.16,SBS AIDS AND ADAPTATIONS,MATERIALS,5902513242,1000047103
03.03.2022,SBS OPERATIONS,AKW MEDI-CARE LTD,253.78,SBS AIDS AND ADAPTATIONS,MATERIALS,5902513256,1000047103
03.03.2022,SBS OPERATIONS,AKW MEDI-CARE LTD,253.78,SBS AIDS AND ADAPTATIONS,MATERIALS,5902513270,1000047103
03.03.2022,SBS OPERATIONS,AKW MEDI-CARE LTD,285.95,SBS AIDS AND ADAPTATIONS,MATERIALS,5902513248,1000047103
03.03.2022,SBS OPERATIONS,JETCHEM SYSTEMS LIMITED,"1,239.00",SBS COMMUNAL REPAIRS,OP LEASE/HIRE CHARGES:PLANT/EQUIP/FURNIT,5902513143,1000067786
03.03.2022,SBS SUPPORT,NPOWER LTD,312.29,R & M OVERHEADS,ELECTRICITY,5902513315,1000078994
03.03.2022,SBS SUPPORT,TRAVIS PERKINS TRADING COMPANY LTD,"1,815.00",R & M OVERHEADS,EQUIPMENT PURCHASE & REPAIR,5902513219,1514319
03.03.2022,SBS SUPPORT,TRAVIS PERKINS TRADING COMPANY LTD,"3,666.56",R & M OVERHEADS,EQUIPMENT PURCHASE & REPAIR,5902513219,1514319
03.03.2022,SBS SUPPORT,EE LTD (AIRTIME ACCOUNT),"2,207.84",R & M OVERHEADS,TELEPHONES (MOBILES),5902513152,1000079805
03.03.2022,SBS SUPPORT,J KASH LTD,"18,579.37",SBS - HOLDING ACCOUNT,OTHER CONTRACTORS,2103395583,3000002219
03.03.2022,SOUTHWARK BUILDING SERVICES,TRAVIS PERKINS TRADING COMPANY LTD,"-2,952.90",STORES/LOGISTICS,CREDITORS -GR/IR CLEARING ACCOUNT,5902513252,1514319
03.03.2022,SOUTHWARK BUILDING SERVICES,TRAVIS PERKINS TRADING COMPANY LTD,-800.6,STORES/LOGISTICS,CREDITORS -GR/IR CLEARING ACCOUNT,5902513221,1514319
03.03.2022,SOUTHWARK BUILDING SERVICES,TRAVIS PERKINS TRADING COMPANY LTD,-665.28,STORES/LOGISTICS,CREDITORS -GR/IR CLEARING ACCOUNT,5902513223,1514319
03.03.2022,SOUTHWARK BUILDING SERVICES,TRAVIS PERKINS TRADING COMPANY LTD,-348.74,STORES/LOGISTICS,CREDITORS -GR/IR CLEARING ACCOUNT,5902513249,1514319
03.03.2022,SOUTHWARK BUILDING SERVICES,TRAVIS PERKINS TRADING COMPANY LTD,-334.8,STORES/LOGISTICS,CREDITORS -GR/IR CLEARING ACCOUNT,5902513223,1514319
03.03.2022,SOUTHWARK BUILDING SERVICES,TRAVIS PERKINS TRADING COMPANY LTD,-331,STORES/LOGISTICS,CREDITORS -GR/IR CLEARING ACCOUNT,5902513202,1514319
03.03.2022,SOUTHWARK BUILDING SERVICES,TRAVIS PERKINS TRADING COMPANY LTD,-269.92,STORES/LOGISTICS,CREDITORS -GR/IR CLEARING ACCOUNT,5902513223,1514319
03.03.2022,SOUTHWARK BUILDING SERVICES,TRAVIS PERKINS TRADING COMPANY LTD,252.56,STORES/LOGISTICS,CREDITORS -GR/IR CLEARING ACCOUNT,5902513247,1514319
03.03.2022,SOUTHWARK BUILDING SERVICES,TRAVIS PERKINS TRADING COMPANY LTD,269.92,STORES/LOGISTICS,CREDITORS -GR/IR CLEARING ACCOUNT,5902513219,1514319
03.03.2022,SOUTHWARK BUILDING SERVICES,TRAVIS PERKINS TRADING COMPANY LTD,297,STORES/LOGISTICS,CREDITORS -GR/IR CLEARING ACCOUNT,5902513247,1514319
03.03.2022,SOUTHWARK BUILDING SERVICES,TRAVIS PERKINS TRADING COMPANY LTD,304,STORES/LOGISTICS,CREDITORS -GR/IR CLEARING ACCOUNT,5902513192,1514319
03.03.2022,SOUTHWARK BUILDING SERVICES,TRAVIS PERKINS TRADING COMPANY LTD,323.6,STORES/LOGISTICS,CREDITORS -GR/IR CLEARING ACCOUNT,5902513247,1514319
03.03.2022,SOUTHWARK BUILDING SERVICES,TRAVIS PERKINS TRADING COMPANY LTD,331,STORES/LOGISTICS,CREDITORS -GR/IR CLEARING ACCOUNT,5902513192,1514319
03.03.2022,SOUTHWARK BUILDING SERVICES,TRAVIS PERKINS TRADING COMPANY LTD,331,STORES/LOGISTICS,CREDITORS -GR/IR CLEARING ACCOUNT,5902513219,1514319
03.03.2022,SOUTHWARK BUILDING SERVICES,TRAVIS PERKINS TRADING COMPANY LTD,331.2,STORES/LOGISTICS,CREDITORS -GR/IR CLEARING ACCOUNT,5902513219,1514319
03.03.2022,SOUTHWARK BUILDING SERVICES,TRAVIS PERKINS TRADING COMPANY LTD,334.8,STORES/LOGISTICS,CREDITORS -GR/IR CLEARING ACCOUNT,5902513219,1514319
03.03.2022,SOUTHWARK BUILDING SERVICES,TRAVIS PERKINS TRADING COMPANY LTD,339.25,STORES/LOGISTICS,CREDITORS -GR/IR CLEARING ACCOUNT,5902513247,1514319
03.03.2022,SOUTHWARK BUILDING SERVICES,TRAVIS PERKINS TRADING COMPANY LTD,345.6,STORES/LOGISTICS,CREDITORS -GR/IR CLEARING ACCOUNT,5902513219,1514319
03.03.2022,SOUTHWARK BUILDING SERVICES,TRAVIS PERKINS TRADING COMPANY LTD,348.74,STORES/LOGISTICS,CREDITORS -GR/IR CLEARING ACCOUNT,5902513247,1514319
03.03.2022,SOUTHWARK BUILDING SERVICES,TRAVIS PERKINS TRADING COMPANY LTD,348.74,STORES/LOGISTICS,CREDITORS -GR/IR CLEARING ACCOUNT,5902513247,1514319
03.03.2022,SOUTHWARK BUILDING SERVICES,TRAVIS PERKINS TRADING COMPANY LTD,374.22,STORES/LOGISTICS,CREDITORS -GR/IR CLEARING ACCOUNT,5902513247,1514319
03.03.2022,SOUTHWARK BUILDING SERVICES,TRAVIS PERKINS TRADING COMPANY LTD,374.4,STORES/LOGISTICS,CREDITORS -GR/IR CLEARING ACCOUNT,5902513219,1514319
03.03.2022,SOUTHWARK BUILDING SERVICES,TRAVIS PERKINS TRADING COMPANY LTD,383.2,STORES/LOGISTICS,CREDITORS -GR/IR CLEARING ACCOUNT,5902513247,1514319
03.03.2022,SOUTHWARK BUILDING SERVICES,TRAVIS PERKINS TRADING COMPANY LTD,406,STORES/LOGISTICS,CREDITORS -GR/IR CLEARING ACCOUNT,5902513247,1514319
03.03.2022,SOUTHWARK BUILDING SERVICES,TRAVIS PERKINS TRADING COMPANY LTD,444.72,STORES/LOGISTICS,CREDITORS -GR/IR CLEARING ACCOUNT,5902513192,1514319
03.03.2022,SOUTHWARK BUILDING SERVICES,TRAVIS PERKINS TRADING COMPANY LTD,473.96,STORES/LOGISTICS,CREDITORS -GR/IR CLEARING ACCOUNT,5902513247,1514319
03.03.2022,SOUTHWARK BUILDING SERVICES,TRAVIS PERKINS TRADING COMPANY LTD,557.7,STORES/LOGISTICS,CREDITORS -GR/IR CLEARING ACCOUNT,5902513247,1514319
03.03.2022,SOUTHWARK BUILDING SERVICES,TRAVIS PERKINS TRADING COMPANY LTD,575.7,STORES/LOGISTICS,CREDITORS -GR/IR CLEARING ACCOUNT,5902513192,1514319
03.03.2022,SOUTHWARK BUILDING SERVICES,TRAVIS PERKINS TRADING COMPANY LTD,596.96,STORES/LOGISTICS,CREDITORS -GR/IR CLEARING ACCOUNT,5902513192,1514319
03.03.2022,SOUTHWARK BUILDING SERVICES,TRAVIS PERKINS TRADING COMPANY LTD,610,STORES/LOGISTICS,CREDITORS -GR/IR CLEARING ACCOUNT,5902513247,1514319
03.03.2022,SOUTHWARK BUILDING SERVICES,TRAVIS PERKINS TRADING COMPANY LTD,610.54,STORES/LOGISTICS,CREDITORS -GR/IR CLEARING ACCOUNT,5902513192,1514319
03.03.2022,SOUTHWARK BUILDING SERVICES,TRAVIS PERKINS TRADING COMPANY LTD,617.1,STORES/LOGISTICS,CREDITORS -GR/IR CLEARING ACCOUNT,5902513192,1514319
03.03.2022,SOUTHWARK BUILDING SERVICES,TRAVIS PERKINS TRADING COMPANY LTD,665.28,STORES/LOGISTICS,CREDITORS -GR/IR CLEARING ACCOUNT,5902513219,1514319
03.03.2022,SOUTHWARK BUILDING SERVICES,TRAVIS PERKINS TRADING COMPANY LTD,684.72,STORES/LOGISTICS,CREDITORS -GR/IR CLEARING ACCOUNT,5902513219,1514319
03.03.2022,SOUTHWARK BUILDING SERVICES,TRAVIS PERKINS TRADING COMPANY LTD,710.94,STORES/LOGISTICS,CREDITORS -GR/IR CLEARING ACCOUNT,5902513247,1514319
03.03.2022,SOUTHWARK BUILDING SERVICES,TRAVIS PERKINS TRADING COMPANY LTD,721.8,STORES/LOGISTICS,CREDITORS -GR/IR CLEARING ACCOUNT,5902513192,1514319
03.03.2022,SOUTHWARK BUILDING SERVICES,TRAVIS PERKINS TRADING COMPANY LTD,742.8,STORES/LOGISTICS,CREDITORS -GR/IR CLEARING ACCOUNT,5902513247,1514319
03.03.2022,SOUTHWARK BUILDING SERVICES,TRAVIS PERKINS TRADING COMPANY LTD,753,STORES/LOGISTICS,CREDITORS -GR/IR CLEARING ACCOUNT,5902513247,1514319
03.03.2022,SOUTHWARK BUILDING SERVICES,TRAVIS PERKINS TRADING COMPANY LTD,800.6,STORES/LOGISTICS,CREDITORS -GR/IR CLEARING ACCOUNT,5902513219,1514319
03.03.2022,SOUTHWARK BUILDING SERVICES,TRAVIS PERKINS TRADING COMPANY LTD,840.96,STORES/LOGISTICS,CREDITORS -GR/IR CLEARING ACCOUNT,5902513247,1514319
03.03.2022,SOUTHWARK BUILDING SERVICES,TRAVIS PERKINS TRADING COMPANY LTD,915,STORES/LOGISTICS,CREDITORS -GR/IR CLEARING ACCOUNT,5902513219,1514319
03.03.2022,SOUTHWARK BUILDING SERVICES,TRAVIS PERKINS TRADING COMPANY LTD,"1,000.80",STORES/LOGISTICS,CREDITORS -GR/IR CLEARING ACCOUNT,5902513208,1514319
03.03.2022,SOUTHWARK BUILDING SERVICES,TRAVIS PERKINS TRADING COMPANY LTD,"1,010.24",STORES/LOGISTICS,CREDITORS -GR/IR CLEARING ACCOUNT,5902513247,1514319
03.03.2022,SOUTHWARK BUILDING SERVICES,TRAVIS PERKINS TRADING COMPANY LTD,"1,133.00",STORES/LOGISTICS,CREDITORS -GR/IR CLEARING ACCOUNT,5902513192,1514319
03.03.2022,SOUTHWARK BUILDING SERVICES,TRAVIS PERKINS TRADING COMPANY LTD,"1,251.00",STORES/LOGISTICS,CREDITORS -GR/IR CLEARING ACCOUNT,5902513192,1514319
03.03.2022,SOUTHWARK BUILDING SERVICES,TRAVIS PERKINS TRADING COMPANY LTD,"1,402.20",STORES/LOGISTICS,CREDITORS -GR/IR CLEARING ACCOUNT,5902513192,1514319
03.03.2022,SOUTHWARK BUILDING SERVICES,TRAVIS PERKINS TRADING COMPANY LTD,"1,402.20",STORES/LOGISTICS,CREDITORS -GR/IR CLEARING ACCOUNT,5902513247,1514319
03.03.2022,SOUTHWARK BUILDING SERVICES,TRAVIS PERKINS TRADING COMPANY LTD,"2,952.90",STORES/LOGISTICS,CREDITORS -GR/IR CLEARING ACCOUNT,5902513247,1514319
03.03.2022,SOUTHWARK BUILDING SERVICES,LONDON TOOLS LIMITED,280,STORES/LOGISTICS,CREDITORS -GR/IR CLEARING ACCOUNT,5902513071,1000003017
03.03.2022,SOUTHWARK BUILDING SERVICES,LONDON TOOLS LIMITED,790,STORES/LOGISTICS,CREDITORS -GR/IR CLEARING ACCOUNT,5902513067,1000003017
03.03.2022,SOUTHWARK BUILDING SERVICES,LONDON TOOLS LIMITED,"1,575.00",STORES/LOGISTICS,CREDITORS -GR/IR CLEARING ACCOUNT,5902513086,1000003017
03.03.2022,SOUTHWARK BUILDING SERVICES,LONDON TOOLS LIMITED,"1,620.00",STORES/LOGISTICS,CREDITORS -GR/IR CLEARING ACCOUNT,5902513079,1000003017
03.03.2022,SOUTHWARK BUILDING SERVICES,LONDON TOOLS LIMITED,"1,734.00",STORES/LOGISTICS,CREDITORS -GR/IR CLEARING ACCOUNT,5902513085,1000003017
03.03.2022,SOUTHWARK BUILDING SERVICES,REXEL UK LTD T/A NEWEY & EYRE,826,STORES/LOGISTICS,CREDITORS -GR/IR CLEARING ACCOUNT,5902513220,1000019785
03.03.2022,SOUTHWARK BUILDING SERVICES,KEMICO LIMITED,"1,260.00",STORES/LOGISTICS,CREDITORS -GR/IR CLEARING ACCOUNT,5902513069,1000030226
03.03.2022,SOUTHWARK BUILDING SERVICES,KEMICO LIMITED,"4,797.00",STORES/LOGISTICS,CREDITORS -GR/IR CLEARING ACCOUNT,5902513072,1000030226
03.03.2022,SOUTHWARK BUILDING SERVICES,KEMICO LIMITED,"5,292.00",STORES/LOGISTICS,CREDITORS -GR/IR CLEARING ACCOUNT,5902513073,1000030226
03.03.2022,SOUTHWARK BUILDING SERVICES,ONSITE SUPPORT LTD,316.8,STORES/LOGISTICS,CREDITORS -GR/IR CLEARING ACCOUNT,5902513144,1000043198
03.03.2022,SOUTHWARK BUILDING SERVICES,CORBYS & CO,684,STORES/LOGISTICS,CREDITORS -GR/IR CLEARING ACCOUNT,5902513179,1000055320
03.03.2022,SOUTHWARK BUILDING SERVICES,A T & T (GB LTD ),264.95,STORES/LOGISTICS,CREDITORS -GR/IR CLEARING ACCOUNT,5902513194,1000078342
03.03.2022,SOUTHWARK BUILDING SERVICES,A T & T (GB LTD ),"2,655.00",STORES/LOGISTICS,CREDITORS -GR/IR CLEARING ACCOUNT,5902513200,1000078342
03.03.2022,SOUTHWARK BUILDING SERVICES,A T & T (GB LTD ),"3,024.00",STORES/LOGISTICS,CREDITORS -GR/IR CLEARING ACCOUNT,5902513206,1000078342
03.03.2022,SOUTHWARK BUILDING SERVICES,ELECTRICAL WHOLESALE SYSTEMS LTD,564.6,STORES/LOGISTICS,CREDITORS -GR/IR CLEARING ACCOUNT,5902513107,1000083319
03.03.2022,SOUTHWARK BUILDING SERVICES,ELECTRICAL WHOLESALE SYSTEMS LTD,"1,656.00",STORES/LOGISTICS,CREDITORS -GR/IR CLEARING ACCOUNT,5902513140,1000083319
03.03.2022,SOUTHWARK BUILDING SERVICES,ELECTRICAL WHOLESALE SYSTEMS LTD,"1,976.10",STORES/LOGISTICS,CREDITORS -GR/IR CLEARING ACCOUNT,5902513139,1000083319
03.03.2022,SOUTHWARK BUILDING SERVICES,ELECTRICAL WHOLESALE SYSTEMS LTD,"2,450.92",STORES/LOGISTICS,CREDITORS -GR/IR CLEARING ACCOUNT,5902513103,1000083319
03.03.2022,SOUTHWARK BUILDING SERVICES,ELECTRICAL WHOLESALE SYSTEMS LTD,"2,790.00",STORES/LOGISTICS,CREDITORS -GR/IR CLEARING ACCOUNT,5902513140,1000083319
03.03.2022,SOUTHWARK BUILDING SERVICES,ELECTRICAL WHOLESALE SYSTEMS LTD,"2,870.00",STORES/LOGISTICS,CREDITORS -GR/IR CLEARING ACCOUNT,5902513103,1000083319
03.03.2022,SOUTHWARK BUILDING SERVICES,ELECTRICAL WHOLESALE SYSTEMS LTD,"3,709.00",STORES/LOGISTICS,CREDITORS -GR/IR CLEARING ACCOUNT,5902513138,1000083319
03.03.2022,SOUTHWARK BUILDING SERVICES,ELECTRICAL WHOLESALE SYSTEMS LTD,"4,185.00",STORES/LOGISTICS,CREDITORS -GR/IR CLEARING ACCOUNT,5902513137,1000083319
03.03.2022,SOUTHWARK BUILDING SERVICES,ELECTRICAL WHOLESALE SYSTEMS LTD,"5,646.00",STORES/LOGISTICS,CREDITORS -GR/IR CLEARING ACCOUNT,5902513141,1000083319
03.03.2022,STRATEGIC FINANCING BUDGETS,COMENSURA LTD,"719,422.92",AGENCY RECOVERY,AGENCY STAFF,5902513174,1000051261
04.03.2022,ADULT SOCIAL CARE,REDACTED PERSONAL DATA,262.6,APPOINTEESHIPS,OTHER PAYMENTS FOR CLIENTS,REDACTED,REDACTED
04.03.2022,ADULT SOCIAL CARE,REDACTED PERSONAL DATA,279.85,APPOINTEESHIPS,OTHER PAYMENTS FOR CLIENTS,REDACTED,REDACTED
04.03.2022,ADULT SOCIAL CARE,REDACTED PERSONAL DATA,"4,261.34",APPOINTEESHIPS,OTHER PAYMENTS FOR CLIENTS,REDACTED,REDACTED
04.03.2022,ADULT SOCIAL CARE,THAMES HOMECARE SERVICE LTD,379.08,DISCHARGE TO ACCESS,HOMECARE - C&V,2103395680,1000079295
04.03.2022,ADULT SOCIAL CARE,THAMES HOMECARE SERVICE LTD,"1,132.56",DISCHARGE TO ACCESS,HOMECARE - SPOT,2103395698,1000079295
04.03.2022,ADULT SOCIAL CARE,SURREY DOCKS FARM PROVIDENT SOCIETY,480,LD LTS 18-64,DAYCARE,2103396081,1000000958
04.03.2022,ADULT SOCIAL CARE,SURREY DOCKS FARM PROVIDENT SOCIETY,487.5,LD LTS 18-64,DAYCARE,2103396083,1000000958
04.03.2022,ADULT SOCIAL CARE,SURREY DOCKS FARM PROVIDENT SOCIETY,720,LD LTS 18-64,DAYCARE,2103396080,1000000958
04.03.2022,ADULT SOCIAL CARE,ACT TOO LTD,400,LD LTS 18-64,DAYCARE,2103395963,1000053657
04.03.2022,ADULT SOCIAL CARE,SHARE COMMUNITY LTD,780,LD LTS 18-64,DAYCARE,2103395651,1000062408
04.03.2022,ADULT SOCIAL CARE,SHARE COMMUNITY LTD,780,LD LTS 18-64,DAYCARE,2103395652,1000062408
04.03.2022,ADULT SOCIAL CARE,THE NEW SHOOTS,300,LD LTS 18-64,DAYCARE,2103395961,1000073970
04.03.2022,ADULT SOCIAL CARE,METRO HOMECARE LTD,528,LD LTS 18-64,HOMECARE - SPOT,2103395994,1000070695
04.03.2022,ADULT SOCIAL CARE,METRO HOMECARE LTD,528,LD LTS 18-64,HOMECARE - SPOT,2103396035,1000070695
04.03.2022,ADULT SOCIAL CARE,THAMES HOMECARE SERVICE LTD,262.08,LD LTS 18-64,HOMECARE - SPOT,2103395786,1000079295
04.03.2022,ADULT SOCIAL CARE,CHOICE SUPPORT,440.88,LD LTS 18-64,SUPPORTED LIVING,2103396062,1104183
04.03.2022,ADULT SOCIAL CARE,CHOICE SUPPORT,661.32,LD LTS 18-64,SUPPORTED LIVING,2103396063,1104183
04.03.2022,ADULT SOCIAL CARE,CHOICE SUPPORT,661.32,LD LTS 18-64,SUPPORTED LIVING,2103396065,1104183
04.03.2022,ADULT SOCIAL CARE,CHOICE SUPPORT,881.76,LD LTS 18-64,SUPPORTED LIVING,2103396064,1104183
04.03.2022,ADULT SOCIAL CARE,SWK DISABLEMENT ASSN,553.8,LD LTS 18-64,SUPPORTED LIVING,2103396084,1000011698
04.03.2022,ADULT SOCIAL CARE,CONTACT PROFESSIONALS,437,LD LTS 18-64,SUPPORTED LIVING,2103395962,1000057263
04.03.2022,ADULT SOCIAL CARE,CONTACT PROFESSIONALS,465,LD LTS 18-64,SUPPORTED LIVING,2103395967,1000057263
04.03.2022,ADULT SOCIAL CARE,CONTACT PROFESSIONALS,684,LD LTS 18-64,SUPPORTED LIVING,2103395965,1000057263
04.03.2022,ADULT SOCIAL CARE,CONTACT PROFESSIONALS,912,LD LTS 18-64,SUPPORTED LIVING,2103395964,1000057263
04.03.2022,ADULT SOCIAL CARE,SURREY DOCKS FARM PROVIDENT SOCIETY,360,LD LTS 65+,DAYCARE,2103396104,1000000958
04.03.2022,ADULT SOCIAL CARE,LONDON CARE LTD,"1,364.56",MEM LTS 65+,HOMECARE - C&V,2103396060,1000003398
04.03.2022,ADULT SOCIAL CARE,THAMES HOMECARE SERVICE LTD,804.96,MEM LTS 65+,HOMECARE - C&V,2103395804,1000079295
04.03.2022,ADULT SOCIAL CARE,THAMES HOMECARE SERVICE LTD,655.2,MEM LTS 65+,HOMECARE - SPOT,2103395811,1000079295
04.03.2022,ADULT SOCIAL CARE,LONDON CARE LTD,311.33,MH LTS 18-64,HOMECARE - C&V,2103395856,1000003398
04.03.2022,ADULT SOCIAL CARE,LONDON CARE LTD,331.92,MH LTS 18-64,HOMECARE - C&V,2103395848,1000003398
04.03.2022,ADULT SOCIAL CARE,LONDON CARE LTD,613.13,MH LTS 65+,HOMECARE - C&V,2103395854,1000003398
04.03.2022,ADULT SOCIAL CARE,LONDON CARE LTD,"1,627.33",MH LTS 65+,HOMECARE - C&V,2103395889,1000003398
04.03.2022,ADULT SOCIAL CARE,BLISSETT CARE LTD,771.12,MH LTS 65+,HOMECARE - C&V,2103396069,1000042627
04.03.2022,ADULT SOCIAL CARE,THAMES HOMECARE SERVICE LTD,486.72,MH LTS 65+,HOMECARE - SPOT,2103395826,1000079295
04.03.2022,ADULT SOCIAL CARE,SWK DISABLEMENT ASSN,304,MH LTS 65+,SUPPORTED LIVING,2103396085,1000011698
04.03.2022,ADULT SOCIAL CARE,SWK DISABLEMENT ASSN,389.5,MH LTS 65+,SUPPORTED LIVING,2103396087,1000011698
04.03.2022,ADULT SOCIAL CARE,LONDON CARE LTD,686.28,MH STS 18-64,HOMECARE - IC,2103395922,1000003398
04.03.2022,ADULT SOCIAL CARE,METRO HOMECARE LTD,338.25,MH STS 65+,HOMECARE - IC,2103396042,1000070695
04.03.2022,ADULT SOCIAL CARE,METRO HOMECARE LTD,462,MH STS 65+,HOMECARE - IC,2103395999,1000070695
04.03.2022,ADULT SOCIAL CARE,LONDON CARE LTD,276.6,PHY LTS 18-64,HOMECARE - C&V,2103395893,1000003398
04.03.2022,ADULT SOCIAL CARE,LONDON CARE LTD,313.48,PHY LTS 18-64,HOMECARE - C&V,2103395871,1000003398
04.03.2022,ADULT SOCIAL CARE,LONDON CARE LTD,387.24,PHY LTS 18-64,HOMECARE - C&V,2103395888,1000003398
04.03.2022,ADULT SOCIAL CARE,LONDON CARE LTD,405.68,PHY LTS 18-64,HOMECARE - C&V,2103395851,1000003398
04.03.2022,ADULT SOCIAL CARE,LONDON CARE LTD,437.95,PHY LTS 18-64,HOMECARE - C&V,2103395895,1000003398
04.03.2022,ADULT SOCIAL CARE,LONDON CARE LTD,603.91,PHY LTS 18-64,HOMECARE - C&V,2103395858,1000003398
04.03.2022,ADULT SOCIAL CARE,LONDON CARE LTD,"1,064.29",PHY LTS 18-64,HOMECARE - C&V,2103395884,1000003398
04.03.2022,ADULT SOCIAL CARE,METRO HOMECARE LTD,313.5,PHY LTS 18-64,HOMECARE - SPOT,2103396018,1000070695
04.03.2022,ADULT SOCIAL CARE,METRO HOMECARE LTD,313.5,PHY LTS 18-64,HOMECARE - SPOT,2103396020,1000070695
04.03.2022,ADULT SOCIAL CARE,METRO HOMECARE LTD,338.25,PHY LTS 18-64,HOMECARE - SPOT,2103396001,1000070695
04.03.2022,ADULT SOCIAL CARE,METRO HOMECARE LTD,412.5,PHY LTS 18-64,HOMECARE - SPOT,2103395989,1000070695
04.03.2022,ADULT SOCIAL CARE,METRO HOMECARE LTD,412.5,PHY LTS 18-64,HOMECARE - SPOT,2103395990,1000070695
04.03.2022,ADULT SOCIAL CARE,METRO HOMECARE LTD,412.5,PHY LTS 18-64,HOMECARE - SPOT,2103396026,1000070695
04.03.2022,ADULT SOCIAL CARE,METRO HOMECARE LTD,495,PHY LTS 18-64,HOMECARE - SPOT,2103395985,1000070695
04.03.2022,ADULT SOCIAL CARE,METRO HOMECARE LTD,495,PHY LTS 18-64,HOMECARE - SPOT,2103396031,1000070695
04.03.2022,ADULT SOCIAL CARE,METRO HOMECARE LTD,585.75,PHY LTS 18-64,HOMECARE - SPOT,2103396003,1000070695
04.03.2022,ADULT SOCIAL CARE,THAMES HOMECARE SERVICE LTD,266.76,PHY LTS 18-64,HOMECARE - SPOT,2103395760,1000079295
04.03.2022,ADULT SOCIAL CARE,THAMES HOMECARE SERVICE LTD,294.84,PHY LTS 18-64,HOMECARE - SPOT,2103395812,1000079295
04.03.2022,ADULT SOCIAL CARE,THAMES HOMECARE SERVICE LTD,332.28,PHY LTS 18-64,HOMECARE - SPOT,2103395726,1000079295
04.03.2022,ADULT SOCIAL CARE,THAMES HOMECARE SERVICE LTD,336.96,PHY LTS 18-64,HOMECARE - SPOT,2103395688,1000079295
04.03.2022,ADULT SOCIAL CARE,THAMES HOMECARE SERVICE LTD,360.36,PHY LTS 18-64,HOMECARE - SPOT,2103395794,1000079295
04.03.2022,ADULT SOCIAL CARE,THAMES HOMECARE SERVICE LTD,374.4,PHY LTS 18-64,HOMECARE - SPOT,2103395814,1000079295
04.03.2022,ADULT SOCIAL CARE,THAMES HOMECARE SERVICE LTD,379.08,PHY LTS 18-64,HOMECARE - SPOT,2103395736,1000079295
04.03.2022,ADULT SOCIAL CARE,THAMES HOMECARE SERVICE LTD,561.6,PHY LTS 18-64,HOMECARE - SPOT,2103395800,1000079295
04.03.2022,ADULT SOCIAL CARE,THAMES HOMECARE SERVICE LTD,589.68,PHY LTS 18-64,HOMECARE - SPOT,2103395669,1000079295
04.03.2022,ADULT SOCIAL CARE,THAMES HOMECARE SERVICE LTD,589.68,PHY LTS 18-64,HOMECARE - SPOT,2103395682,1000079295
04.03.2022,ADULT SOCIAL CARE,THAMES HOMECARE SERVICE LTD,589.68,PHY LTS 18-64,HOMECARE - SPOT,2103395743,1000079295
04.03.2022,ADULT SOCIAL CARE,THAMES HOMECARE SERVICE LTD,655.2,PHY LTS 18-64,HOMECARE - SPOT,2103395782,1000079295
04.03.2022,ADULT SOCIAL CARE,THAMES HOMECARE SERVICE LTD,720.72,PHY LTS 18-64,HOMECARE - SPOT,2103395809,1000079295
04.03.2022,ADULT SOCIAL CARE,THAMES HOMECARE SERVICE LTD,870.48,PHY LTS 18-64,HOMECARE - SPOT,2103395806,1000079295
04.03.2022,ADULT SOCIAL CARE,THAMES HOMECARE SERVICE LTD,936,PHY LTS 18-64,HOMECARE - SPOT,2103395723,1000079295
04.03.2022,ADULT SOCIAL CARE,THAMES HOMECARE SERVICE LTD,964.08,PHY LTS 18-64,HOMECARE - SPOT,2103395803,1000079295
04.03.2022,ADULT SOCIAL CARE,LONDON CARE LTD,253.55,PHY LTS 65+,HOMECARE - C&V,2103395872,1000003398
04.03.2022,ADULT SOCIAL CARE,LONDON CARE LTD,258.16,PHY LTS 65+,HOMECARE - C&V,2103395881,1000003398
04.03.2022,ADULT SOCIAL CARE,LONDON CARE LTD,276.6,PHY LTS 65+,HOMECARE - C&V,2103395907,1000003398
04.03.2022,ADULT SOCIAL CARE,LONDON CARE LTD,285.82,PHY LTS 65+,HOMECARE - C&V,2103395905,1000003398
04.03.2022,ADULT SOCIAL CARE,LONDON CARE LTD,331.92,PHY LTS 65+,HOMECARE - C&V,2103395898,1000003398
04.03.2022,ADULT SOCIAL CARE,LONDON CARE LTD,336.53,PHY LTS 65+,HOMECARE - C&V,2103395891,1000003398
04.03.2022,ADULT SOCIAL CARE,LONDON CARE LTD,350.36,PHY LTS 65+,HOMECARE - C&V,2103395843,1000003398
04.03.2022,ADULT SOCIAL CARE,LONDON CARE LTD,359.58,PHY LTS 65+,HOMECARE - C&V,2103395880,1000003398
04.03.2022,ADULT SOCIAL CARE,LONDON CARE LTD,378.02,PHY LTS 65+,HOMECARE - C&V,2103395909,1000003398
04.03.2022,ADULT SOCIAL CARE,LONDON CARE LTD,387.24,PHY LTS 65+,HOMECARE - C&V,2103395873,1000003398
04.03.2022,ADULT SOCIAL CARE,LONDON CARE LTD,387.24,PHY LTS 65+,HOMECARE - C&V,2103395897,1000003398
04.03.2022,ADULT SOCIAL CARE,LONDON CARE LTD,474.83,PHY LTS 65+,HOMECARE - C&V,2103395896,1000003398
04.03.2022,ADULT SOCIAL CARE,LONDON CARE LTD,479.44,PHY LTS 65+,HOMECARE - C&V,2103395850,1000003398
04.03.2022,ADULT SOCIAL CARE,LONDON CARE LTD,497.88,PHY LTS 65+,HOMECARE - C&V,2103395859,1000003398
04.03.2022,ADULT SOCIAL CARE,LONDON CARE LTD,497.88,PHY LTS 65+,HOMECARE - C&V,2103395900,1000003398
04.03.2022,ADULT SOCIAL CARE,LONDON CARE LTD,516.32,PHY LTS 65+,HOMECARE - C&V,2103395865,1000003398
04.03.2022,ADULT SOCIAL CARE,LONDON CARE LTD,557.81,PHY LTS 65+,HOMECARE - C&V,2103395857,1000003398
04.03.2022,ADULT SOCIAL CARE,LONDON CARE LTD,557.81,PHY LTS 65+,HOMECARE - C&V,2103395920,1000003398
04.03.2022,ADULT SOCIAL CARE,LONDON CARE LTD,567.03,PHY LTS 65+,HOMECARE - C&V,2103395915,1000003398
04.03.2022,ADULT SOCIAL CARE,LONDON CARE LTD,691.5,PHY LTS 65+,HOMECARE - C&V,2103395878,1000003398
04.03.2022,ADULT SOCIAL CARE,LONDON CARE LTD,709.02,PHY LTS 65+,HOMECARE - C&V,2103395902,1000003398
04.03.2022,ADULT SOCIAL CARE,LONDON CARE LTD,714.55,PHY LTS 65+,HOMECARE - C&V,2103395911,1000003398
04.03.2022,ADULT SOCIAL CARE,LONDON CARE LTD,751.43,PHY LTS 65+,HOMECARE - C&V,2103395849,1000003398
04.03.2022,ADULT SOCIAL CARE,LONDON CARE LTD,769.87,PHY LTS 65+,HOMECARE - C&V,2103395903,1000003398
04.03.2022,ADULT SOCIAL CARE,LONDON CARE LTD,875.9,PHY LTS 65+,HOMECARE - C&V,2103395892,1000003398
04.03.2022,ADULT SOCIAL CARE,LONDON CARE LTD,880.51,PHY LTS 65+,HOMECARE - C&V,2103395916,1000003398
04.03.2022,ADULT SOCIAL CARE,LONDON CARE LTD,954.27,PHY LTS 65+,HOMECARE - C&V,2103395899,1000003398
04.03.2022,ADULT SOCIAL CARE,LONDON CARE LTD,"1,067.97",PHY LTS 65+,HOMECARE - C&V,2103395875,1000003398
04.03.2022,ADULT SOCIAL CARE,LONDON CARE LTD,"1,138.67",PHY LTS 65+,HOMECARE - C&V,2103395869,1000003398
04.03.2022,ADULT SOCIAL CARE,LONDON CARE LTD,"1,143.28",PHY LTS 65+,HOMECARE - C&V,2103395919,1000003398
04.03.2022,ADULT SOCIAL CARE,LONDON CARE LTD,"1,157.11",PHY LTS 65+,HOMECARE - C&V,2103395886,1000003398
04.03.2022,ADULT SOCIAL CARE,LONDON CARE LTD,"1,157.11",PHY LTS 65+,HOMECARE - C&V,2103395913,1000003398
04.03.2022,ADULT SOCIAL CARE,LONDON CARE LTD,"1,161.72",PHY LTS 65+,HOMECARE - C&V,2103396059,1000003398
04.03.2022,ADULT SOCIAL CARE,LONDON CARE LTD,"1,316.93",PHY LTS 65+,HOMECARE - C&V,2103395885,1000003398
04.03.2022,ADULT SOCIAL CARE,LONDON CARE LTD,"1,415.27",PHY LTS 65+,HOMECARE - C&V,2103395887,1000003398
04.03.2022,ADULT SOCIAL CARE,LONDON CARE LTD,"2,369.54",PHY LTS 65+,HOMECARE - C&V,2103395841,1000003398
04.03.2022,ADULT SOCIAL CARE,LONDON CARE LTD,"2,576.99",PHY LTS 65+,HOMECARE - C&V,2103395874,1000003398
04.03.2022,ADULT SOCIAL CARE,LONDON CARE LTD,"3,024.16",PHY LTS 65+,HOMECARE - C&V,2103395908,1000003398
04.03.2022,ADULT SOCIAL CARE,BLISSETT CARE LTD,"1,032.55",PHY LTS 65+,HOMECARE - C&V,2103396075,1000042627
04.03.2022,ADULT SOCIAL CARE,BLISSETT CARE LTD,"3,190.05",PHY LTS 65+,HOMECARE - C&V,2103396073,1000042627
04.03.2022,ADULT SOCIAL CARE,THAMES HOMECARE SERVICE LTD,332.28,PHY LTS 65+,HOMECARE - C&V,2103395807,1000079295
04.03.2022,ADULT SOCIAL CARE,THAMES HOMECARE SERVICE LTD,393.12,PHY LTS 65+,HOMECARE - C&V,2103395755,1000079295
04.03.2022,ADULT SOCIAL CARE,SAGECARE LTD,645.43,PHY LTS 65+,HOMECARE - C&V,2103396066,1000080924
04.03.2022,ADULT SOCIAL CARE,METRO HOMECARE LTD,280.5,PHY LTS 65+,HOMECARE - SPOT,2103395974,1000070695
04.03.2022,ADULT SOCIAL CARE,METRO HOMECARE LTD,280.5,PHY LTS 65+,HOMECARE - SPOT,2103395975,1000070695
04.03.2022,ADULT SOCIAL CARE,METRO HOMECARE LTD,280.5,PHY LTS 65+,HOMECARE - SPOT,2103395981,1000070695
04.03.2022,ADULT SOCIAL CARE,METRO HOMECARE LTD,280.5,PHY LTS 65+,HOMECARE - SPOT,2103396036,1000070695
04.03.2022,ADULT SOCIAL CARE,METRO HOMECARE LTD,321.75,PHY LTS 65+,HOMECARE - SPOT,2103395980,1000070695
04.03.2022,ADULT SOCIAL CARE,METRO HOMECARE LTD,330,PHY LTS 65+,HOMECARE - SPOT,2103396051,1000070695
04.03.2022,ADULT SOCIAL CARE,METRO HOMECARE LTD,346.5,PHY LTS 65+,HOMECARE - SPOT,2103395979,1000070695
04.03.2022,ADULT SOCIAL CARE,METRO HOMECARE LTD,346.5,PHY LTS 65+,HOMECARE - SPOT,2103396054,1000070695
04.03.2022,ADULT SOCIAL CARE,METRO HOMECARE LTD,346.5,PHY LTS 65+,HOMECARE - SPOT,2103396055,1000070695
04.03.2022,ADULT SOCIAL CARE,METRO HOMECARE LTD,354.75,PHY LTS 65+,HOMECARE - SPOT,2103396022,1000070695
04.03.2022,ADULT SOCIAL CARE,METRO HOMECARE LTD,354.75,PHY LTS 65+,HOMECARE - SPOT,2103396023,1000070695
04.03.2022,ADULT SOCIAL CARE,METRO HOMECARE LTD,412.5,PHY LTS 65+,HOMECARE - SPOT,2103396013,1000070695
04.03.2022,ADULT SOCIAL CARE,METRO HOMECARE LTD,412.5,PHY LTS 65+,HOMECARE - SPOT,2103396014,1000070695
04.03.2022,ADULT SOCIAL CARE,METRO HOMECARE LTD,429,PHY LTS 65+,HOMECARE - SPOT,2103396025,1000070695
04.03.2022,ADULT SOCIAL CARE,METRO HOMECARE LTD,437.25,PHY LTS 65+,HOMECARE - SPOT,2103395984,1000070695
04.03.2022,ADULT SOCIAL CARE,METRO HOMECARE LTD,437.25,PHY LTS 65+,HOMECARE - SPOT,2103396030,1000070695
04.03.2022,ADULT SOCIAL CARE,METRO HOMECARE LTD,437.25,PHY LTS 65+,HOMECARE - SPOT,2103396033,1000070695
04.03.2022,ADULT SOCIAL CARE,METRO HOMECARE LTD,441.28,PHY LTS 65+,HOMECARE - SPOT,2103395987,1000070695
04.03.2022,ADULT SOCIAL CARE,METRO HOMECARE LTD,470.25,PHY LTS 65+,HOMECARE - SPOT,2103395971,1000070695
04.03.2022,ADULT SOCIAL CARE,METRO HOMECARE LTD,495,PHY LTS 65+,HOMECARE - SPOT,2103395972,1000070695
04.03.2022,ADULT SOCIAL CARE,METRO HOMECARE LTD,495,PHY LTS 65+,HOMECARE - SPOT,2103395973,1000070695
04.03.2022,ADULT SOCIAL CARE,METRO HOMECARE LTD,495,PHY LTS 65+,HOMECARE - SPOT,2103395988,1000070695
04.03.2022,ADULT SOCIAL CARE,METRO HOMECARE LTD,519.75,PHY LTS 65+,HOMECARE - SPOT,2103396029,1000070695
04.03.2022,ADULT SOCIAL CARE,METRO HOMECARE LTD,528,PHY LTS 65+,HOMECARE - SPOT,2103396028,1000070695
04.03.2022,ADULT SOCIAL CARE,METRO HOMECARE LTD,602.25,PHY LTS 65+,HOMECARE - SPOT,2103395992,1000070695
04.03.2022,ADULT SOCIAL CARE,METRO HOMECARE LTD,602.25,PHY LTS 65+,HOMECARE - SPOT,2103396043,1000070695
04.03.2022,ADULT SOCIAL CARE,METRO HOMECARE LTD,635.25,PHY LTS 65+,HOMECARE - SPOT,2103395970,1000070695
04.03.2022,ADULT SOCIAL CARE,METRO HOMECARE LTD,635.25,PHY LTS 65+,HOMECARE - SPOT,2103396027,1000070695
04.03.2022,ADULT SOCIAL CARE,METRO HOMECARE LTD,750.75,PHY LTS 65+,HOMECARE - SPOT,2103396004,1000070695
04.03.2022,ADULT SOCIAL CARE,METRO HOMECARE LTD,750.75,PHY LTS 65+,HOMECARE - SPOT,2103396044,1000070695
04.03.2022,ADULT SOCIAL CARE,METRO HOMECARE LTD,759,PHY LTS 65+,HOMECARE - SPOT,2103396057,1000070695
04.03.2022,ADULT SOCIAL CARE,METRO HOMECARE LTD,759,PHY LTS 65+,HOMECARE - SPOT,2103396058,1000070695
04.03.2022,ADULT SOCIAL CARE,METRO HOMECARE LTD,"1,014.75",PHY LTS 65+,HOMECARE - SPOT,2103396052,1000070695
04.03.2022,ADULT SOCIAL CARE,METRO HOMECARE LTD,"1,039.50",PHY LTS 65+,HOMECARE - SPOT,2103395997,1000070695
04.03.2022,ADULT SOCIAL CARE,METRO HOMECARE LTD,"1,039.50",PHY LTS 65+,HOMECARE - SPOT,2103396007,1000070695
04.03.2022,ADULT SOCIAL CARE,METRO HOMECARE LTD,"1,039.50",PHY LTS 65+,HOMECARE - SPOT,2103396008,1000070695
04.03.2022,ADULT SOCIAL CARE,METRO HOMECARE LTD,"1,039.50",PHY LTS 65+,HOMECARE - SPOT,2103396047,1000070695
04.03.2022,ADULT SOCIAL CARE,THAMES HOMECARE SERVICE LTD,262.08,PHY LTS 65+,HOMECARE - SPOT,2103395758,1000079295
04.03.2022,ADULT SOCIAL CARE,THAMES HOMECARE SERVICE LTD,262.08,PHY LTS 65+,HOMECARE - SPOT,2103395802,1000079295
04.03.2022,ADULT SOCIAL CARE,THAMES HOMECARE SERVICE LTD,271.44,PHY LTS 65+,HOMECARE - SPOT,2103395830,1000079295
04.03.2022,ADULT SOCIAL CARE,THAMES HOMECARE SERVICE LTD,276.12,PHY LTS 65+,HOMECARE - SPOT,2103395670,1000079295
04.03.2022,ADULT SOCIAL CARE,THAMES HOMECARE SERVICE LTD,280.8,PHY LTS 65+,HOMECARE - SPOT,2103395693,1000079295
04.03.2022,ADULT SOCIAL CARE,THAMES HOMECARE SERVICE LTD,280.8,PHY LTS 65+,HOMECARE - SPOT,2103395713,1000079295
04.03.2022,ADULT SOCIAL CARE,THAMES HOMECARE SERVICE LTD,294.84,PHY LTS 65+,HOMECARE - SPOT,2103395689,1000079295
04.03.2022,ADULT SOCIAL CARE,THAMES HOMECARE SERVICE LTD,294.84,PHY LTS 65+,HOMECARE - SPOT,2103395707,1000079295
04.03.2022,ADULT SOCIAL CARE,THAMES HOMECARE SERVICE LTD,294.84,PHY LTS 65+,HOMECARE - SPOT,2103395708,1000079295
04.03.2022,ADULT SOCIAL CARE,THAMES HOMECARE SERVICE LTD,294.84,PHY LTS 65+,HOMECARE - SPOT,2103395777,1000079295
04.03.2022,ADULT SOCIAL CARE,THAMES HOMECARE SERVICE LTD,318.24,PHY LTS 65+,HOMECARE - SPOT,2103395715,1000079295
04.03.2022,ADULT SOCIAL CARE,THAMES HOMECARE SERVICE LTD,332.28,PHY LTS 65+,HOMECARE - SPOT,2103395709,1000079295
04.03.2022,ADULT SOCIAL CARE,THAMES HOMECARE SERVICE LTD,360.36,PHY LTS 65+,HOMECARE - SPOT,2103395772,1000079295
04.03.2022,ADULT SOCIAL CARE,THAMES HOMECARE SERVICE LTD,360.36,PHY LTS 65+,HOMECARE - SPOT,2103395785,1000079295
04.03.2022,ADULT SOCIAL CARE,THAMES HOMECARE SERVICE LTD,360.36,PHY LTS 65+,HOMECARE - SPOT,2103395817,1000079295
04.03.2022,ADULT SOCIAL CARE,THAMES HOMECARE SERVICE LTD,393.12,PHY LTS 65+,HOMECARE - SPOT,2103395781,1000079295
04.03.2022,ADULT SOCIAL CARE,THAMES HOMECARE SERVICE LTD,402.48,PHY LTS 65+,HOMECARE - SPOT,2103395779,1000079295
04.03.2022,ADULT SOCIAL CARE,THAMES HOMECARE SERVICE LTD,407.16,PHY LTS 65+,HOMECARE - SPOT,2103395765,1000079295
04.03.2022,ADULT SOCIAL CARE,THAMES HOMECARE SERVICE LTD,458.64,PHY LTS 65+,HOMECARE - SPOT,2103395666,1000079295
04.03.2022,ADULT SOCIAL CARE,THAMES HOMECARE SERVICE LTD,458.64,PHY LTS 65+,HOMECARE - SPOT,2103395734,1000079295
04.03.2022,ADULT SOCIAL CARE,THAMES HOMECARE SERVICE LTD,477.36,PHY LTS 65+,HOMECARE - SPOT,2103395822,1000079295
04.03.2022,ADULT SOCIAL CARE,THAMES HOMECARE SERVICE LTD,524.16,PHY LTS 65+,HOMECARE - SPOT,2103395732,1000079295
04.03.2022,ADULT SOCIAL CARE,THAMES HOMECARE SERVICE LTD,524.16,PHY LTS 65+,HOMECARE - SPOT,2103395771,1000079295
04.03.2022,ADULT SOCIAL CARE,THAMES HOMECARE SERVICE LTD,542.88,PHY LTS 65+,HOMECARE - SPOT,2103395657,1000079295
04.03.2022,ADULT SOCIAL CARE,THAMES HOMECARE SERVICE LTD,547.56,PHY LTS 65+,HOMECARE - SPOT,2103395706,1000079295
04.03.2022,ADULT SOCIAL CARE,THAMES HOMECARE SERVICE LTD,589.68,PHY LTS 65+,HOMECARE - SPOT,2103395764,1000079295
04.03.2022,ADULT SOCIAL CARE,THAMES HOMECARE SERVICE LTD,589.68,PHY LTS 65+,HOMECARE - SPOT,2103395793,1000079295
04.03.2022,ADULT SOCIAL CARE,THAMES HOMECARE SERVICE LTD,589.68,PHY LTS 65+,HOMECARE - SPOT,2103395829,1000079295
04.03.2022,ADULT SOCIAL CARE,THAMES HOMECARE SERVICE LTD,617.76,PHY LTS 65+,HOMECARE - SPOT,2103395699,1000079295
04.03.2022,ADULT SOCIAL CARE,THAMES HOMECARE SERVICE LTD,617.76,PHY LTS 65+,HOMECARE - SPOT,2103395797,1000079295
04.03.2022,ADULT SOCIAL CARE,THAMES HOMECARE SERVICE LTD,627.12,PHY LTS 65+,HOMECARE - SPOT,2103395790,1000079295
04.03.2022,ADULT SOCIAL CARE,THAMES HOMECARE SERVICE LTD,631.8,PHY LTS 65+,HOMECARE - SPOT,2103395677,1000079295
04.03.2022,ADULT SOCIAL CARE,THAMES HOMECARE SERVICE LTD,655.2,PHY LTS 65+,HOMECARE - SPOT,2103395704,1000079295
04.03.2022,ADULT SOCIAL CARE,THAMES HOMECARE SERVICE LTD,655.2,PHY LTS 65+,HOMECARE - SPOT,2103395738,1000079295
04.03.2022,ADULT SOCIAL CARE,THAMES HOMECARE SERVICE LTD,655.2,PHY LTS 65+,HOMECARE - SPOT,2103395756,1000079295
04.03.2022,ADULT SOCIAL CARE,THAMES HOMECARE SERVICE LTD,655.2,PHY LTS 65+,HOMECARE - SPOT,2103395775,1000079295
04.03.2022,ADULT SOCIAL CARE,THAMES HOMECARE SERVICE LTD,655.2,PHY LTS 65+,HOMECARE - SPOT,2103395776,1000079295
04.03.2022,ADULT SOCIAL CARE,THAMES HOMECARE SERVICE LTD,655.2,PHY LTS 65+,HOMECARE - SPOT,2103395798,1000079295
04.03.2022,ADULT SOCIAL CARE,THAMES HOMECARE SERVICE LTD,655.2,PHY LTS 65+,HOMECARE - SPOT,2103395808,1000079295
04.03.2022,ADULT SOCIAL CARE,THAMES HOMECARE SERVICE LTD,659.88,PHY LTS 65+,HOMECARE - SPOT,2103395831,1000079295
04.03.2022,ADULT SOCIAL CARE,THAMES HOMECARE SERVICE LTD,664.56,PHY LTS 65+,HOMECARE - SPOT,2103395673,1000079295
04.03.2022,ADULT SOCIAL CARE,THAMES HOMECARE SERVICE LTD,683.28,PHY LTS 65+,HOMECARE - SPOT,2103395661,1000079295
04.03.2022,ADULT SOCIAL CARE,THAMES HOMECARE SERVICE LTD,692.64,PHY LTS 65+,HOMECARE - SPOT,2103395662,1000079295
04.03.2022,ADULT SOCIAL CARE,THAMES HOMECARE SERVICE LTD,702,PHY LTS 65+,HOMECARE - SPOT,2103395767,1000079295
04.03.2022,ADULT SOCIAL CARE,THAMES HOMECARE SERVICE LTD,706.68,PHY LTS 65+,HOMECARE - SPOT,2103395759,1000079295
04.03.2022,ADULT SOCIAL CARE,THAMES HOMECARE SERVICE LTD,720.72,PHY LTS 65+,HOMECARE - SPOT,2103395740,1000079295
04.03.2022,ADULT SOCIAL CARE,THAMES HOMECARE SERVICE LTD,786.24,PHY LTS 65+,HOMECARE - SPOT,2103395717,1000079295
04.03.2022,ADULT SOCIAL CARE,THAMES HOMECARE SERVICE LTD,786.24,PHY LTS 65+,HOMECARE - SPOT,2103395739,1000079295
04.03.2022,ADULT SOCIAL CARE,THAMES HOMECARE SERVICE LTD,786.24,PHY LTS 65+,HOMECARE - SPOT,2103395773,1000079295
04.03.2022,ADULT SOCIAL CARE,THAMES HOMECARE SERVICE LTD,804.96,PHY LTS 65+,HOMECARE - SPOT,2103395667,1000079295
04.03.2022,ADULT SOCIAL CARE,THAMES HOMECARE SERVICE LTD,804.96,PHY LTS 65+,HOMECARE - SPOT,2103395754,1000079295
04.03.2022,ADULT SOCIAL CARE,THAMES HOMECARE SERVICE LTD,851.76,PHY LTS 65+,HOMECARE - SPOT,2103395741,1000079295
04.03.2022,ADULT SOCIAL CARE,THAMES HOMECARE SERVICE LTD,851.76,PHY LTS 65+,HOMECARE - SPOT,2103395821,1000079295
04.03.2022,ADULT SOCIAL CARE,THAMES HOMECARE SERVICE LTD,936,PHY LTS 65+,HOMECARE - SPOT,2103395655,1000079295
04.03.2022,ADULT SOCIAL CARE,THAMES HOMECARE SERVICE LTD,"1,010.88",PHY LTS 65+,HOMECARE - SPOT,2103395675,1000079295
04.03.2022,ADULT SOCIAL CARE,THAMES HOMECARE SERVICE LTD,"1,076.40",PHY LTS 65+,HOMECARE - SPOT,2103395691,1000079295
04.03.2022,ADULT SOCIAL CARE,AMBIENT SUPPORT LIMITED,-608.8,PHY LTS 65+,"MAND STATUTORY CHARGES, RESIDENTIAL",2103396117,1000088004
04.03.2022,ADULT SOCIAL CARE,AMBIENT SUPPORT LIMITED,-608.8,PHY LTS 65+,"MAND STATUTORY CHARGES, RESIDENTIAL",2103396122,1000088004
04.03.2022,ADULT SOCIAL CARE,AMBIENT SUPPORT LIMITED,-543.57,PHY LTS 65+,"MAND STATUTORY CHARGES, RESIDENTIAL",2103396113,1000088004
04.03.2022,ADULT SOCIAL CARE,AMBIENT SUPPORT LIMITED,"2,142.86",PHY LTS 65+,RESIDENTIAL CARE,2103396114,1000088004
04.03.2022,ADULT SOCIAL CARE,AMBIENT SUPPORT LIMITED,"2,400.00",PHY LTS 65+,RESIDENTIAL CARE,2103396118,1000088004
04.03.2022,ADULT SOCIAL CARE,AMBIENT SUPPORT LIMITED,"2,400.00",PHY LTS 65+,RESIDENTIAL CARE,2103396123,1000088004
04.03.2022,ADULT SOCIAL CARE,METRO HOMECARE LTD,"1,204.50",PHY STS 18-64,HOMECARE - IC,2103395982,1000070695
04.03.2022,ADULT SOCIAL CARE,METRO HOMECARE LTD,"1,204.50",PHY STS 18-64,HOMECARE - IC,2103396037,1000070695
04.03.2022,ADULT SOCIAL CARE,METRO HOMECARE LTD,"1,617.00",PHY STS 18-64,HOMECARE - IC,2103395978,1000070695
04.03.2022,ADULT SOCIAL CARE,METRO HOMECARE LTD,"1,617.00",PHY STS 18-64,HOMECARE - IC,2103396053,1000070695
04.03.2022,ADULT SOCIAL CARE,THAMES HOMECARE SERVICE LTD,252.72,PHY STS 18-64,HOMECARE - IC,2103395687,1000079295
04.03.2022,ADULT SOCIAL CARE,THAMES HOMECARE SERVICE LTD,655.2,PHY STS 18-64,HOMECARE - IC,2103395745,1000079295
04.03.2022,ADULT SOCIAL CARE,LONDON CARE LTD,622.35,PHY STS 65+,HOMECARE - IC,2103395914,1000003398
04.03.2022,ADULT SOCIAL CARE,LONDON CARE LTD,686.89,PHY STS 65+,HOMECARE - IC,2103395894,1000003398
04.03.2022,ADULT SOCIAL CARE,LONDON CARE LTD,968.1,PHY STS 65+,HOMECARE - IC,2103395901,1000003398
04.03.2022,ADULT SOCIAL CARE,BLISSETT CARE LTD,385.56,PHY STS 65+,HOMECARE - IC,2103396076,1000042627
04.03.2022,ADULT SOCIAL CARE,BLISSETT CARE LTD,385.76,PHY STS 65+,HOMECARE - IC,2103396074,1000042627
04.03.2022,ADULT SOCIAL CARE,BLISSETT CARE LTD,578.34,PHY STS 65+,HOMECARE - IC,2103396071,1000042627
04.03.2022,ADULT SOCIAL CARE,METRO HOMECARE LTD,420.75,PHY STS 65+,HOMECARE - IC,2103396050,1000070695
04.03.2022,ADULT SOCIAL CARE,METRO HOMECARE LTD,453.75,PHY STS 65+,HOMECARE - IC,2103396049,1000070695
04.03.2022,ADULT SOCIAL CARE,METRO HOMECARE LTD,519.75,PHY STS 65+,HOMECARE - IC,2103395991,1000070695
04.03.2022,ADULT SOCIAL CARE,METRO HOMECARE LTD,519.75,PHY STS 65+,HOMECARE - IC,2103396041,1000070695
04.03.2022,ADULT SOCIAL CARE,METRO HOMECARE LTD,519.75,PHY STS 65+,HOMECARE - IC,2103396048,1000070695
04.03.2022,ADULT SOCIAL CARE,METRO HOMECARE LTD,552.75,PHY STS 65+,HOMECARE - IC,2103395969,1000070695
04.03.2022,ADULT SOCIAL CARE,METRO HOMECARE LTD,709.5,PHY STS 65+,HOMECARE - IC,2103396032,1000070695
04.03.2022,ADULT SOCIAL CARE,METRO HOMECARE LTD,796.22,PHY STS 65+,HOMECARE - IC,2103395986,1000070695
04.03.2022,ADULT SOCIAL CARE,METRO HOMECARE LTD,808.5,PHY STS 65+,HOMECARE - IC,2103396024,1000070695
04.03.2022,ADULT SOCIAL CARE,THAMES HOMECARE SERVICE LTD,276.12,PHY STS 65+,HOMECARE - IC,2103395761,1000079295
04.03.2022,ADULT SOCIAL CARE,THAMES HOMECARE SERVICE LTD,327.6,PHY STS 65+,HOMECARE - IC,2103395827,1000079295
04.03.2022,ADULT SOCIAL CARE,THAMES HOMECARE SERVICE LTD,397.8,PHY STS 65+,HOMECARE - IC,2103395730,1000079295
04.03.2022,ADULT SOCIAL CARE,THAMES HOMECARE SERVICE LTD,458.64,PHY STS 65+,HOMECARE - IC,2103395791,1000079295
04.03.2022,ADULT SOCIAL CARE,THAMES HOMECARE SERVICE LTD,655.2,PHY STS 65+,HOMECARE - IC,2103395728,1000079295
04.03.2022,ADULT SOCIAL CARE,THAMES HOMECARE SERVICE LTD,917.28,PHY STS 65+,HOMECARE - IC,2103395810,1000079295
04.03.2022,ADULT SOCIAL CARE,THAMES HOMECARE SERVICE LTD,313.56,SEN LTS 65+,HOMECARE - SPOT,2103395672,1000079295
04.03.2022,ADULT SOCIAL CARE,SURREY DOCKS FARM PROVIDENT SOCIETY,500,SOCIAL ISOLATION,DAYCARE,2103396082,1000000958
04.03.2022,ADULT SOCIAL CARE,LONDON CARE LTD,475.45,SOCIAL ISOLATION,HOMECARE - C&V,2103395867,1000003398
04.03.2022,ADULT SOCIAL CARE,METRO HOMECARE LTD,400.13,SOCIAL ISOLATION,HOMECARE - SPOT,2103396045,1000070695
04.03.2022,ADULT SOCIAL CARE,METRO HOMECARE LTD,420.75,SOCIAL ISOLATION,HOMECARE - SPOT,2103395977,1000070695
04.03.2022,ADULT SOCIAL CARE,KAIROS COMMUNITY TRUST,"3,201.43",SUB LTS 18-64,DAYCARE,2103395923,1000025479
04.03.2022,ASSET MANAGEMENT,PROPERTY FACILITIES GROUP LTD,297.13,DISREPAIR,PAYMENTS FOR LEGAL SERVICES,5902513593,1000063713
04.03.2022,ASSET MANAGEMENT,CHESHIRE ESTATE AND LEGAL LTD,833.33,DISREPAIR,PAYMENTS FOR LEGAL SERVICES,2103395639,1000081908
04.03.2022,ASSET MANAGEMENT,CHESHIRE ESTATE AND LEGAL LTD,"11,461.55",DISREPAIR,PAYMENTS FOR LEGAL SERVICES,2103395642,1000081908
04.03.2022,ASSET MANAGEMENT,SATCHELL MORAN SOLICITORS LTD,"7,000.00",DISREPAIR,PAYMENTS FOR LEGAL SERVICES,2103395634,1000087281
04.03.2022,ASSET MANAGEMENT,JUDGE AND PRIESTLEY SOLICITORS,"1,900.00",DISREPAIR,PAYMENTS FOR LEGAL SERVICES,5902513599,1472217
04.03.2022,ASSET MANAGEMENT,ANTONY HODARI  SOLICITORS,"2,916.67",DISREPAIR,PAYMENTS FOR LEGAL SERVICES,2103395633,1000031040
04.03.2022,ASSET MANAGEMENT,ANTHONY GOLD SOLICITORS,"1,666.67",DISREPAIR,PAYMENTS FOR LEGAL SERVICES,2103395635,1000050198
04.03.2022,ASSET MANAGEMENT,MLA SOLICITORS,"2,500.00",DISREPAIR,PAYMENTS FOR LEGAL SERVICES,2103395637,1000079716
04.03.2022,ASSET MANAGEMENT,MATRIX SOLICITORS,252,DISREPAIR,PAYMENTS FOR LEGAL SERVICES,2103395631,1000082248
04.03.2022,ASSET MANAGEMENT,BOND TURNER  SOLICITORS,620.91,DISREPAIR,PAYMENTS FOR LEGAL SERVICES,2103395632,1000085362
04.03.2022,ASSET MANAGEMENT,BOND TURNER  SOLICITORS,"3,333.33",DISREPAIR,PAYMENTS FOR LEGAL SERVICES,2103395638,1000085362
04.03.2022,ASSET MANAGEMENT,MJV & CO  SOLICITORS LTD,900,DISREPAIR,PAYMENTS FOR LEGAL SERVICES,2103395636,1000086326
04.03.2022,ASSET MANAGEMENT,MJV & CO  SOLICITORS LTD,"3,833.33",DISREPAIR,PAYMENTS FOR LEGAL SERVICES,2103395640,1000086326
04.03.2022,ASSET MANAGEMENT,BENTLEY STERLING  & CO SOLICITORS,"3,458.33",DISREPAIR,PAYMENTS FOR LEGAL SERVICES,2103395641,1000087657
04.03.2022,ASSET MANAGEMENT HGF,MANUTAN UK LTD,622,160 TOOLEY ST.,EQUIPMENT PURCHASE & REPAIR,5902513514,1000005003
04.03.2022,CHIEF EXECUTIVE,PROJECT CENTRE LTD,"3,250.00",CAPITAL PS (REGEN),CONSTR'N SUB CONTRACT - NON CERTIFICATED,5902513129,1000072621
04.03.2022,CHIEF EXECUTIVE,BL CW HOLDINGS LTD,"18,933.99",CAPITAL PS (REGEN),CONSTRUCTION FEES  - EXTERNAL,5902513485,1000086680
04.03.2022,CHIEF EXECUTIVE,BL CW HOLDINGS LTD,"631,132.68",CAPITAL PS (REGEN),CONSTRUCTION FEES  - EXTERNAL,5902513482,1000086680
04.03.2022,CHIEF EXECUTIVE,AT YOUR BEAT LTD,"2,470.00",CAPITAL PS (REGEN),CONSTRUCTION FEES  - EXTERNAL,5902513500,1000087974
04.03.2022,CHIEF EXECUTIVE,LANDOLT & BROWN,"45,000.00",CAPITAL PS (REGEN),CONSTRUCTION FEES - ARCHITECT,5902513542,1000069588
04.03.2022,CHIEF EXECUTIVE,STANDAGE & CO LTD,"11,210.81",CAPITAL PS (REGEN),CONSTRUCTION MAIN CONTRACT -CERTIFICATED,5902512890,11223389
04.03.2022,CHIEF EXECUTIVE,STANDAGE & CO LTD,"18,642.54",CAPITAL PS (REGEN),CONSTRUCTION MAIN CONTRACT -CERTIFICATED,5902512890,11223389
04.03.2022,CHIEF EXECUTIVE,STANDAGE & CO LTD,"23,071.81",CAPITAL PS (REGEN),CONSTRUCTION MAIN CONTRACT -CERTIFICATED,5902512890,11223389
04.03.2022,CHIEF EXECUTIVE,ARTHUR J GALLAGHER INSURANCE BROKER,"13,776.00",CAPITAL PS (REGEN),CONSTRUCTION SITE COSTS,5902513565,1000082644
04.03.2022,CHIEF EXECUTIVE,LANDOLT & BROWN,"6,665.00",CAPITAL PS (REGEN),LAND & BUILDINGS ACQUISITION FEES,5902513496,1000069588
04.03.2022,CHIEF EXECUTIVE'S OFFICE,UNIVERSITY OF THE ARTS LONDON,"7,700.00",ADDITIONAL RESTRICTIONS GRANT,GRANTS,5902512677,11042483
04.03.2022,CHILDREN AND ADULT,STONEGROVE LIMITED,"3,592.00",CAPITAL PS (SOC SERV),CONSTRUCTION MAIN CONTRACT,2103396127,3000001525
04.03.2022,CHILDREN AND FAMILIES,RYE OAK PRIMARY SCHOOL,"31,839.70",CHILD & FAM CENTRES,EXTERNAL AGENCIES AND BODIES,5902513479,5001000059
04.03.2022,CHILDREN AND FAMILIES,CAMERON & COOPER LIMITED,"23,440.00",CHILDREN�S RESID,RESIDENTIAL CARE,2103395837,1000087598
04.03.2022,CHILDREN AND FAMILIES,REDACTED PERSONAL DATA,750,FOSTERING ALLOWANCES,PAYMENTS TO CARERS,REDACTED,REDACTED
04.03.2022,CHILDREN AND FAMILIES,FIVE RIVERS CHILD CARE LTD,"3,230.80",FRIENDS & FAMILY FOSTERING,EXTERNAL AGENCIES AND BODIES,2103395959,1000018792
04.03.2022,CHILDREN AND FAMILIES,FIVE RIVERS CHILD CARE LTD,"3,230.80",FRIENDS & FAMILY FOSTERING,EXTERNAL AGENCIES AND BODIES,2103395960,1000018792
04.03.2022,CHILDREN AND FAMILIES,GREATER LONDON FOSTERING,"3,192.00",FRIENDS & FAMILY FOSTERING,EXTERNAL AGENCIES AND BODIES,2103395951,1000029184
04.03.2022,CHILDREN AND FAMILIES,GREATER LONDON FOSTERING,"3,396.40",FRIENDS & FAMILY FOSTERING,EXTERNAL AGENCIES AND BODIES,2103395956,1000029184
04.03.2022,CHILDREN AND FAMILIES,GREATER LONDON FOSTERING,"3,396.40",FRIENDS & FAMILY FOSTERING,EXTERNAL AGENCIES AND BODIES,2103395958,1000029184
04.03.2022,CHILDREN AND FAMILIES,GREATER LONDON FOSTERING,"4,195.80",FRIENDS & FAMILY FOSTERING,EXTERNAL AGENCIES AND BODIES,2103395957,1000029184
04.03.2022,CHILDREN AND FAMILIES,GREATER LONDON FOSTERING,"4,614.40",FRIENDS & FAMILY FOSTERING,EXTERNAL AGENCIES AND BODIES,2103395954,1000029184
04.03.2022,CHILDREN AND FAMILIES,CHILDREN OF COLOUR,"3,935.71",FRIENDS & FAMILY FOSTERING,EXTERNAL AGENCIES AND BODIES,2103395950,1000044955
04.03.2022,CHILDREN AND FAMILIES,CARING HEARTS FOSTERING,"3,200.12",FRIENDS & FAMILY FOSTERING,EXTERNAL AGENCIES AND BODIES,2103395952,1000087065
04.03.2022,CHILDREN AND FAMILIES,CARING HEARTS FOSTERING,"3,200.12",FRIENDS & FAMILY FOSTERING,EXTERNAL AGENCIES AND BODIES,2103395955,1000087065
04.03.2022,CHILDREN AND FAMILIES,SILVER LINING FOSTERING LTD,"3,100.00",FRIENDS & FAMILY FOSTERING,EXTERNAL AGENCIES AND BODIES,2103395953,1000087318
04.03.2022,CHILDREN AND FAMILIES,REDACTED PERSONAL DATA,480,FRIENDS &FAMILY FOST,PAYMENTS TO CARERS,REDACTED,REDACTED
04.03.2022,CHILDREN AND FAMILIES,CREATING LIFESTYLES LTD,"1,500.00",SEMI-IND CARELEAVERS,EXTERNAL AGENCIES AND BODIES,2103395931,1000075830
04.03.2022,CHILDREN AND FAMILIES,CREATING LIFESTYLES LTD,"1,500.00",SEMI-IND CARELEAVERS,EXTERNAL AGENCIES AND BODIES,2103395932,1000075830
04.03.2022,CHILDREN AND FAMILIES,CREATING LIFESTYLES LTD,"1,980.00",SEMI-IND CARELEAVERS,EXTERNAL AGENCIES AND BODIES,2103395929,1000075830
04.03.2022,CHILDREN AND FAMILIES,CREATING LIFESTYLES LTD,"1,980.00",SEMI-IND CARELEAVERS,EXTERNAL AGENCIES AND BODIES,2103395933,1000075830
04.03.2022,CHILDREN AND FAMILIES,CREATING LIFESTYLES LTD,"1,980.00",SEMI-IND CARELEAVERS,EXTERNAL AGENCIES AND BODIES,2103395934,1000075830
04.03.2022,CHILDREN AND FAMILIES,CREATING LIFESTYLES LTD,"1,980.00",SEMI-IND CARELEAVERS,EXTERNAL AGENCIES AND BODIES,2103395940,1000075830
04.03.2022,CHILDREN AND FAMILIES,NETPEX LTD CORPORATE SERVICES,"2,299.98",SEMI-IND CARELEAVERS,EXTERNAL AGENCIES AND BODIES,2103395943,1000076073
04.03.2022,CHILDREN AND FAMILIES,NETPEX LTD CORPORATE SERVICES,"2,399.99",SEMI-IND CARELEAVERS,EXTERNAL AGENCIES AND BODIES,2103395938,1000076073
04.03.2022,CHILDREN AND FAMILIES,NETPEX LTD CORPORATE SERVICES,"2,500.12",SEMI-IND CARELEAVERS,EXTERNAL AGENCIES AND BODIES,2103395944,1000076073
04.03.2022,CHILDREN AND FAMILIES,NETPEX LTD CORPORATE SERVICES,"2,523.98",SEMI-IND CARELEAVERS,EXTERNAL AGENCIES AND BODIES,2103395946,1000076073
04.03.2022,CHILDREN AND FAMILIES,TRANSFORMING LIVES COMPANY LTD,"3,377.92",SEMI-IND CARELEAVERS,EXTERNAL AGENCIES AND BODIES,2103395941,1000083352
04.03.2022,CHILDREN AND FAMILIES,TRANSFORMING LIVES COMPANY LTD,"3,747.80",SEMI-IND CARELEAVERS,EXTERNAL AGENCIES AND BODIES,2103395930,1000083352
04.03.2022,CHILDREN AND FAMILIES,STONEWALL HOUSING ASSOCIATION,"3,432.00",SEMI-IND CARELEAVERS,EXTERNAL AGENCIES AND BODIES,2103395937,1000085373
04.03.2022,CHILDREN AND FAMILIES,REDACTED PERSONAL DATA,350,SFS MGMT & SUPPORT,EXTERNAL AGENCIES AND BODIES,REDACTED,REDACTED
04.03.2022,CHILDREN AND FAMILIES,REDACTED PERSONAL DATA,"1,960.00",SPECIAL GUARDIANSHIP,EXTERNAL AGENCIES AND BODIES,REDACTED,REDACTED
04.03.2022,CHILDREN AND FAMILIES,REDACTED PERSONAL DATA,"-14,161.11",SPECIAL GUARDIANSHIP,PAYMENTS TO CARERS,REDACTED,REDACTED
04.03.2022,CHILDREN AND FAMILIES,REDACTED PERSONAL DATA,"-1,957.23",SPECIAL GUARDIANSHIP,PAYMENTS TO CARERS,REDACTED,REDACTED
04.03.2022,CHILDREN AND FAMILIES,REDACTED PERSONAL DATA,"2,061.95",SPECIAL GUARDIANSHIP,PAYMENTS TO CARERS,REDACTED,REDACTED
04.03.2022,CHILDREN AND FAMILIES,REDACTED PERSONAL DATA,"14,941.63",SPECIAL GUARDIANSHIP,PAYMENTS TO CARERS,REDACTED,REDACTED
04.03.2022,CHILDREN AND FAMILIES,GREATER LONDON FOSTERING,"1,699.88",STAYPUT- FOST CARERS,EXTERNAL AGENCIES AND BODIES,2103395939,1000029184
04.03.2022,CHILDREN AND FAMILIES,GREATER LONDON FOSTERING,"2,092.36",STAYPUT- FOST CARERS,EXTERNAL AGENCIES AND BODIES,2103395925,1000029184
04.03.2022,CHILDREN AND FAMILIES,REDACTED PERSONAL DATA,"1,178.57",STAYPUT- FOST CARERS,PAYMENTS TO CARERS,REDACTED,REDACTED
04.03.2022,CHILDREN AND FAMILIES,ZFA ACCOMMODATION LTD,"1,767.00",TEMP ACCOM FOR IH,EXTERNAL AGENCIES AND BODIES,5902513494,1000082620
04.03.2022,CHILDREN AND FAMILIES,STEP AHEAD SERVICES LTD,"1,920.00",UASC CARELEAVERS,EXTERNAL AGENCIES AND BODIES,2103395928,1000036544
04.03.2022,CHILDREN AND FAMILIES,OWNLIFE LTD,"2,520.00",UASC CARELEAVERS,EXTERNAL AGENCIES AND BODIES,2103395942,1000056219
04.03.2022,CHILDREN AND FAMILIES,CREATING LIFESTYLES LTD,"1,800.00",UASC CARELEAVERS,EXTERNAL AGENCIES AND BODIES,2103395935,1000075830
04.03.2022,CHILDREN AND FAMILIES,NETPEX LTD CORPORATE SERVICES,"1,960.00",UASC CARELEAVERS,EXTERNAL AGENCIES AND BODIES,2103395945,1000076073
04.03.2022,CHILDREN AND FAMILIES,CREATING LIFESTYLES LTD,"1,780.00",UASC LAC 16-17,EXTERNAL AGENCIES AND BODIES,2103395949,1000075830
04.03.2022,CHILDREN AND FAMILIES,CREATING LIFESTYLES LTD,260,UASC LAC 16-17,OTHER PAYMENTS FOR CLIENTS,2103395948,1000075830
04.03.2022,COMMUNITIES,CHANGE GROW LIVE SERVICES LTD,"285,060.00",ADULT SM SERVICE,OTHER CONTRACTORS,5902513398,1000082721
04.03.2022,COMMUNITIES,LONDON CARE LTD,442.56,NO RECOURSE TO PUBLIC FUNDS,HOMECARE - C&V,2103395839,1000003398
04.03.2022,COMMUNITIES,LONDON CARE LTD,"1,202.90",NO RECOURSE TO PUBLIC FUNDS,HOMECARE - C&V,2103395838,1000003398
04.03.2022,COMMUNITIES,BLISSETT CARE LTD,"1,468.80",NO RECOURSE TO PUBLIC FUNDS,HOMECARE - C&V,2103396077,1000042627
04.03.2022,COMMUNITIES,METRO HOMECARE LTD,412.5,NO RECOURSE TO PUBLIC FUNDS,HOMECARE - C&V,2103396012,1000070695
04.03.2022,COMMUNITIES,METRO HOMECARE LTD,412.5,NO RECOURSE TO PUBLIC FUNDS,HOMECARE - C&V,2103396039,1000070695
04.03.2022,COMMUNITIES,THAMES HOMECARE SERVICE LTD,421.2,NO RECOURSE TO PUBLIC FUNDS,HOMECARE - C&V,2103395674,1000079295
04.03.2022,COMMUNITIES HRA,LEATHERMARKET JMB HOUSING,375,LEATHERMARKET CO-OP,M&M ALLOWANCE CO-OPS,5902512410,11182872
04.03.2022,COMMUNITIES HRA,LEATHERMARKET JMB HOUSING,400,LEATHERMARKET CO-OP,M&M ALLOWANCE CO-OPS,5902512410,11182872
04.03.2022,CUSTOMER EXPERIENCE HGF,FORWARD VENDING AND CATERING LTD,827.8,CORONER'S,CATERING MATERIALS & SUPPLIES,5902513372,1000048381
04.03.2022,CUSTOMER EXPERIENCE HGF,SG PATH LTD,415.8,CORONER'S,PROFESSIONAL FEES,5902513546,1000077883
04.03.2022,CUSTOMER EXPERIENCE HGF,SG PATH LTD,415.8,CORONER'S,PROFESSIONAL FEES,5902513556,1000077883
04.03.2022,CUSTOMER EXPERIENCE HGF,SG PATH LTD,415.8,CORONER'S,PROFESSIONAL FEES,5902513559,1000077883
04.03.2022,CUSTOMER EXPERIENCE HGF,IMPERIAL COLLEGE PROJECTS LTD,292,CORONER'S,PROFESSIONAL FEES,5902513595,1000080106
04.03.2022,CUSTOMER EXPERIENCE HGF,IMPERIAL COLLEGE PROJECTS LTD,336,CORONER'S,PROFESSIONAL FEES,5902513571,1000080106
04.03.2022,CUSTOMER EXPERIENCE HGF,IMPERIAL COLLEGE PROJECTS LTD,344,CORONER'S,PROFESSIONAL FEES,5902513580,1000080106
04.03.2022,CUSTOMER EXPERIENCE HGF,IMPERIAL COLLEGE PROJECTS LTD,356,CORONER'S,PROFESSIONAL FEES,5902513591,1000080106
04.03.2022,CUSTOMER EXPERIENCE HGF,IMPERIAL COLLEGE PROJECTS LTD,376,CORONER'S,PROFESSIONAL FEES,5902513575,1000080106
04.03.2022,CUSTOMER EXPERIENCE HGF,IMPERIAL COLLEGE PROJECTS LTD,428,CORONER'S,PROFESSIONAL FEES,5902513589,1000080106
04.03.2022,CUSTOMER EXPERIENCE HGF,IMPERIAL COLLEGE PROJECTS LTD,440,CORONER'S,PROFESSIONAL FEES,5902513596,1000080106
04.03.2022,CUSTOMER EXPERIENCE HGF,IMPERIAL COLLEGE PROJECTS LTD,452,CORONER'S,PROFESSIONAL FEES,5902513572,1000080106
04.03.2022,CUSTOMER EXPERIENCE HGF,IMPERIAL COLLEGE PROJECTS LTD,472,CORONER'S,PROFESSIONAL FEES,5902513579,1000080106
04.03.2022,CUSTOMER EXPERIENCE HGF,NRC PATHOLOGY SERVICES LIMITED,360,CORONER'S,PROFESSIONAL FEES,5902513603,1000085798
04.03.2022,CUSTOMER EXPERIENCE HGF,NRC PATHOLOGY SERVICES LIMITED,600,CORONER'S,PROFESSIONAL FEES,5902513605,1000085798
04.03.2022,CUSTOMER EXPERIENCE HGF,TYNETEC LEGRAND LTD,"1,542.41",LAMBETH RESPONSE,EQUIPMENT PURCHASE & REPAIR,5902513402,1000066068
04.03.2022,DSG,SPA EDUCATION TRUST,"44,794.49",AC & FREE - MSTREAM,STATEMENTED FEES,2103395604,1000081600
04.03.2022,DSG,SPA EDUCATION TRUST,"92,196.44",AC & FREE - MSTREAM,STATEMENTED FEES,2103395605,1000081600
04.03.2022,DSG,FLEET TUTORS,657,AP & HOSPITAL SCHLS,STATEMENTED FEES,2103395596,1000044820
04.03.2022,DSG,RIVERSTON SCHOOL,"10,991.50",INDEP MAINSTREAM,STATEMENTED FEES,2103395600,11213696
04.03.2022,DSG,RIVERSTON SCHOOL,"11,056.50",INDEP MAINSTREAM,STATEMENTED FEES,2103395602,11213696
04.03.2022,DSG,RIVERSTON SCHOOL,"11,056.50",INDEP MAINSTREAM,STATEMENTED FEES,2103395603,11213696
04.03.2022,DSG,RIVERSTON SCHOOL,"11,686.50",INDEP MAINSTREAM,STATEMENTED FEES,2103395599,11213696
04.03.2022,DSG,RIVERSTON SCHOOL,"13,453.50",INDEP MAINSTREAM,STATEMENTED FEES,2103395598,11213696
04.03.2022,DSG,RIVERSTON SCHOOL,"14,018.50",INDEP MAINSTREAM,STATEMENTED FEES,2103395601,11213696
04.03.2022,DSG,RIVERSTON SCHOOL,"16,726.50",INDEP MAINSTREAM,STATEMENTED FEES,2103395597,11213696
04.03.2022,DSG,HEBER PRIMARY SCHOOL,"4,490.00",SEN INCLUSION TEAM,CONSULTANTS SERVICES,2103395607,5001000035
04.03.2022,DSG,HEBER PRIMARY SCHOOL,"4,939.00",SEN INCLUSION TEAM,CONSULTANTS SERVICES,2103395606,5001000035
04.03.2022,DSG,HEBER PRIMARY SCHOOL,"6,735.00",SEN INCLUSION TEAM,CONSULTANTS SERVICES,2103395608,5001000035
04.03.2022,EDUCATION,SIREN FILMS LTD,399,EARLY YEARS IMPROVEMENT,RECHARGE FROM EDUCATION,5902512701,1000059660
04.03.2022,EDUCATION,LONDON GRID FOR LEARNING TRUST,"81,939.74",SCHOOLS WEBSITE,COMPUTER CONSUMABLES,5902513384,1000066669
04.03.2022,EMPLOYEE EXPERIENCE,WORKING FAMILIES,"3,675.00",CONSULTANCY,SUBSCRIPTIONS,5902512872,1000057414
04.03.2022,ENVIRONMENT AND LEISURE,CYCLEHOOP LTD,"9,985.33",CAPITAL PS (LEISURE),CONSTRUCTION,5902512416,1000057894
04.03.2022,ENVIRONMENT AND LEISURE,PROJECT CENTRE LTD,"4,875.00",CAPITAL PS (LEISURE),CONSTRUCTION,5902513425,1000072621
04.03.2022,ENVIRONMENT AND LEISURE,F M CONWAY LTD,"1,200.37",CAPITAL PS (LEISURE),CONSTRUCTION FEES  - EXTERNAL,5902513397,1000002412
04.03.2022,ENVIRONMENT AND LEISURE,WF EDUCATION GROUP LIMITED,309,CAPITAL PS (LEISURE),"PLANT, MACHINERY & EQUIPMENT ACQUISITION",5902513437,1000086286
04.03.2022,ENVIRONMENT AND LEISURE,KENT COUNTY COUNCIL - LASER,"1,255.37",SANDGATE STREET,ELECTRICITY,5902513471,1000012926
04.03.2022,ENVIRONMENT AND LEISURE,KENT COUNTY COUNCIL - LASER,"3,852.36",SANDGATE STREET,ELECTRICITY,5902513470,1000012926
04.03.2022,ENVIRONMENT AND LEISURE,SSE SOUTHERN ELECTRIC,"2,811.33",SANDGATE STREET,ELECTRICITY,5902513382,1000085403
04.03.2022,ENVIRONMENT DIRECTORATE,KENT COUNTY COUNCIL - LASER,999.89,BUSINESS CORE,GAS,5902513511,1000012926
04.03.2022,ENVIRONMENT DIRECTORATE,MARSTON GROUP LTD,279,CAR LEASING CTRL A/C,PARKING CHARGES,5902513513,1000011313
04.03.2022,ENVIRONMENT DIRECTORATE,LEEDS COMMERCIAL LIMITED T/A LC VEHICLE HIRE,900,COMMERCIAL VEH CTRL A/C,HIRED VEHICLES,5902513447,1000082730
04.03.2022,ENVIRONMENT DIRECTORATE,LEEDS COMMERCIAL LIMITED T/A LC VEHICLE HIRE,900,COMMERCIAL VEH CTRL A/C,HIRED VEHICLES,5902513448,1000082730
04.03.2022,ENVIRONMENT DIRECTORATE,LEEDS COMMERCIAL LIMITED T/A LC VEHICLE HIRE,"2,500.00",COMMERCIAL VEH CTRL A/C,HIRED VEHICLES,5902513445,1000082730
04.03.2022,ENVIRONMENT DIRECTORATE,LEEDS COMMERCIAL LIMITED T/A LC VEHICLE HIRE,"2,600.00",COMMERCIAL VEH CTRL A/C,HIRED VEHICLES,5902513444,1000082730
04.03.2022,ENVIRONMENT DIRECTORATE,MARSTON GROUP LTD,279,COMMERCIAL VEH CTRL A/C,PARKING CHARGES,5902513516,1000011313
04.03.2022,ENVIRONMENT DIRECTORATE,TRAVIS PERKINS TRADING COMPANY LTD,"2,691.00",ENGINEERING CRAFTS,MATERIALS,5902513457,1514319
04.03.2022,ENVIRONMENT DIRECTORATE,GREENHAM TRADING LTD,298.62,ESTATE CLEANING-GENERAL,MATERIALS,5902513547,1000006610
04.03.2022,ENVIRONMENT DIRECTORATE,GREENHAM TRADING LTD,"2,572.27",ESTATE CLEANING-GENERAL,MATERIALS,5902513551,1000006610
04.03.2022,ENVIRONMENT DIRECTORATE,SOUTHWARK NEWSPAPER LTD,"1,008.00",HIGHWAYS DEVELOPMENT,MARKETING & PUBLICITY SERVICES,5902513476,1556957
04.03.2022,ENVIRONMENT DIRECTORATE,SOUTHWARK NEWSPAPER LTD,"2,844.00",HIGHWAYS DEVELOPMENT,MARKETING & PUBLICITY SERVICES,5902513481,1556957
04.03.2022,ENVIRONMENT DIRECTORATE,BARRETTINE ENVIRONMENTAL HEALTH,848.92,PEST CONTROL,MATERIALS,5902513244,1000050556
04.03.2022,ENVIRONMENT DIRECTORATE,CABLE TEST LTD,894.32,PUBLIC LIGHTING,OTHER CONTRACTORS,5902513342,1000079183
04.03.2022,ENVIRONMENT DIRECTORATE,CABLE TEST LTD,"2,160.91",PUBLIC LIGHTING,OTHER CONTRACTORS,5902513339,1000079183
04.03.2022,ENVIRONMENT DIRECTORATE,CABLE TEST LTD,"2,785.71",PUBLIC LIGHTING,OTHER CONTRACTORS,5902513340,1000079183
04.03.2022,ENVIRONMENT DIRECTORATE,CABLE TEST LTD,"7,766.50",PUBLIC LIGHTING,OTHER CONTRACTORS,5902513344,1000079183
04.03.2022,ENVIRONMENT DIRECTORATE,SOUTHWARK NEWSPAPER LTD,"4,276.00",RESIDENTIAL SERVICES,MARKETING & PUBLICITY SERVICES,5902513493,1556957
04.03.2022,ENVIRONMENT DIRECTORATE,SOUTHWARK NEWSPAPER LTD,"4,276.00",RESIDENTIAL SERVICES,MARKETING & PUBLICITY SERVICES,5902513506,1556957
04.03.2022,ENVIRONMENT DIRECTORATE,SHARPE PRITCHARD LLP,"8,272.00",SUSTAINABLE WASTE OVERHEADS,PAYMENTS FOR LEGAL SERVICES,5902513600,1790085
04.03.2022,ENVIRONMENT DIRECTORATE,VEOLIA ES SOUTHWARK LTD,"2,118,584.89",WASTE PFI,PFI/PPP PAYMENTS,5902513587,1000056979
04.03.2022,F & C S EXCLUDING CORPORATE BUDGETS,IEG4 LIMITED,"10,000.00",ADMINISTRATIVE SUPPORT,SOFTWARE,5902513243,1000083899
04.03.2022,F & C S EXCLUDING CORPORATE BUDGETS,IEG4 LIMITED,"22,500.00",ADMINISTRATIVE SUPPORT,SOFTWARE,5902512639,1000083899
04.03.2022,F & C S EXCLUDING CORPORATE BUDGETS,BUDGET CARPETS,337.5,SESS,OTHER PAYMENTS FOR CLIENTS,5902513003,11319076
04.03.2022,F & C S EXCLUDING CORPORATE BUDGETS,REDACTED PERSONAL DATA,500,SESS,OTHER PAYMENTS FOR CLIENTS,REDACTED,REDACTED
04.03.2022,F & C S EXCLUDING CORPORATE BUDGETS,REDACTED PERSONAL DATA,500,SESS,OTHER PAYMENTS FOR CLIENTS,REDACTED,REDACTED
04.03.2022,F & C S EXCLUDING CORPORATE BUDGETS,REDACTED PERSONAL DATA,500,SESS,OTHER PAYMENTS FOR CLIENTS,REDACTED,REDACTED
04.03.2022,F & C S EXCLUDING CORPORATE BUDGETS,REDACTED PERSONAL DATA,500,SESS,OTHER PAYMENTS FOR CLIENTS,REDACTED,REDACTED
04.03.2022,F & C S EXCLUDING CORPORATE BUDGETS,REDACTED PERSONAL DATA,500,SESS,OTHER PAYMENTS FOR CLIENTS,REDACTED,REDACTED
04.03.2022,F & C S EXCLUDING CORPORATE BUDGETS,REDACTED PERSONAL DATA,500,SESS,OTHER PAYMENTS FOR CLIENTS,REDACTED,REDACTED
04.03.2022,F & C S EXCLUDING CORPORATE BUDGETS,REDACTED PERSONAL DATA,500,SESS,OTHER PAYMENTS FOR CLIENTS,REDACTED,REDACTED
04.03.2022,F & C S EXCLUDING CORPORATE BUDGETS,REDACTED PERSONAL DATA,500,SESS,OTHER PAYMENTS FOR CLIENTS,REDACTED,REDACTED
04.03.2022,F & C S EXCLUDING CORPORATE BUDGETS,REDACTED PERSONAL DATA,500,SESS,OTHER PAYMENTS FOR CLIENTS,REDACTED,REDACTED
04.03.2022,F & C S EXCLUDING CORPORATE BUDGETS,REDACTED PERSONAL DATA,500,SESS,OTHER PAYMENTS FOR CLIENTS,REDACTED,REDACTED
04.03.2022,F & C S EXCLUDING CORPORATE BUDGETS,REDACTED PERSONAL DATA,500,SESS,OTHER PAYMENTS FOR CLIENTS,REDACTED,REDACTED
04.03.2022,F & C S EXCLUDING CORPORATE BUDGETS,REDACTED PERSONAL DATA,500,SESS,OTHER PAYMENTS FOR CLIENTS,REDACTED,REDACTED
04.03.2022,F & C S EXCLUDING CORPORATE BUDGETS,REDACTED PERSONAL DATA,500,SESS,OTHER PAYMENTS FOR CLIENTS,REDACTED,REDACTED
04.03.2022,F & C S EXCLUDING CORPORATE BUDGETS,REDACTED PERSONAL DATA,500,SESS,OTHER PAYMENTS FOR CLIENTS,REDACTED,REDACTED
04.03.2022,F & C S EXCLUDING CORPORATE BUDGETS,REDACTED PERSONAL DATA,500,SESS,OTHER PAYMENTS FOR CLIENTS,REDACTED,REDACTED
04.03.2022,F & C S EXCLUDING CORPORATE BUDGETS,REDACTED PERSONAL DATA,500,SESS,OTHER PAYMENTS FOR CLIENTS,REDACTED,REDACTED
04.03.2022,HOUSING GENERAL FUND,L H BRIDGE LTD,"9,497.00",CAPITAL PS (HOUSING GF),CAPITAL GRANTS,5902513517,1000056928
04.03.2022,HOUSING HRA,L-P HERITAGE LLP T/A L-P ARCHAEOLOGY,625,CAPITAL PS (HRA),CONSTRUCTION FEES,5902513431,1000055566
04.03.2022,HOUSING HRA,POTTER RAPER LTD,"7,506.69",CAPITAL PS (HRA),CONSTRUCTION FEES  - EXTERNAL,5902513390,1009369
04.03.2022,HOUSING HRA,CALFORD SEADEN LLP,"4,910.11",CAPITAL PS (HRA),CONSTRUCTION FEES  - EXTERNAL,5902513602,1061592
04.03.2022,HOUSING HRA,OPEN COMMUNITIES LTD,367.5,CAPITAL PS (HRA),CONSTRUCTION FEES  - EXTERNAL,5902513583,1000065800
04.03.2022,HOUSING HRA,OPEN COMMUNITIES LTD,698.25,CAPITAL PS (HRA),CONSTRUCTION FEES  - EXTERNAL,5902513581,1000065800
04.03.2022,HOUSING HRA,OPEN COMMUNITIES LTD,"2,793.00",CAPITAL PS (HRA),CONSTRUCTION FEES  - EXTERNAL,5902513584,1000065800
04.03.2022,HOUSING HRA,OVE ARUP & PARTNERS LTD,"5,000.00",CAPITAL PS (HRA),CONSTRUCTION FEES  - EXTERNAL,5902513578,1000066606
04.03.2022,HOUSING HRA,HERITAGE PLANNING SERVICES LTD,"1,000.00",CAPITAL PS (HRA),CONSTRUCTION FEES  - EXTERNAL,5902513352,1000087696
04.03.2022,HOUSING HRA,HERITAGE PLANNING SERVICES LTD,"1,000.00",CAPITAL PS (HRA),CONSTRUCTION FEES  - EXTERNAL,5902513352,1000087696
04.03.2022,HOUSING HRA,ENGIE REGENERATION (APOLLO) LTD,"194,312.31",CAPITAL PS (HRA),CONSTRUCTION MAIN CONTRACT -CERTIFICATED,2103395624,4000449
04.03.2022,HOUSING HRA,SALTASH ENTERPRISES LTD,"104,434.92",CAPITAL PS (HRA),CONSTRUCTION MAIN CONTRACT -CERTIFICATED,2103396124,4013605
04.03.2022,HOUSING HRA,CALFORD SEADEN (HEALTH & SAFETY) LTD,"1,400.00",CAPITAL PS (REGEN),CONSTRUCTION FEES  - EXTERNAL,5902512388,1097125
04.03.2022,HOUSING HRA,PROJECT CENTRE LTD,"5,276.00",CAPITAL PS (REGEN),CONSTRUCTION FEES  - EXTERNAL,5902513363,1000072621
04.03.2022,HOUSING HRA,SWECO CONSULTING ENGINEERS LTD,"2,730.00",CAPITAL PS (REGEN),CONSTRUCTION FEES  - EXTERNAL,5902513434,1000086883
04.03.2022,LEISURE DIRECTORATE,KENT COUNTY COUNCIL - LASER,934.41,BURGESS AREA TEAM,ELECTRICITY,5902513507,1000012926
04.03.2022,LEISURE DIRECTORATE,THE INDEPENDENT ACADEMIC RESEARCH STUDIES INTERNATIONAL INSTITUTE,"7,046.00",GRANTS COMMISSIONING,GRANTS,5902513403,1000075673
04.03.2022,LEISURE DIRECTORATE,SOMERVILLE YOUTH & PLAY PROVISION,"7,377.50",GRANTS COMMISSIONING,GRANTS,5902513576,1000080341
04.03.2022,LEISURE DIRECTORATE,MILLWALL COMMUNITY TRUST,350,HOMERSTALL ROAD SPORTS GROUND,BUILDING R&M,5902512562,11011221
04.03.2022,LEISURE DIRECTORATE,FOUNTAINS & FEATURES LTD,460,PARKS SERVICES DEVELOPMENT,PROFESSIONAL FEES,5902513373,1000082729
04.03.2022,LEISURE DIRECTORATE,CASTLE WATER LTD,536.29,PECKHAM LIBRARY,WATER,5902513413,1000078867
04.03.2022,LEISURE DIRECTORATE,REGENT OFFICE CARE LTD,898.64,SDM BUDGET,PREMISES CLEANING,5902513560,1000063340
04.03.2022,LEISURE DIRECTORATE,REGENT OFFICE CARE LTD,898.64,SDM BUDGET,PREMISES CLEANING,5902513563,1000063340
04.03.2022,LEISURE DIRECTORATE,REGENT OFFICE CARE LTD,898.64,SDM BUDGET,PREMISES CLEANING,5902513566,1000063340
04.03.2022,LEISURE DIRECTORATE,REGENT OFFICE CARE LTD,"3,433.27",SDM BUDGET,PREMISES CLEANING,5902513568,1000063340
04.03.2022,LEISURE DIRECTORATE,KENT COUNTY COUNCIL - LASER,"3,474.54",SOUTHWARK AREA TEAM,ELECTRICITY,5902513497,1000012926
04.03.2022,PLANNING AND TRANSPORT,STRETTONS LIMITED,"4,500.00",MAJOR APPLICATIONS,PROFESSIONAL FEES,5902513501,1000058926
04.03.2022,PUBLIC HEALTH,RESTORATIVE JUSTICE FOR ALL,"15,000.00",COMMUNITY VACCINE CHAMPIONS,EXTERNAL AGENCIES AND BODIES,5902512969,1000081455
04.03.2022,PUBLIC HEALTH,REDACTED PERSONAL DATA,500,COVID-19 CONTROL OUTBREAK MGMNT.FUND,OTHER PAYMENTS FOR CLIENTS,REDACTED,REDACTED
04.03.2022,PUBLIC HEALTH,REDACTED PERSONAL DATA,500,COVID-19 CONTROL OUTBREAK MGMNT.FUND,OTHER PAYMENTS FOR CLIENTS,REDACTED,REDACTED
04.03.2022,PUBLIC HEALTH,EVERYONE HEALTH LTD,"12,500.00",HEALTH INTERVENTIONS,EXTERNAL AGENCIES AND BODIES,5902512692,1000084159
04.03.2022,RESIDENT SERVICES,BRITISH GAS TRADING LTD,302.54,OPERATIONS/OFFICES ACCOMMODATION,ELECTRICITY,5902513333,1000055977
04.03.2022,RESIDENT SERVICES,BRITISH GAS TRADING LTD,325.03,OPERATIONS/OFFICES ACCOMMODATION,ELECTRICITY,5902513409,1000055977
04.03.2022,RESIDENT SERVICES,NEWINGTON BUTTS MANAGEMENT LTD,"191,798.20",PRIVATE SERVICE CHARGES,SERVICE CHARGES,5902513526,1000081298
04.03.2022,RESIDENT SERVICES HGF,FRESHVIEW ESTATES,"2,375.94",HOMELESS PROJECTS,GRANTS,5902513423,1000086397
04.03.2022,RESIDENT SERVICES HGF,PFL PROPERTIES LTD,"2,381.94",HOMELESS PROJECTS,GRANTS,5902513394,1000086466
04.03.2022,RESIDENT SERVICES HGF,REDACTED PERSONAL DATA,"6,600.00",HOUSING OPTIONS,EXTERNAL AGENCIES AND BODIES,REDACTED,REDACTED
04.03.2022,RESIDENT SERVICES HGF,STENFORD PROPERTY LTD,"48,047.40",NIGHTLY TA (NSC),EXTERNAL AGENCIES AND BODIES,5902513439,1000074759
04.03.2022,RESIDENT SERVICES HGF,ZFA ACCOMMODATION LTD,"29,437.82",NIGHTLY TA (NSC),EXTERNAL AGENCIES AND BODIES,5902513491,1000082620
04.03.2022,SOUTHWARK BUILDING SERVICES,KEMICO LIMITED,"2,167.20",STORES/LOGISTICS,CREDITORS -GR/IR CLEARING ACCOUNT,5902513075,1000030226
04.03.2022,SOUTHWARK BUILDING SERVICES,KEMICO LIMITED,"4,797.00",STORES/LOGISTICS,CREDITORS -GR/IR CLEARING ACCOUNT,5902513075,1000030226
05.03.2022,ASSET MANAGEMENT,ARMINA LTD,613.08,DISREPAIR,PAYMENTS FOR LEGAL SERVICES,2103394473,3000002121
05.03.2022,ASSET MANAGEMENT,ARMINA LTD,"1,139.25",DISREPAIR,PAYMENTS FOR LEGAL SERVICES,2103394471,3000002121
05.03.2022,ASSET MANAGEMENT,ARMINA LTD,"1,329.72",DISREPAIR,PAYMENTS FOR LEGAL SERVICES,2103394472,3000002121
05.03.2022,ASSET MANAGEMENT,CERTSURE LLP,"18,480.00",ENG CONTRACTS,PROFESSIONAL FEES,5902512727,1706379
05.03.2022,ASSET MANAGEMENT,BUILDLEC CONSTRUCTION LTD,"2,970.98",ENG CONTRACTS (NORTH),ESTATE LIGHTING R&M,5902512631,1000085483
05.03.2022,CENTRAL FUNCTIONS,BRESLIN CONSTRUCTION LTD,"1,880.00",COMMERCIAL PROPERTIES,BUILDING R&M,2103395594,3000001948
05.03.2022,CENTRAL FUNCTIONS,KENT COUNTY COUNCIL - LASER,"138,662.87",HEATING ACCOUNT,ELECTRICITY,5902513473,1000012926
05.03.2022,CENTRAL FUNCTIONS,KENT COUNTY COUNCIL - LASER,"487,571.90",HEATING ACCOUNT,GAS,5902513472,1000012926
05.03.2022,CHIEF EXECUTIVE'S OFFICE,THAMES REACH,"37,254.68",CHIEF EXECUTIVE'S OFFICE,EXTERNAL AGENCIES AND BODIES,5902512698,1723415
05.03.2022,CHIEF EXECUTIVE'S OFFICE,UPREACH SERVICES LTD,"12,500.00",YOUTH FUND EMPLOYMENT,EXTERNAL AGENCIES AND BODIES,5902512610,1000083683
05.03.2022,CHILDREN AND FAMILIES,ITL NORTH EAST LTD,"5,579.45",CENTRAL SUPPORT,INTERPRETING SERVICES,5902512258,1000082415
05.03.2022,DSG,THE ASSOCIATION FOR SCIENCE EDUCATION,"5,928.00",INTERVENTION FUND,SUBSCRIPTIONS,5902513128,1000082481
05.03.2022,DSG,PROSPERO RECRUITMENT LTD,"5,287.50",VIRTUAL SCHOOL PP,EXTERNAL AGENCIES AND BODIES,5902513377,1000082492
05.03.2022,DSG,PROSPERO RECRUITMENT LTD,"6,072.50",VIRTUAL SCHOOL PP,EXTERNAL AGENCIES AND BODIES,5902513375,1000082492
05.03.2022,ENVIRONMENT AND LEISURE,ADVANCED TRANSPORT RESEARCH LTD,430,CAPITAL PS (LEISURE),CONSTRUCTION,5902512799,1000070527
05.03.2022,ENVIRONMENT AND LEISURE,TROGLO LTD.,"4,300.00",DIGITAL HEALTH,EXTERNAL AGENCIES AND BODIES,5902512657,1000087864
05.03.2022,F & C S EXCLUDING CORPORATE BUDGETS,BDO LLP,"22,005.00",INTERNAL AUDIT CONTRACTS,PAYMENTS FOR FINANCIAL SERVICES,5902512772,1000057898
05.03.2022,F & C S EXCLUDING CORPORATE BUDGETS,BDO LLP,"2,083.33",RISK ADMIN,PROFESSIONAL FEES,5902513521,1000057898
05.03.2022,HOUSING HRA,ENGIE REGENERATION (APOLLO) LTD,998.57,CAPITAL PS (HRA),CONSTRUCTION MAIN CONTRACT -CERTIFICATED,2103395626,4000449
05.03.2022,HOUSING HRA,ENGIE REGENERATION (APOLLO) LTD,"373,998.35",CAPITAL PS (HRA),CONSTRUCTION MAIN CONTRACT -CERTIFICATED,2103394476,4000449
05.03.2022,HOUSING HRA,ENGIE REGENERATION LTD,"151,178.26",CAPITAL PS (HRA),CONSTRUCTION MAIN CONTRACT -CERTIFICATED,2103394478,3000002035
05.03.2022,LEISURE DIRECTORATE,QUADRON SERVICES LIMITED,"9,996.00",CREMATORIUM,GROUNDS MAINTENANCE,5902512622,1000066528
05.03.2022,LEISURE DIRECTORATE,QUADRON SERVICES LIMITED,"20,104.00",CREMATORIUM,GROUNDS MAINTENANCE,5902512625,1000066528
05.03.2022,LEISURE DIRECTORATE,C S G (USHERS) LTD,"1,031.50",TREES PRINCIPAL ROADS,TREE MAINTENANCE,5902513525,1000073203
05.03.2022,LEISURE DIRECTORATE,C S G (USHERS) LTD,"1,974.50",TREES PRINCIPAL ROADS,TREE MAINTENANCE,5902513541,1000073203
05.03.2022,LEISURE DIRECTORATE,C S G (USHERS) LTD,"2,937.00",TREES PRINCIPAL ROADS,TREE MAINTENANCE,5902513528,1000073203
05.03.2022,LEISURE DIRECTORATE,C S G (USHERS) LTD,"8,004.50",TREES PRINCIPAL ROADS,TREE MAINTENANCE,5902513549,1000073203
05.03.2022,SBS OPERATIONS,AKW MEDI-CARE LTD,327.93,SBS AIDS AND ADAPTATIONS,MATERIALS,5902513260,1000047103
05.03.2022,SBS SUPPORT,NPOWER LTD,341.47,R & M OVERHEADS,ELECTRICITY,5902513307,1000078994
05.03.2022,SOUTHWARK BUILDING SERVICES,MARTIN VITERA LTD,260,STORES/LOGISTICS,CREDITORS -GR/IR CLEARING ACCOUNT,5902513142,1560597
05.03.2022,SOUTHWARK BUILDING SERVICES,MARTIN VITERA LTD,570,STORES/LOGISTICS,CREDITORS -GR/IR CLEARING ACCOUNT,5902513142,1560597
06.03.2022,ASSET MANAGEMENT,FRANKHAM CONSULTANCY GROUP LTD,395,DISREPAIR,PAYMENTS FOR LEGAL SERVICES,5902513475,1000043952
06.03.2022,ASSET MANAGEMENT,SANDERSONS BUILDING SERVICES LTD,378.18,DISREPAIR,PAYMENTS FOR LEGAL SERVICES,2103396125,3000002065
06.03.2022,ASSET MANAGEMENT,SANDERSONS BUILDING SERVICES LTD,"4,559.53",DISREPAIR,PAYMENTS FOR LEGAL SERVICES,2103395628,3000002065
06.03.2022,ASSET MANAGEMENT,SANDERSONS BUILDING SERVICES LTD,"4,607.51",DISREPAIR,PAYMENTS FOR LEGAL SERVICES,2103395211,3000002065
06.03.2022,ASSET MANAGEMENT,FRANKHAM CONSULTANCY GROUP LTD,285,DISREPAIR,PROFESSIONAL FEES,5902512746,1000043952
06.03.2022,ASSET MANAGEMENT,WILLIAM MARTIN PROPERTY CONSULTANTS,632.5,REPAIRS OPERATIONS,BUILDING R&M,5902512711,1000062171
06.03.2022,ASSET MANAGEMENT HGF,DIGITAL ID LTD T/A ESSENTRA SECURITY,999.05,160 TOOLEY ST.,BUILDING R&M,5902512962,1000025760
06.03.2022,CHIEF EXECUTIVE,SYSTRA LTD,"12,500.00",CAPITAL PS (REGEN),CONSTRUCTION FEES  - EXTERNAL,5902512646,11305109
06.03.2022,CHIEF EXECUTIVE'S OFFICE,LONDON SOUTH BANK UNIVERSITY,"20,000.00",ADDITIONAL RESTRICTIONS GRANT,GRANTS,5902512734,1000051012
06.03.2022,CHIEF EXECUTIVE'S OFFICE,UNITY WORKS SOCIAL ENTERPRISES,"36,819.00",CHIEF EXECUTIVE'S OFFICE,EXTERNAL AGENCIES AND BODIES,5902512736,1000083486
06.03.2022,DSG,HARRIS ACADEMY BERMONDSEY,900,VIRTUAL SCHOOL PP,EXTERNAL AGENCIES AND BODIES,5902513435,1000052842
06.03.2022,EDUCATION,DRUMHEAD LTD,"7,000.00",LEA MUSIC SERVICE(310) - 5018566,CONSULTANTS SERVICES,5902513519,1000051656
06.03.2022,ENVIRONMENT AND LEISURE,STEER DAVIES & GLEAVE LIMITED,"2,900.00",CAPITAL PS (LEISURE),CONSTR'N SUB CONTRACT - NON CERTIFICATED,5902513087,1823348
06.03.2022,ENVIRONMENT AND LEISURE,BARCHAM TREES PLC,395,CAPITAL PS (LEISURE),CONSTRUCTION FEES,5902513190,11254891
06.03.2022,ENVIRONMENT AND LEISURE,BARCHAM TREES PLC,"14,179.00",CAPITAL PS (LEISURE),CONSTRUCTION FEES,5902513190,11254891
06.03.2022,ENVIRONMENT DIRECTORATE,F M CONWAY LTD,"222,087.80",HIGHWAY MAINTENANCE OVERHEADS,HIGHWAYS TERM CONTRACT,2103395212,4001384
06.03.2022,ENVIRONMENT DIRECTORATE,1ENV SOLUTIONS LTD,321.75,PEST CONTROL,MATERIALS,5902512787,1000075410
06.03.2022,HOUSING HRA,CALFORD SEADEN LLP,"3,857.63",CAPITAL PS (HRA),CONSTRUCTION FEES  - EXTERNAL,5902513592,1061592
06.03.2022,HOUSING HRA,CALFORD SEADEN LLP,"62,416.54",CAPITAL PS (HRA),CONSTRUCTION FEES  - EXTERNAL,5902513577,1061592
06.03.2022,HOUSING HRA,ENGIE REGENERATION (APOLLO) LTD,"5,237.10",CAPITAL PS (HRA),CONSTRUCTION FEES  - EXTERNAL,2103396121,4000449
06.03.2022,HOUSING HRA,CALFORD SEADEN LLP,"7,418.41",CAPITAL PS (HRA),CONSTRUCTION MAIN CONTRACT -CERTIFICATED,5902513217,1061592
06.03.2022,HOUSING HRA,SALTASH ENTERPRISES LTD,"92,901.37",CAPITAL PS (HRA),CONSTRUCTION MAIN CONTRACT -CERTIFICATED,2103395627,4013605
06.03.2022,HOUSING HRA,TIBBALDS PLANNING & URBAN DESIGN LTD,"3,953.75",CAPITAL PS (REGEN),CONSTRUCTION FEES  - EXTERNAL,5902513393,1000029772
06.03.2022,LEISURE DIRECTORATE,RH WROUGHT IRON,"3,000.00",SOUTHWARK AREA TEAM,OTHER R&M,2103395588,3000000680
06.03.2022,RESIDENT SERVICES,KENT COUNTY COUNCIL - LASER,477.15,SUPPORTED HOSTELS,CATERING MATERIALS & SUPPLIES,5902513484,1000012926
06.03.2022,RESIDENT SERVICES,KENT COUNTY COUNCIL - LASER,739.39,SUPPORTED HOSTELS,CATERING MATERIALS & SUPPLIES,5902513489,1000012926
06.03.2022,RESIDENT SERVICES,KENT COUNTY COUNCIL - LASER,"1,054.50",SUPPORTED HOSTELS,CATERING MATERIALS & SUPPLIES,5902513487,1000012926
06.03.2022,RESIDENT SERVICES HGF,REDACTED PERSONAL DATA,"4,500.00",HOMELESS PROJECTS,GRANTS,REDACTED,REDACTED
07.03.2022,ADULT SOCIAL CARE,REDACTED PERSONAL DATA,488,APPOINTEESHIPS,OTHER PAYMENTS FOR CLIENTS,REDACTED,REDACTED
07.03.2022,ADULT SOCIAL CARE,HEALTH ADVOCACY UK LTD,650,CHC ADVOCACY- OP/PD,EXTERNAL AGENCIES AND BODIES,5902513797,1000082156
07.03.2022,ADULT SOCIAL CARE,RESPONDIT WEB DESIGN LTD,"20,800.00",DIR OF ASC,EXTERNAL AGENCIES AND BODIES,5902513725,1000088066
07.03.2022,ADULT SOCIAL CARE,RESPONDIT WEB DESIGN LTD,"20,800.00",DIR OF ASC,EXTERNAL AGENCIES AND BODIES,5902513740,1000088066
07.03.2022,ADULT SOCIAL CARE,RESPONDIT WEB DESIGN LTD,"20,800.00",DIR OF ASC,EXTERNAL AGENCIES AND BODIES,5902513769,1000088066
07.03.2022,ADULT SOCIAL CARE,SUPREME CARE SERVICES LTD,"1,742.13",DISCHARGE TO ACCESS,HOMECARE - C&V,2103396611,1000059416
07.03.2022,ADULT SOCIAL CARE,SUPREME CARE SERVICES LTD,"2,583.83",DISCHARGE TO ACCESS,HOMECARE - C&V,2103396304,1000059416
07.03.2022,ADULT SOCIAL CARE,HOUSING 21,"4,171.46",EXTRA CARE CONTRACT,ACCOMMODATION CHARGES,5902513622,1000037120
07.03.2022,ADULT SOCIAL CARE,SUPREME CARE SERVICES LTD,458.49,LD LTS 18-64,HOMECARE - C&V,2103396266,1000059416
07.03.2022,ADULT SOCIAL CARE,SUPREME CARE SERVICES LTD,464.87,LD LTS 18-64,HOMECARE - C&V,2103396283,1000059416
07.03.2022,ADULT SOCIAL CARE,SUPREME CARE SERVICES LTD,976.14,LD LTS 18-64,HOMECARE - C&V,2103396248,1000059416
07.03.2022,ADULT SOCIAL CARE,SUPREME CARE SERVICES LTD,705.73,LD LTS 65+,HOMECARE - C&V,2103396526,1000059416
07.03.2022,ADULT SOCIAL CARE,SUPREME CARE SERVICES LTD,777.67,LD LTS 65+,HOMECARE - C&V,2103396544,1000059416
07.03.2022,ADULT SOCIAL CARE,SUPREME CARE SERVICES LTD,"1,011.38",LD LTS 65+,HOMECARE - C&V,2103396235,1000059416
07.03.2022,ADULT SOCIAL CARE,SUPREME CARE SERVICES LTD,410.26,MEM LTS 18-64,HOMECARE - C&V,2103396357,1000059416
07.03.2022,ADULT SOCIAL CARE,SUPREME CARE SERVICES LTD,454.12,MEM LTS 18-64,HOMECARE - C&V,2103396285,1000059416
07.03.2022,ADULT SOCIAL CARE,SUPREME CARE SERVICES LTD,317.08,MEM LTS 65+,HOMECARE - C&V,2103396428,1000059416
07.03.2022,ADULT SOCIAL CARE,SUPREME CARE SERVICES LTD,386.7,MEM LTS 65+,HOMECARE - C&V,2103396445,1000059416
07.03.2022,ADULT SOCIAL CARE,SUPREME CARE SERVICES LTD,454.11,MEM LTS 65+,HOMECARE - C&V,2103396286,1000059416
07.03.2022,ADULT SOCIAL CARE,SUPREME CARE SERVICES LTD,494.71,MEM LTS 65+,HOMECARE - C&V,2103396556,1000059416
07.03.2022,ADULT SOCIAL CARE,SUPREME CARE SERVICES LTD,616.44,MEM LTS 65+,HOMECARE - C&V,2103396481,1000059416
07.03.2022,ADULT SOCIAL CARE,SUPREME CARE SERVICES LTD,906.61,MEM LTS 65+,HOMECARE - C&V,2103396411,1000059416
07.03.2022,ADULT SOCIAL CARE,SUPREME CARE SERVICES LTD,"2,360.25",MEM LTS 65+,HOMECARE - C&V,2103396299,1000059416
07.03.2022,ADULT SOCIAL CARE,SUPREME CARE SERVICES LTD,265.22,MH LTS 18-64,HOMECARE - C&V,2103396566,1000059416
07.03.2022,ADULT SOCIAL CARE,SUPREME CARE SERVICES LTD,292.18,MH LTS 18-64,HOMECARE - C&V,2103396430,1000059416
07.03.2022,ADULT SOCIAL CARE,SUPREME CARE SERVICES LTD,377.72,MH LTS 18-64,HOMECARE - C&V,2103396467,1000059416
07.03.2022,ADULT SOCIAL CARE,SUPREME CARE SERVICES LTD,436.02,MH LTS 18-64,HOMECARE - C&V,2103396278,1000059416
07.03.2022,ADULT SOCIAL CARE,SUPREME CARE SERVICES LTD,494.49,MH LTS 18-64,HOMECARE - C&V,2103396543,1000059416
07.03.2022,ADULT SOCIAL CARE,SUPREME CARE SERVICES LTD,711.83,MH LTS 18-64,HOMECARE - C&V,2103396212,1000059416
07.03.2022,ADULT SOCIAL CARE,SUPREME CARE SERVICES LTD,768.66,MH LTS 18-64,HOMECARE - C&V,2103396375,1000059416
07.03.2022,ADULT SOCIAL CARE,SUPREME CARE SERVICES LTD,894.54,MH LTS 18-64,HOMECARE - C&V,2103396208,1000059416
07.03.2022,ADULT SOCIAL CARE,SUPREME CARE SERVICES LTD,"1,578.84",MH LTS 18-64,HOMECARE - C&V,2103396484,1000059416
07.03.2022,ADULT SOCIAL CARE,SUPREME CARE SERVICES LTD,377.64,MH LTS 65+,HOMECARE - C&V,2103396369,1000059416
07.03.2022,ADULT SOCIAL CARE,SUPREME CARE SERVICES LTD,400.67,MH LTS 65+,HOMECARE - C&V,2103396516,1000059416
07.03.2022,ADULT SOCIAL CARE,SUPREME CARE SERVICES LTD,467.63,MH LTS 65+,HOMECARE - C&V,2103396599,1000059416
07.03.2022,ADULT SOCIAL CARE,SUPREME CARE SERVICES LTD,516.95,MH LTS 65+,HOMECARE - C&V,2103396383,1000059416
07.03.2022,ADULT SOCIAL CARE,SUPREME CARE SERVICES LTD,532.81,MH LTS 65+,HOMECARE - C&V,2103396216,1000059416
07.03.2022,ADULT SOCIAL CARE,SUPREME CARE SERVICES LTD,818.2,MH LTS 65+,HOMECARE - C&V,2103396354,1000059416
07.03.2022,ADULT SOCIAL CARE,SUPREME CARE SERVICES LTD,256.22,PHY LTS 18-64,HOMECARE - C&V,2103396404,1000059416
07.03.2022,ADULT SOCIAL CARE,SUPREME CARE SERVICES LTD,260.72,PHY LTS 18-64,HOMECARE - C&V,2103396319,1000059416
07.03.2022,ADULT SOCIAL CARE,SUPREME CARE SERVICES LTD,296.68,PHY LTS 18-64,HOMECARE - C&V,2103396531,1000059416
07.03.2022,ADULT SOCIAL CARE,SUPREME CARE SERVICES LTD,301.27,PHY LTS 18-64,HOMECARE - C&V,2103396412,1000059416
07.03.2022,ADULT SOCIAL CARE,SUPREME CARE SERVICES LTD,323.75,PHY LTS 18-64,HOMECARE - C&V,2103396240,1000059416
07.03.2022,ADULT SOCIAL CARE,SUPREME CARE SERVICES LTD,324.08,PHY LTS 18-64,HOMECARE - C&V,2103396613,1000059416
07.03.2022,ADULT SOCIAL CARE,SUPREME CARE SERVICES LTD,328.16,PHY LTS 18-64,HOMECARE - C&V,2103396398,1000059416
07.03.2022,ADULT SOCIAL CARE,SUPREME CARE SERVICES LTD,334.14,PHY LTS 18-64,HOMECARE - C&V,2103396417,1000059416
07.03.2022,ADULT SOCIAL CARE,SUPREME CARE SERVICES LTD,334.88,PHY LTS 18-64,HOMECARE - C&V,2103396555,1000059416
07.03.2022,ADULT SOCIAL CARE,SUPREME CARE SERVICES LTD,338.95,PHY LTS 18-64,HOMECARE - C&V,2103396343,1000059416
07.03.2022,ADULT SOCIAL CARE,SUPREME CARE SERVICES LTD,368.69,PHY LTS 18-64,HOMECARE - C&V,2103396502,1000059416
07.03.2022,ADULT SOCIAL CARE,SUPREME CARE SERVICES LTD,375.16,PHY LTS 18-64,HOMECARE - C&V,2103396284,1000059416
07.03.2022,ADULT SOCIAL CARE,SUPREME CARE SERVICES LTD,380.04,PHY LTS 18-64,HOMECARE - C&V,2103396550,1000059416
07.03.2022,ADULT SOCIAL CARE,SUPREME CARE SERVICES LTD,392.15,PHY LTS 18-64,HOMECARE - C&V,2103396530,1000059416
07.03.2022,ADULT SOCIAL CARE,SUPREME CARE SERVICES LTD,400.17,PHY LTS 18-64,HOMECARE - C&V,2103396313,1000059416
07.03.2022,ADULT SOCIAL CARE,SUPREME CARE SERVICES LTD,405.15,PHY LTS 18-64,HOMECARE - C&V,2103396260,1000059416
07.03.2022,ADULT SOCIAL CARE,SUPREME CARE SERVICES LTD,430.66,PHY LTS 18-64,HOMECARE - C&V,2103396277,1000059416
07.03.2022,ADULT SOCIAL CARE,SUPREME CARE SERVICES LTD,431.43,PHY LTS 18-64,HOMECARE - C&V,2103396583,1000059416
07.03.2022,ADULT SOCIAL CARE,SUPREME CARE SERVICES LTD,434.32,PHY LTS 18-64,HOMECARE - C&V,2103396511,1000059416
07.03.2022,ADULT SOCIAL CARE,SUPREME CARE SERVICES LTD,470.52,PHY LTS 18-64,HOMECARE - C&V,2103396334,1000059416
07.03.2022,ADULT SOCIAL CARE,SUPREME CARE SERVICES LTD,473.19,PHY LTS 18-64,HOMECARE - C&V,2103396222,1000059416
07.03.2022,ADULT SOCIAL CARE,SUPREME CARE SERVICES LTD,507.94,PHY LTS 18-64,HOMECARE - C&V,2103396454,1000059416
07.03.2022,ADULT SOCIAL CARE,SUPREME CARE SERVICES LTD,521.43,PHY LTS 18-64,HOMECARE - C&V,2103396391,1000059416
07.03.2022,ADULT SOCIAL CARE,SUPREME CARE SERVICES LTD,554.11,PHY LTS 18-64,HOMECARE - C&V,2103396549,1000059416
07.03.2022,ADULT SOCIAL CARE,SUPREME CARE SERVICES LTD,567.18,PHY LTS 18-64,HOMECARE - C&V,2103396536,1000059416
07.03.2022,ADULT SOCIAL CARE,SUPREME CARE SERVICES LTD,584.39,PHY LTS 18-64,HOMECARE - C&V,2103396551,1000059416
07.03.2022,ADULT SOCIAL CARE,SUPREME CARE SERVICES LTD,588.86,PHY LTS 18-64,HOMECARE - C&V,2103396455,1000059416
07.03.2022,ADULT SOCIAL CARE,SUPREME CARE SERVICES LTD,633.94,PHY LTS 18-64,HOMECARE - C&V,2103396296,1000059416
07.03.2022,ADULT SOCIAL CARE,SUPREME CARE SERVICES LTD,637.69,PHY LTS 18-64,HOMECARE - C&V,2103396351,1000059416
07.03.2022,ADULT SOCIAL CARE,SUPREME CARE SERVICES LTD,638.93,PHY LTS 18-64,HOMECARE - C&V,2103396614,1000059416
07.03.2022,ADULT SOCIAL CARE,SUPREME CARE SERVICES LTD,639.63,PHY LTS 18-64,HOMECARE - C&V,2103396600,1000059416
07.03.2022,ADULT SOCIAL CARE,SUPREME CARE SERVICES LTD,663.95,PHY LTS 18-64,HOMECARE - C&V,2103396548,1000059416
07.03.2022,ADULT SOCIAL CARE,SUPREME CARE SERVICES LTD,693.26,PHY LTS 18-64,HOMECARE - C&V,2103396309,1000059416
07.03.2022,ADULT SOCIAL CARE,SUPREME CARE SERVICES LTD,723.82,PHY LTS 18-64,HOMECARE - C&V,2103396394,1000059416
07.03.2022,ADULT SOCIAL CARE,SUPREME CARE SERVICES LTD,731.19,PHY LTS 18-64,HOMECARE - C&V,2103396308,1000059416
07.03.2022,ADULT SOCIAL CARE,SUPREME CARE SERVICES LTD,755.16,PHY LTS 18-64,HOMECARE - C&V,2103396388,1000059416
07.03.2022,ADULT SOCIAL CARE,SUPREME CARE SERVICES LTD,755.16,PHY LTS 18-64,HOMECARE - C&V,2103396413,1000059416
07.03.2022,ADULT SOCIAL CARE,SUPREME CARE SERVICES LTD,786.65,PHY LTS 18-64,HOMECARE - C&V,2103396474,1000059416
07.03.2022,ADULT SOCIAL CARE,SUPREME CARE SERVICES LTD,812.39,PHY LTS 18-64,HOMECARE - C&V,2103396497,1000059416
07.03.2022,ADULT SOCIAL CARE,SUPREME CARE SERVICES LTD,813.59,PHY LTS 18-64,HOMECARE - C&V,2103396458,1000059416
07.03.2022,ADULT SOCIAL CARE,SUPREME CARE SERVICES LTD,823.18,PHY LTS 18-64,HOMECARE - C&V,2103396327,1000059416
07.03.2022,ADULT SOCIAL CARE,SUPREME CARE SERVICES LTD,827.18,PHY LTS 18-64,HOMECARE - C&V,2103396512,1000059416
07.03.2022,ADULT SOCIAL CARE,SUPREME CARE SERVICES LTD,836.2,PHY LTS 18-64,HOMECARE - C&V,2103396501,1000059416
07.03.2022,ADULT SOCIAL CARE,SUPREME CARE SERVICES LTD,854.06,PHY LTS 18-64,HOMECARE - C&V,2103396218,1000059416
07.03.2022,ADULT SOCIAL CARE,SUPREME CARE SERVICES LTD,885.52,PHY LTS 18-64,HOMECARE - C&V,2103396363,1000059416
07.03.2022,ADULT SOCIAL CARE,SUPREME CARE SERVICES LTD,912.24,PHY LTS 18-64,HOMECARE - C&V,2103396527,1000059416
07.03.2022,ADULT SOCIAL CARE,SUPREME CARE SERVICES LTD,921.66,PHY LTS 18-64,HOMECARE - C&V,2103396607,1000059416
07.03.2022,ADULT SOCIAL CARE,SUPREME CARE SERVICES LTD,962.1,PHY LTS 18-64,HOMECARE - C&V,2103396269,1000059416
07.03.2022,ADULT SOCIAL CARE,SUPREME CARE SERVICES LTD,964.5,PHY LTS 18-64,HOMECARE - C&V,2103396507,1000059416
07.03.2022,ADULT SOCIAL CARE,SUPREME CARE SERVICES LTD,984.56,PHY LTS 18-64,HOMECARE - C&V,2103396252,1000059416
07.03.2022,ADULT SOCIAL CARE,SUPREME CARE SERVICES LTD,"1,007.05",PHY LTS 18-64,HOMECARE - C&V,2103396335,1000059416
07.03.2022,ADULT SOCIAL CARE,SUPREME CARE SERVICES LTD,"1,007.16",PHY LTS 18-64,HOMECARE - C&V,2103396483,1000059416
07.03.2022,ADULT SOCIAL CARE,SUPREME CARE SERVICES LTD,"1,016.02",PHY LTS 18-64,HOMECARE - C&V,2103396606,1000059416
07.03.2022,ADULT SOCIAL CARE,SUPREME CARE SERVICES LTD,"1,039.78",PHY LTS 18-64,HOMECARE - C&V,2103396604,1000059416
07.03.2022,ADULT SOCIAL CARE,SUPREME CARE SERVICES LTD,"1,061.57",PHY LTS 18-64,HOMECARE - C&V,2103396538,1000059416
07.03.2022,ADULT SOCIAL CARE,SUPREME CARE SERVICES LTD,"1,065.53",PHY LTS 18-64,HOMECARE - C&V,2103396259,1000059416
07.03.2022,ADULT SOCIAL CARE,SUPREME CARE SERVICES LTD,"1,078.82",PHY LTS 18-64,HOMECARE - C&V,2103396585,1000059416
07.03.2022,ADULT SOCIAL CARE,SUPREME CARE SERVICES LTD,"1,141.78",PHY LTS 18-64,HOMECARE - C&V,2103396294,1000059416
07.03.2022,ADULT SOCIAL CARE,SUPREME CARE SERVICES LTD,"1,147.14",PHY LTS 18-64,HOMECARE - C&V,2103396410,1000059416
07.03.2022,ADULT SOCIAL CARE,SUPREME CARE SERVICES LTD,"1,177.98",PHY LTS 18-64,HOMECARE - C&V,2103396470,1000059416
07.03.2022,ADULT SOCIAL CARE,SUPREME CARE SERVICES LTD,"1,245.26",PHY LTS 18-64,HOMECARE - C&V,2103396370,1000059416
07.03.2022,ADULT SOCIAL CARE,SUPREME CARE SERVICES LTD,"1,393.57",PHY LTS 18-64,HOMECARE - C&V,2103396461,1000059416
07.03.2022,ADULT SOCIAL CARE,SUPREME CARE SERVICES LTD,"1,457.31",PHY LTS 18-64,HOMECARE - C&V,2103396547,1000059416
07.03.2022,ADULT SOCIAL CARE,SUPREME CARE SERVICES LTD,"1,490.67",PHY LTS 18-64,HOMECARE - C&V,2103396532,1000059416
07.03.2022,ADULT SOCIAL CARE,SUPREME CARE SERVICES LTD,"1,629.09",PHY LTS 18-64,HOMECARE - C&V,2103396421,1000059416
07.03.2022,ADULT SOCIAL CARE,SUPREME CARE SERVICES LTD,"1,654.01",PHY LTS 18-64,HOMECARE - C&V,2103396534,1000059416
07.03.2022,ADULT SOCIAL CARE,SUPREME CARE SERVICES LTD,"1,974.05",PHY LTS 18-64,HOMECARE - C&V,2103396605,1000059416
07.03.2022,ADULT SOCIAL CARE,SUPREME CARE SERVICES LTD,"2,045.27",PHY LTS 18-64,HOMECARE - C&V,2103396376,1000059416
07.03.2022,ADULT SOCIAL CARE,SUPREME CARE SERVICES LTD,"2,088.84",PHY LTS 18-64,HOMECARE - C&V,2103396267,1000059416
07.03.2022,ADULT SOCIAL CARE,SUPREME CARE SERVICES LTD,"2,364.73",PHY LTS 18-64,HOMECARE - C&V,2103396360,1000059416
07.03.2022,ADULT SOCIAL CARE,SUPREME CARE SERVICES LTD,"2,944.68",PHY LTS 18-64,HOMECARE - C&V,2103396255,1000059416
07.03.2022,ADULT SOCIAL CARE,SUPREME CARE SERVICES LTD,"3,244.54",PHY LTS 18-64,HOMECARE - C&V,2103396584,1000059416
07.03.2022,ADULT SOCIAL CARE,SUPREME CARE SERVICES LTD,"3,589.21",PHY LTS 18-64,HOMECARE - C&V,2103396264,1000059416
07.03.2022,ADULT SOCIAL CARE,SUPREME CARE SERVICES LTD,251.72,PHY LTS 65+,HOMECARE - C&V,2103396406,1000059416
07.03.2022,ADULT SOCIAL CARE,SUPREME CARE SERVICES LTD,251.73,PHY LTS 65+,HOMECARE - C&V,2103396437,1000059416
07.03.2022,ADULT SOCIAL CARE,SUPREME CARE SERVICES LTD,252.66,PHY LTS 65+,HOMECARE - C&V,2103396355,1000059416
07.03.2022,ADULT SOCIAL CARE,SUPREME CARE SERVICES LTD,256.22,PHY LTS 65+,HOMECARE - C&V,2103396479,1000059416
07.03.2022,ADULT SOCIAL CARE,SUPREME CARE SERVICES LTD,260.72,PHY LTS 65+,HOMECARE - C&V,2103396384,1000059416
07.03.2022,ADULT SOCIAL CARE,SUPREME CARE SERVICES LTD,271.21,PHY LTS 65+,HOMECARE - C&V,2103396465,1000059416
07.03.2022,ADULT SOCIAL CARE,SUPREME CARE SERVICES LTD,274.21,PHY LTS 65+,HOMECARE - C&V,2103396452,1000059416
07.03.2022,ADULT SOCIAL CARE,SUPREME CARE SERVICES LTD,283.22,PHY LTS 65+,HOMECARE - C&V,2103396500,1000059416
07.03.2022,ADULT SOCIAL CARE,SUPREME CARE SERVICES LTD,284.09,PHY LTS 65+,HOMECARE - C&V,2103396427,1000059416
07.03.2022,ADULT SOCIAL CARE,SUPREME CARE SERVICES LTD,287.68,PHY LTS 65+,HOMECARE - C&V,2103396563,1000059416
07.03.2022,ADULT SOCIAL CARE,SUPREME CARE SERVICES LTD,292.18,PHY LTS 65+,HOMECARE - C&V,2103396392,1000059416
07.03.2022,ADULT SOCIAL CARE,SUPREME CARE SERVICES LTD,292.24,PHY LTS 65+,HOMECARE - C&V,2103396562,1000059416
07.03.2022,ADULT SOCIAL CARE,SUPREME CARE SERVICES LTD,312.02,PHY LTS 65+,HOMECARE - C&V,2103396419,1000059416
07.03.2022,ADULT SOCIAL CARE,SUPREME CARE SERVICES LTD,314.72,PHY LTS 65+,HOMECARE - C&V,2103396448,1000059416
07.03.2022,ADULT SOCIAL CARE,SUPREME CARE SERVICES LTD,328.35,PHY LTS 65+,HOMECARE - C&V,2103396242,1000059416
07.03.2022,ADULT SOCIAL CARE,SUPREME CARE SERVICES LTD,355.21,PHY LTS 65+,HOMECARE - C&V,2103396254,1000059416
07.03.2022,ADULT SOCIAL CARE,SUPREME CARE SERVICES LTD,359.74,PHY LTS 65+,HOMECARE - C&V,2103396451,1000059416
07.03.2022,ADULT SOCIAL CARE,SUPREME CARE SERVICES LTD,364.15,PHY LTS 65+,HOMECARE - C&V,2103396490,1000059416
07.03.2022,ADULT SOCIAL CARE,SUPREME CARE SERVICES LTD,368.65,PHY LTS 65+,HOMECARE - C&V,2103396493,1000059416
07.03.2022,ADULT SOCIAL CARE,SUPREME CARE SERVICES LTD,373.21,PHY LTS 65+,HOMECARE - C&V,2103396302,1000059416
07.03.2022,ADULT SOCIAL CARE,SUPREME CARE SERVICES LTD,374.9,PHY LTS 65+,HOMECARE - C&V,2103396345,1000059416
07.03.2022,ADULT SOCIAL CARE,SUPREME CARE SERVICES LTD,377.58,PHY LTS 65+,HOMECARE - C&V,2103396232,1000059416
07.03.2022,ADULT SOCIAL CARE,SUPREME CARE SERVICES LTD,382.09,PHY LTS 65+,HOMECARE - C&V,2103396272,1000059416
07.03.2022,ADULT SOCIAL CARE,SUPREME CARE SERVICES LTD,382.1,PHY LTS 65+,HOMECARE - C&V,2103396401,1000059416
07.03.2022,ADULT SOCIAL CARE,SUPREME CARE SERVICES LTD,386.58,PHY LTS 65+,HOMECARE - C&V,2103396352,1000059416
07.03.2022,ADULT SOCIAL CARE,SUPREME CARE SERVICES LTD,386.58,PHY LTS 65+,HOMECARE - C&V,2103396495,1000059416
07.03.2022,ADULT SOCIAL CARE,SUPREME CARE SERVICES LTD,386.61,PHY LTS 65+,HOMECARE - C&V,2103396353,1000059416
07.03.2022,ADULT SOCIAL CARE,SUPREME CARE SERVICES LTD,386.67,PHY LTS 65+,HOMECARE - C&V,2103396460,1000059416
07.03.2022,ADULT SOCIAL CARE,SUPREME CARE SERVICES LTD,386.7,PHY LTS 65+,HOMECARE - C&V,2103396473,1000059416
07.03.2022,ADULT SOCIAL CARE,SUPREME CARE SERVICES LTD,391.19,PHY LTS 65+,HOMECARE - C&V,2103396459,1000059416
07.03.2022,ADULT SOCIAL CARE,SUPREME CARE SERVICES LTD,392.52,PHY LTS 65+,HOMECARE - C&V,2103396518,1000059416
07.03.2022,ADULT SOCIAL CARE,SUPREME CARE SERVICES LTD,400.17,PHY LTS 65+,HOMECARE - C&V,2103396469,1000059416
07.03.2022,ADULT SOCIAL CARE,SUPREME CARE SERVICES LTD,404.29,PHY LTS 65+,HOMECARE - C&V,2103396312,1000059416
07.03.2022,ADULT SOCIAL CARE,SUPREME CARE SERVICES LTD,411.45,PHY LTS 65+,HOMECARE - C&V,2103396409,1000059416
07.03.2022,ADULT SOCIAL CARE,SUPREME CARE SERVICES LTD,413.45,PHY LTS 65+,HOMECARE - C&V,2103396552,1000059416
07.03.2022,ADULT SOCIAL CARE,SUPREME CARE SERVICES LTD,413.5,PHY LTS 65+,HOMECARE - C&V,2103396542,1000059416
07.03.2022,ADULT SOCIAL CARE,SUPREME CARE SERVICES LTD,422.06,PHY LTS 65+,HOMECARE - C&V,2103396247,1000059416
07.03.2022,ADULT SOCIAL CARE,SUPREME CARE SERVICES LTD,431.89,PHY LTS 65+,HOMECARE - C&V,2103396224,1000059416
07.03.2022,ADULT SOCIAL CARE,SUPREME CARE SERVICES LTD,435.55,PHY LTS 65+,HOMECARE - C&V,2103396261,1000059416
07.03.2022,ADULT SOCIAL CARE,SUPREME CARE SERVICES LTD,449.51,PHY LTS 65+,HOMECARE - C&V,2103396340,1000059416
07.03.2022,ADULT SOCIAL CARE,SUPREME CARE SERVICES LTD,451.92,PHY LTS 65+,HOMECARE - C&V,2103396281,1000059416
07.03.2022,ADULT SOCIAL CARE,SUPREME CARE SERVICES LTD,454.12,PHY LTS 65+,HOMECARE - C&V,2103396279,1000059416
07.03.2022,ADULT SOCIAL CARE,SUPREME CARE SERVICES LTD,458.62,PHY LTS 65+,HOMECARE - C&V,2103396387,1000059416
07.03.2022,ADULT SOCIAL CARE,SUPREME CARE SERVICES LTD,459.45,PHY LTS 65+,HOMECARE - C&V,2103396368,1000059416
07.03.2022,ADULT SOCIAL CARE,SUPREME CARE SERVICES LTD,463.01,PHY LTS 65+,HOMECARE - C&V,2103396475,1000059416
07.03.2022,ADULT SOCIAL CARE,SUPREME CARE SERVICES LTD,463.11,PHY LTS 65+,HOMECARE - C&V,2103396426,1000059416
07.03.2022,ADULT SOCIAL CARE,SUPREME CARE SERVICES LTD,493.55,PHY LTS 65+,HOMECARE - C&V,2103396468,1000059416
07.03.2022,ADULT SOCIAL CARE,SUPREME CARE SERVICES LTD,493.85,PHY LTS 65+,HOMECARE - C&V,2103396435,1000059416
07.03.2022,ADULT SOCIAL CARE,SUPREME CARE SERVICES LTD,494.56,PHY LTS 65+,HOMECARE - C&V,2103396211,1000059416
07.03.2022,ADULT SOCIAL CARE,SUPREME CARE SERVICES LTD,503.44,PHY LTS 65+,HOMECARE - C&V,2103396438,1000059416
07.03.2022,ADULT SOCIAL CARE,SUPREME CARE SERVICES LTD,503.44,PHY LTS 65+,HOMECARE - C&V,2103396521,1000059416
07.03.2022,ADULT SOCIAL CARE,SUPREME CARE SERVICES LTD,505.18,PHY LTS 65+,HOMECARE - C&V,2103396522,1000059416
07.03.2022,ADULT SOCIAL CARE,SUPREME CARE SERVICES LTD,507.09,PHY LTS 65+,HOMECARE - C&V,2103396492,1000059416
07.03.2022,ADULT SOCIAL CARE,SUPREME CARE SERVICES LTD,507.3,PHY LTS 65+,HOMECARE - C&V,2103396221,1000059416
07.03.2022,ADULT SOCIAL CARE,SUPREME CARE SERVICES LTD,518.16,PHY LTS 65+,HOMECARE - C&V,2103396425,1000059416
07.03.2022,ADULT SOCIAL CARE,SUPREME CARE SERVICES LTD,541.51,PHY LTS 65+,HOMECARE - C&V,2103396441,1000059416
07.03.2022,ADULT SOCIAL CARE,SUPREME CARE SERVICES LTD,548.5,PHY LTS 65+,HOMECARE - C&V,2103396289,1000059416
07.03.2022,ADULT SOCIAL CARE,SUPREME CARE SERVICES LTD,548.52,PHY LTS 65+,HOMECARE - C&V,2103396395,1000059416
07.03.2022,ADULT SOCIAL CARE,SUPREME CARE SERVICES LTD,552.99,PHY LTS 65+,HOMECARE - C&V,2103396453,1000059416
07.03.2022,ADULT SOCIAL CARE,SUPREME CARE SERVICES LTD,557.98,PHY LTS 65+,HOMECARE - C&V,2103396386,1000059416
07.03.2022,ADULT SOCIAL CARE,SUPREME CARE SERVICES LTD,559.48,PHY LTS 65+,HOMECARE - C&V,2103396540,1000059416
07.03.2022,ADULT SOCIAL CARE,SUPREME CARE SERVICES LTD,561.02,PHY LTS 65+,HOMECARE - C&V,2103396478,1000059416
07.03.2022,ADULT SOCIAL CARE,SUPREME CARE SERVICES LTD,575.43,PHY LTS 65+,HOMECARE - C&V,2103396320,1000059416
07.03.2022,ADULT SOCIAL CARE,SUPREME CARE SERVICES LTD,576.54,PHY LTS 65+,HOMECARE - C&V,2103396443,1000059416
07.03.2022,ADULT SOCIAL CARE,SUPREME CARE SERVICES LTD,585.64,PHY LTS 65+,HOMECARE - C&V,2103396271,1000059416
07.03.2022,ADULT SOCIAL CARE,SUPREME CARE SERVICES LTD,596.96,PHY LTS 65+,HOMECARE - C&V,2103396546,1000059416
07.03.2022,ADULT SOCIAL CARE,SUPREME CARE SERVICES LTD,601.73,PHY LTS 65+,HOMECARE - C&V,2103396366,1000059416
07.03.2022,ADULT SOCIAL CARE,SUPREME CARE SERVICES LTD,602.37,PHY LTS 65+,HOMECARE - C&V,2103396373,1000059416
07.03.2022,ADULT SOCIAL CARE,SUPREME CARE SERVICES LTD,604.79,PHY LTS 65+,HOMECARE - C&V,2103396310,1000059416
07.03.2022,ADULT SOCIAL CARE,SUPREME CARE SERVICES LTD,609.54,PHY LTS 65+,HOMECARE - C&V,2103396590,1000059416
07.03.2022,ADULT SOCIAL CARE,SUPREME CARE SERVICES LTD,613.78,PHY LTS 65+,HOMECARE - C&V,2103396477,1000059416
07.03.2022,ADULT SOCIAL CARE,SUPREME CARE SERVICES LTD,617.38,PHY LTS 65+,HOMECARE - C&V,2103396300,1000059416
07.03.2022,ADULT SOCIAL CARE,SUPREME CARE SERVICES LTD,618.58,PHY LTS 65+,HOMECARE - C&V,2103396379,1000059416
07.03.2022,ADULT SOCIAL CARE,SUPREME CARE SERVICES LTD,622.52,PHY LTS 65+,HOMECARE - C&V,2103396293,1000059416
07.03.2022,ADULT SOCIAL CARE,SUPREME CARE SERVICES LTD,627.23,PHY LTS 65+,HOMECARE - C&V,2103396359,1000059416
07.03.2022,ADULT SOCIAL CARE,SUPREME CARE SERVICES LTD,627.89,PHY LTS 65+,HOMECARE - C&V,2103396414,1000059416
07.03.2022,ADULT SOCIAL CARE,SUPREME CARE SERVICES LTD,629.43,PHY LTS 65+,HOMECARE - C&V,2103396463,1000059416
07.03.2022,ADULT SOCIAL CARE,SUPREME CARE SERVICES LTD,629.46,PHY LTS 65+,HOMECARE - C&V,2103396446,1000059416
07.03.2022,ADULT SOCIAL CARE,SUPREME CARE SERVICES LTD,632.66,PHY LTS 65+,HOMECARE - C&V,2103396449,1000059416
07.03.2022,ADULT SOCIAL CARE,SUPREME CARE SERVICES LTD,632.89,PHY LTS 65+,HOMECARE - C&V,2103396298,1000059416
07.03.2022,ADULT SOCIAL CARE,SUPREME CARE SERVICES LTD,633.93,PHY LTS 65+,HOMECARE - C&V,2103396219,1000059416
07.03.2022,ADULT SOCIAL CARE,SUPREME CARE SERVICES LTD,648.1,PHY LTS 65+,HOMECARE - C&V,2103396596,1000059416
07.03.2022,ADULT SOCIAL CARE,SUPREME CARE SERVICES LTD,651.94,PHY LTS 65+,HOMECARE - C&V,2103396210,1000059416
07.03.2022,ADULT SOCIAL CARE,SUPREME CARE SERVICES LTD,660,PHY LTS 65+,HOMECARE - C&V,2103396332,1000059416
07.03.2022,ADULT SOCIAL CARE,SUPREME CARE SERVICES LTD,665.4,PHY LTS 65+,HOMECARE - C&V,2103396303,1000059416
07.03.2022,ADULT SOCIAL CARE,SUPREME CARE SERVICES LTD,677.83,PHY LTS 65+,HOMECARE - C&V,2103396553,1000059416
07.03.2022,ADULT SOCIAL CARE,SUPREME CARE SERVICES LTD,677.93,PHY LTS 65+,HOMECARE - C&V,2103396236,1000059416
07.03.2022,ADULT SOCIAL CARE,SUPREME CARE SERVICES LTD,678.86,PHY LTS 65+,HOMECARE - C&V,2103396231,1000059416
07.03.2022,ADULT SOCIAL CARE,SUPREME CARE SERVICES LTD,686.46,PHY LTS 65+,HOMECARE - C&V,2103396226,1000059416
07.03.2022,ADULT SOCIAL CARE,SUPREME CARE SERVICES LTD,698.59,PHY LTS 65+,HOMECARE - C&V,2103396325,1000059416
07.03.2022,ADULT SOCIAL CARE,SUPREME CARE SERVICES LTD,705.77,PHY LTS 65+,HOMECARE - C&V,2103396629,1000059416
07.03.2022,ADULT SOCIAL CARE,SUPREME CARE SERVICES LTD,707.61,PHY LTS 65+,HOMECARE - C&V,2103396380,1000059416
07.03.2022,ADULT SOCIAL CARE,SUPREME CARE SERVICES LTD,707.76,PHY LTS 65+,HOMECARE - C&V,2103396567,1000059416
07.03.2022,ADULT SOCIAL CARE,SUPREME CARE SERVICES LTD,710.36,PHY LTS 65+,HOMECARE - C&V,2103396575,1000059416
07.03.2022,ADULT SOCIAL CARE,SUPREME CARE SERVICES LTD,719.31,PHY LTS 65+,HOMECARE - C&V,2103396371,1000059416
07.03.2022,ADULT SOCIAL CARE,SUPREME CARE SERVICES LTD,724.32,PHY LTS 65+,HOMECARE - C&V,2103396349,1000059416
07.03.2022,ADULT SOCIAL CARE,SUPREME CARE SERVICES LTD,724.82,PHY LTS 65+,HOMECARE - C&V,2103396256,1000059416
07.03.2022,ADULT SOCIAL CARE,SUPREME CARE SERVICES LTD,729.06,PHY LTS 65+,HOMECARE - C&V,2103396610,1000059416
07.03.2022,ADULT SOCIAL CARE,SUPREME CARE SERVICES LTD,740.13,PHY LTS 65+,HOMECARE - C&V,2103396609,1000059416
07.03.2022,ADULT SOCIAL CARE,SUPREME CARE SERVICES LTD,740.27,PHY LTS 65+,HOMECARE - C&V,2103396234,1000059416
07.03.2022,ADULT SOCIAL CARE,SUPREME CARE SERVICES LTD,763.18,PHY LTS 65+,HOMECARE - C&V,2103396514,1000059416
07.03.2022,ADULT SOCIAL CARE,SUPREME CARE SERVICES LTD,767.19,PHY LTS 65+,HOMECARE - C&V,2103396524,1000059416
07.03.2022,ADULT SOCIAL CARE,SUPREME CARE SERVICES LTD,777.8,PHY LTS 65+,HOMECARE - C&V,2103396328,1000059416
07.03.2022,ADULT SOCIAL CARE,SUPREME CARE SERVICES LTD,782.16,PHY LTS 65+,HOMECARE - C&V,2103396400,1000059416
07.03.2022,ADULT SOCIAL CARE,SUPREME CARE SERVICES LTD,789.13,PHY LTS 65+,HOMECARE - C&V,2103396525,1000059416
07.03.2022,ADULT SOCIAL CARE,SUPREME CARE SERVICES LTD,803.74,PHY LTS 65+,HOMECARE - C&V,2103396301,1000059416
07.03.2022,ADULT SOCIAL CARE,SUPREME CARE SERVICES LTD,809.11,PHY LTS 65+,HOMECARE - C&V,2103396568,1000059416
07.03.2022,ADULT SOCIAL CARE,SUPREME CARE SERVICES LTD,810.11,PHY LTS 65+,HOMECARE - C&V,2103396594,1000059416
07.03.2022,ADULT SOCIAL CARE,SUPREME CARE SERVICES LTD,812.1,PHY LTS 65+,HOMECARE - C&V,2103396372,1000059416
07.03.2022,ADULT SOCIAL CARE,SUPREME CARE SERVICES LTD,818.17,PHY LTS 65+,HOMECARE - C&V,2103396228,1000059416
07.03.2022,ADULT SOCIAL CARE,SUPREME CARE SERVICES LTD,827.09,PHY LTS 65+,HOMECARE - C&V,2103396333,1000059416
07.03.2022,ADULT SOCIAL CARE,SUPREME CARE SERVICES LTD,830.08,PHY LTS 65+,HOMECARE - C&V,2103396415,1000059416
07.03.2022,ADULT SOCIAL CARE,SUPREME CARE SERVICES LTD,831.53,PHY LTS 65+,HOMECARE - C&V,2103396291,1000059416
07.03.2022,ADULT SOCIAL CARE,SUPREME CARE SERVICES LTD,832.21,PHY LTS 65+,HOMECARE - C&V,2103396626,1000059416
07.03.2022,ADULT SOCIAL CARE,SUPREME CARE SERVICES LTD,836.08,PHY LTS 65+,HOMECARE - C&V,2103396227,1000059416
07.03.2022,ADULT SOCIAL CARE,SUPREME CARE SERVICES LTD,843.5,PHY LTS 65+,HOMECARE - C&V,2103396541,1000059416
07.03.2022,ADULT SOCIAL CARE,SUPREME CARE SERVICES LTD,846.56,PHY LTS 65+,HOMECARE - C&V,2103396295,1000059416
07.03.2022,ADULT SOCIAL CARE,SUPREME CARE SERVICES LTD,848.68,PHY LTS 65+,HOMECARE - C&V,2103396297,1000059416
07.03.2022,ADULT SOCIAL CARE,SUPREME CARE SERVICES LTD,855.86,PHY LTS 65+,HOMECARE - C&V,2103396440,1000059416
07.03.2022,ADULT SOCIAL CARE,SUPREME CARE SERVICES LTD,860.04,PHY LTS 65+,HOMECARE - C&V,2103396433,1000059416
07.03.2022,ADULT SOCIAL CARE,SUPREME CARE SERVICES LTD,864.63,PHY LTS 65+,HOMECARE - C&V,2103396364,1000059416
07.03.2022,ADULT SOCIAL CARE,SUPREME CARE SERVICES LTD,869.39,PHY LTS 65+,HOMECARE - C&V,2103396324,1000059416
07.03.2022,ADULT SOCIAL CARE,SUPREME CARE SERVICES LTD,869.88,PHY LTS 65+,HOMECARE - C&V,2103396561,1000059416
07.03.2022,ADULT SOCIAL CARE,SUPREME CARE SERVICES LTD,872.08,PHY LTS 65+,HOMECARE - C&V,2103396471,1000059416
07.03.2022,ADULT SOCIAL CARE,SUPREME CARE SERVICES LTD,882.74,PHY LTS 65+,HOMECARE - C&V,2103396250,1000059416
07.03.2022,ADULT SOCIAL CARE,SUPREME CARE SERVICES LTD,885.66,PHY LTS 65+,HOMECARE - C&V,2103396307,1000059416
07.03.2022,ADULT SOCIAL CARE,SUPREME CARE SERVICES LTD,891.25,PHY LTS 65+,HOMECARE - C&V,2103396282,1000059416
07.03.2022,ADULT SOCIAL CARE,SUPREME CARE SERVICES LTD,895.52,PHY LTS 65+,HOMECARE - C&V,2103396214,1000059416
07.03.2022,ADULT SOCIAL CARE,SUPREME CARE SERVICES LTD,899.03,PHY LTS 65+,HOMECARE - C&V,2103396318,1000059416
07.03.2022,ADULT SOCIAL CARE,SUPREME CARE SERVICES LTD,899.13,PHY LTS 65+,HOMECARE - C&V,2103396316,1000059416
07.03.2022,ADULT SOCIAL CARE,SUPREME CARE SERVICES LTD,903.64,PHY LTS 65+,HOMECARE - C&V,2103396399,1000059416
07.03.2022,ADULT SOCIAL CARE,SUPREME CARE SERVICES LTD,908.02,PHY LTS 65+,HOMECARE - C&V,2103396565,1000059416
07.03.2022,ADULT SOCIAL CARE,SUPREME CARE SERVICES LTD,912.52,PHY LTS 65+,HOMECARE - C&V,2103396588,1000059416
07.03.2022,ADULT SOCIAL CARE,SUPREME CARE SERVICES LTD,912.64,PHY LTS 65+,HOMECARE - C&V,2103396416,1000059416
07.03.2022,ADULT SOCIAL CARE,SUPREME CARE SERVICES LTD,916.12,PHY LTS 65+,HOMECARE - C&V,2103396462,1000059416
07.03.2022,ADULT SOCIAL CARE,SUPREME CARE SERVICES LTD,918.18,PHY LTS 65+,HOMECARE - C&V,2103396420,1000059416
07.03.2022,ADULT SOCIAL CARE,SUPREME CARE SERVICES LTD,935.06,PHY LTS 65+,HOMECARE - C&V,2103396306,1000059416
07.03.2022,ADULT SOCIAL CARE,SUPREME CARE SERVICES LTD,947.86,PHY LTS 65+,HOMECARE - C&V,2103396598,1000059416
07.03.2022,ADULT SOCIAL CARE,SUPREME CARE SERVICES LTD,953.08,PHY LTS 65+,HOMECARE - C&V,2103396348,1000059416
07.03.2022,ADULT SOCIAL CARE,SUPREME CARE SERVICES LTD,958.4,PHY LTS 65+,HOMECARE - C&V,2103396390,1000059416
07.03.2022,ADULT SOCIAL CARE,SUPREME CARE SERVICES LTD,971.06,PHY LTS 65+,HOMECARE - C&V,2103396239,1000059416
07.03.2022,ADULT SOCIAL CARE,SUPREME CARE SERVICES LTD,976.39,PHY LTS 65+,HOMECARE - C&V,2103396591,1000059416
07.03.2022,ADULT SOCIAL CARE,SUPREME CARE SERVICES LTD,976.92,PHY LTS 65+,HOMECARE - C&V,2103396358,1000059416
07.03.2022,ADULT SOCIAL CARE,SUPREME CARE SERVICES LTD,979.95,PHY LTS 65+,HOMECARE - C&V,2103396305,1000059416
07.03.2022,ADULT SOCIAL CARE,SUPREME CARE SERVICES LTD,994.39,PHY LTS 65+,HOMECARE - C&V,2103396322,1000059416
07.03.2022,ADULT SOCIAL CARE,SUPREME CARE SERVICES LTD,996.21,PHY LTS 65+,HOMECARE - C&V,2103396365,1000059416
07.03.2022,ADULT SOCIAL CARE,SUPREME CARE SERVICES LTD,998.03,PHY LTS 65+,HOMECARE - C&V,2103396262,1000059416
07.03.2022,ADULT SOCIAL CARE,SUPREME CARE SERVICES LTD,"1,006.22",PHY LTS 65+,HOMECARE - C&V,2103396528,1000059416
07.03.2022,ADULT SOCIAL CARE,SUPREME CARE SERVICES LTD,"1,006.90",PHY LTS 65+,HOMECARE - C&V,2103396508,1000059416
07.03.2022,ADULT SOCIAL CARE,SUPREME CARE SERVICES LTD,"1,029.36",PHY LTS 65+,HOMECARE - C&V,2103396330,1000059416
07.03.2022,ADULT SOCIAL CARE,SUPREME CARE SERVICES LTD,"1,033.89",PHY LTS 65+,HOMECARE - C&V,2103396429,1000059416
07.03.2022,ADULT SOCIAL CARE,SUPREME CARE SERVICES LTD,"1,036.25",PHY LTS 65+,HOMECARE - C&V,2103396326,1000059416
07.03.2022,ADULT SOCIAL CARE,SUPREME CARE SERVICES LTD,"1,042.99",PHY LTS 65+,HOMECARE - C&V,2103396436,1000059416
07.03.2022,ADULT SOCIAL CARE,SUPREME CARE SERVICES LTD,"1,048.84",PHY LTS 65+,HOMECARE - C&V,2103396592,1000059416
07.03.2022,ADULT SOCIAL CARE,SUPREME CARE SERVICES LTD,"1,064.42",PHY LTS 65+,HOMECARE - C&V,2103396402,1000059416
07.03.2022,ADULT SOCIAL CARE,SUPREME CARE SERVICES LTD,"1,065.46",PHY LTS 65+,HOMECARE - C&V,2103396238,1000059416
07.03.2022,ADULT SOCIAL CARE,SUPREME CARE SERVICES LTD,"1,068.97",PHY LTS 65+,HOMECARE - C&V,2103396569,1000059416
07.03.2022,ADULT SOCIAL CARE,SUPREME CARE SERVICES LTD,"1,072.31",PHY LTS 65+,HOMECARE - C&V,2103396389,1000059416
07.03.2022,ADULT SOCIAL CARE,SUPREME CARE SERVICES LTD,"1,078.80",PHY LTS 65+,HOMECARE - C&V,2103396337,1000059416
07.03.2022,ADULT SOCIAL CARE,SUPREME CARE SERVICES LTD,"1,083.35",PHY LTS 65+,HOMECARE - C&V,2103396533,1000059416
07.03.2022,ADULT SOCIAL CARE,SUPREME CARE SERVICES LTD,"1,089.72",PHY LTS 65+,HOMECARE - C&V,2103396418,1000059416
07.03.2022,ADULT SOCIAL CARE,SUPREME CARE SERVICES LTD,"1,091.99",PHY LTS 65+,HOMECARE - C&V,2103396382,1000059416
07.03.2022,ADULT SOCIAL CARE,SUPREME CARE SERVICES LTD,"1,096.92",PHY LTS 65+,HOMECARE - C&V,2103396397,1000059416
07.03.2022,ADULT SOCIAL CARE,SUPREME CARE SERVICES LTD,"1,101.42",PHY LTS 65+,HOMECARE - C&V,2103396529,1000059416
07.03.2022,ADULT SOCIAL CARE,SUPREME CARE SERVICES LTD,"1,121.49",PHY LTS 65+,HOMECARE - C&V,2103396251,1000059416
07.03.2022,ADULT SOCIAL CARE,SUPREME CARE SERVICES LTD,"1,141.88",PHY LTS 65+,HOMECARE - C&V,2103396241,1000059416
07.03.2022,ADULT SOCIAL CARE,SUPREME CARE SERVICES LTD,"1,146.27",PHY LTS 65+,HOMECARE - C&V,2103396408,1000059416
07.03.2022,ADULT SOCIAL CARE,SUPREME CARE SERVICES LTD,"1,168.74",PHY LTS 65+,HOMECARE - C&V,2103396275,1000059416
07.03.2022,ADULT SOCIAL CARE,SUPREME CARE SERVICES LTD,"1,173.27",PHY LTS 65+,HOMECARE - C&V,2103396515,1000059416
07.03.2022,ADULT SOCIAL CARE,SUPREME CARE SERVICES LTD,"1,185.97",PHY LTS 65+,HOMECARE - C&V,2103396545,1000059416
07.03.2022,ADULT SOCIAL CARE,SUPREME CARE SERVICES LTD,"1,189.69",PHY LTS 65+,HOMECARE - C&V,2103396225,1000059416
07.03.2022,ADULT SOCIAL CARE,SUPREME CARE SERVICES LTD,"1,200.22",PHY LTS 65+,HOMECARE - C&V,2103396287,1000059416
07.03.2022,ADULT SOCIAL CARE,SUPREME CARE SERVICES LTD,"1,200.35",PHY LTS 65+,HOMECARE - C&V,2103396336,1000059416
07.03.2022,ADULT SOCIAL CARE,SUPREME CARE SERVICES LTD,"1,204.70",PHY LTS 65+,HOMECARE - C&V,2103396601,1000059416
07.03.2022,ADULT SOCIAL CARE,SUPREME CARE SERVICES LTD,"1,219.28",PHY LTS 65+,HOMECARE - C&V,2103396602,1000059416
07.03.2022,ADULT SOCIAL CARE,SUPREME CARE SERVICES LTD,"1,220.91",PHY LTS 65+,HOMECARE - C&V,2103396476,1000059416
07.03.2022,ADULT SOCIAL CARE,SUPREME CARE SERVICES LTD,"1,222.80",PHY LTS 65+,HOMECARE - C&V,2103396432,1000059416
07.03.2022,ADULT SOCIAL CARE,SUPREME CARE SERVICES LTD,"1,222.82",PHY LTS 65+,HOMECARE - C&V,2103396243,1000059416
07.03.2022,ADULT SOCIAL CARE,SUPREME CARE SERVICES LTD,"1,227.17",PHY LTS 65+,HOMECARE - C&V,2103396339,1000059416
07.03.2022,ADULT SOCIAL CARE,SUPREME CARE SERVICES LTD,"1,227.43",PHY LTS 65+,HOMECARE - C&V,2103396347,1000059416
07.03.2022,ADULT SOCIAL CARE,SUPREME CARE SERVICES LTD,"1,228.00",PHY LTS 65+,HOMECARE - C&V,2103396273,1000059416
07.03.2022,ADULT SOCIAL CARE,SUPREME CARE SERVICES LTD,"1,231.79",PHY LTS 65+,HOMECARE - C&V,2103396377,1000059416
07.03.2022,ADULT SOCIAL CARE,SUPREME CARE SERVICES LTD,"1,232.25",PHY LTS 65+,HOMECARE - C&V,2103396276,1000059416
07.03.2022,ADULT SOCIAL CARE,SUPREME CARE SERVICES LTD,"1,245.29",PHY LTS 65+,HOMECARE - C&V,2103396494,1000059416
07.03.2022,ADULT SOCIAL CARE,SUPREME CARE SERVICES LTD,"1,290.44",PHY LTS 65+,HOMECARE - C&V,2103396220,1000059416
07.03.2022,ADULT SOCIAL CARE,SUPREME CARE SERVICES LTD,"1,304.54",PHY LTS 65+,HOMECARE - C&V,2103396589,1000059416
07.03.2022,ADULT SOCIAL CARE,SUPREME CARE SERVICES LTD,"1,309.21",PHY LTS 65+,HOMECARE - C&V,2103396489,1000059416
07.03.2022,ADULT SOCIAL CARE,SUPREME CARE SERVICES LTD,"1,321.56",PHY LTS 65+,HOMECARE - C&V,2103396587,1000059416
07.03.2022,ADULT SOCIAL CARE,SUPREME CARE SERVICES LTD,"1,353.06",PHY LTS 65+,HOMECARE - C&V,2103396244,1000059416
07.03.2022,ADULT SOCIAL CARE,SUPREME CARE SERVICES LTD,"1,382.08",PHY LTS 65+,HOMECARE - C&V,2103396572,1000059416
07.03.2022,ADULT SOCIAL CARE,SUPREME CARE SERVICES LTD,"1,417.50",PHY LTS 65+,HOMECARE - C&V,2103396577,1000059416
07.03.2022,ADULT SOCIAL CARE,SUPREME CARE SERVICES LTD,"1,501.48",PHY LTS 65+,HOMECARE - C&V,2103396496,1000059416
07.03.2022,ADULT SOCIAL CARE,SUPREME CARE SERVICES LTD,"1,519.55",PHY LTS 65+,HOMECARE - C&V,2103396485,1000059416
07.03.2022,ADULT SOCIAL CARE,SUPREME CARE SERVICES LTD,"1,528.32",PHY LTS 65+,HOMECARE - C&V,2103396557,1000059416
07.03.2022,ADULT SOCIAL CARE,SUPREME CARE SERVICES LTD,"1,528.73",PHY LTS 65+,HOMECARE - C&V,2103396280,1000059416
07.03.2022,ADULT SOCIAL CARE,SUPREME CARE SERVICES LTD,"1,560.56",PHY LTS 65+,HOMECARE - C&V,2103396223,1000059416
07.03.2022,ADULT SOCIAL CARE,SUPREME CARE SERVICES LTD,"1,568.88",PHY LTS 65+,HOMECARE - C&V,2103396230,1000059416
07.03.2022,ADULT SOCIAL CARE,SUPREME CARE SERVICES LTD,"1,649.84",PHY LTS 65+,HOMECARE - C&V,2103396576,1000059416
07.03.2022,ADULT SOCIAL CARE,SUPREME CARE SERVICES LTD,"1,663.30",PHY LTS 65+,HOMECARE - C&V,2103396381,1000059416
07.03.2022,ADULT SOCIAL CARE,SUPREME CARE SERVICES LTD,"1,694.98",PHY LTS 65+,HOMECARE - C&V,2103396258,1000059416
07.03.2022,ADULT SOCIAL CARE,SUPREME CARE SERVICES LTD,"1,712.88",PHY LTS 65+,HOMECARE - C&V,2103396571,1000059416
07.03.2022,ADULT SOCIAL CARE,SUPREME CARE SERVICES LTD,"1,730.18",PHY LTS 65+,HOMECARE - C&V,2103396472,1000059416
07.03.2022,ADULT SOCIAL CARE,SUPREME CARE SERVICES LTD,"1,742.14",PHY LTS 65+,HOMECARE - C&V,2103396612,1000059416
07.03.2022,ADULT SOCIAL CARE,SUPREME CARE SERVICES LTD,"1,833.19",PHY LTS 65+,HOMECARE - C&V,2103396265,1000059416
07.03.2022,ADULT SOCIAL CARE,SUPREME CARE SERVICES LTD,"1,952.89",PHY LTS 65+,HOMECARE - C&V,2103396253,1000059416
07.03.2022,ADULT SOCIAL CARE,SUPREME CARE SERVICES LTD,"2,023.17",PHY LTS 65+,HOMECARE - C&V,2103396361,1000059416
07.03.2022,ADULT SOCIAL CARE,SUPREME CARE SERVICES LTD,"2,171.11",PHY LTS 65+,HOMECARE - C&V,2103396331,1000059416
07.03.2022,ADULT SOCIAL CARE,SUPREME CARE SERVICES LTD,"2,171.30",PHY LTS 65+,HOMECARE - C&V,2103396506,1000059416
07.03.2022,ADULT SOCIAL CARE,SUPREME CARE SERVICES LTD,"2,264.30",PHY LTS 65+,HOMECARE - C&V,2103396245,1000059416
07.03.2022,ADULT SOCIAL CARE,SUPREME CARE SERVICES LTD,"2,309.05",PHY LTS 65+,HOMECARE - C&V,2103396580,1000059416
07.03.2022,ADULT SOCIAL CARE,SUPREME CARE SERVICES LTD,"2,362.27",PHY LTS 65+,HOMECARE - C&V,2103396292,1000059416
07.03.2022,ADULT SOCIAL CARE,SUPREME CARE SERVICES LTD,"2,385.89",PHY LTS 65+,HOMECARE - C&V,2103396523,1000059416
07.03.2022,ADULT SOCIAL CARE,SUPREME CARE SERVICES LTD,"2,396.02",PHY LTS 65+,HOMECARE - C&V,2103396509,1000059416
07.03.2022,ADULT SOCIAL CARE,SUPREME CARE SERVICES LTD,"2,423.16",PHY LTS 65+,HOMECARE - C&V,2103396564,1000059416
07.03.2022,ADULT SOCIAL CARE,SUPREME CARE SERVICES LTD,"2,434.05",PHY LTS 65+,HOMECARE - C&V,2103396597,1000059416
07.03.2022,ADULT SOCIAL CARE,SUPREME CARE SERVICES LTD,"2,455.13",PHY LTS 65+,HOMECARE - C&V,2103396367,1000059416
07.03.2022,ADULT SOCIAL CARE,SUPREME CARE SERVICES LTD,"2,460.24",PHY LTS 65+,HOMECARE - C&V,2103396263,1000059416
07.03.2022,ADULT SOCIAL CARE,SUPREME CARE SERVICES LTD,"2,472.62",PHY LTS 65+,HOMECARE - C&V,2103396314,1000059416
07.03.2022,ADULT SOCIAL CARE,SUPREME CARE SERVICES LTD,"2,576.11",PHY LTS 65+,HOMECARE - C&V,2103396573,1000059416
07.03.2022,ADULT SOCIAL CARE,SUPREME CARE SERVICES LTD,"2,703.14",PHY LTS 65+,HOMECARE - C&V,2103396268,1000059416
07.03.2022,ADULT SOCIAL CARE,SUPREME CARE SERVICES LTD,"2,737.04",PHY LTS 65+,HOMECARE - C&V,2103396323,1000059416
07.03.2022,ADULT SOCIAL CARE,SUPREME CARE SERVICES LTD,"2,751.00",PHY LTS 65+,HOMECARE - C&V,2103396249,1000059416
07.03.2022,ADULT SOCIAL CARE,SUPREME CARE SERVICES LTD,"2,971.52",PHY LTS 65+,HOMECARE - C&V,2103396595,1000059416
07.03.2022,ADULT SOCIAL CARE,SUPREME CARE SERVICES LTD,"2,997.07",PHY LTS 65+,HOMECARE - C&V,2103396517,1000059416
07.03.2022,ADULT SOCIAL CARE,SUPREME CARE SERVICES LTD,"3,183.52",PHY LTS 65+,HOMECARE - C&V,2103396329,1000059416
07.03.2022,ADULT SOCIAL CARE,SUPREME CARE SERVICES LTD,"3,780.97",PHY LTS 65+,HOMECARE - C&V,2103396378,1000059416
07.03.2022,ADULT SOCIAL CARE,SUPREME CARE SERVICES LTD,655.21,PHY STS 18-64,HOMECARE - IC,2103396554,1000059416
07.03.2022,ADULT SOCIAL CARE,SUPREME CARE SERVICES LTD,262.05,PHY STS 65+,HOMECARE - IC,2103396581,1000059416
07.03.2022,ADULT SOCIAL CARE,SUPREME CARE SERVICES LTD,755.16,PHY STS 65+,HOMECARE - IC,2103396623,1000059416
07.03.2022,ADULT SOCIAL CARE,SUPREME CARE SERVICES LTD,956.74,PHY STS 65+,HOMECARE - IC,2103396488,1000059416
07.03.2022,ADULT SOCIAL CARE,SUPREME CARE SERVICES LTD,"1,744.55",PHY STS 65+,HOMECARE - IC,2103396608,1000059416
07.03.2022,ADULT SOCIAL CARE,SUPREME CARE SERVICES LTD,"2,022.77",PHY STS 65+,HOMECARE - IC,2103396627,1000059416
07.03.2022,ADULT SOCIAL CARE,SUPREME CARE SERVICES LTD,"1,047.53",SEN LTS 65+,HOMECARE - C&V,2103396593,1000059416
07.03.2022,ADULT SOCIAL CARE,SUPREME CARE SERVICES LTD,"1,398.76",SEN LTS 65+,HOMECARE - C&V,2103396464,1000059416
07.03.2022,ADULT SOCIAL CARE,SUPREME CARE SERVICES LTD,467.7,SOCIAL ISOLATION,HOMECARE - C&V,2103396519,1000059416
07.03.2022,ADULT SOCIAL CARE,SUPREME CARE SERVICES LTD,584.36,SOCIAL ISOLATION,HOMECARE - C&V,2103396346,1000059416
07.03.2022,ADULT SOCIAL CARE,SUPREME CARE SERVICES LTD,591.94,SOCIAL ISOLATION,HOMECARE - C&V,2103396362,1000059416
07.03.2022,ADULT SOCIAL CARE,SUPREME CARE SERVICES LTD,"2,112.87",SOCIAL ISOLATION,HOMECARE - C&V,2103396586,1000059416
07.03.2022,ADULT SOCIAL CARE,SUPREME CARE SERVICES LTD,"2,481.56",SOCIAL ISOLATION,HOMECARE - C&V,2103396570,1000059416
07.03.2022,ADULT SOCIAL CARE,A2B TAXIS TRURO LTD,550,SUB LTS 18-64,CLIENT TRANSPORT,5902513836,1000088072
07.03.2022,ADULT SOCIAL CARE,SUPREME CARE SERVICES LTD,341.16,SUB LTS 18-64,HOMECARE - C&V,2103396288,1000059416
07.03.2022,ADULT SOCIAL CARE,SUPREME CARE SERVICES LTD,687.86,SUB LTS 18-64,HOMECARE - C&V,2103396457,1000059416
07.03.2022,ADULT SOCIAL CARE,SUPREME CARE SERVICES LTD,780.03,SUB LTS 18-64,HOMECARE - C&V,2103396499,1000059416
07.03.2022,ADULT SOCIAL CARE,SUPREME CARE SERVICES LTD,835.59,SUB LTS 18-64,HOMECARE - C&V,2103396237,1000059416
07.03.2022,ASSET MANAGEMENT,CAPITAL SERVICES LONDON LTD,"7,666.67",COMMERCIAL (QS),PROFESSIONAL FEES,5902513787,1000082548
07.03.2022,ASSET MANAGEMENT,FRANKHAM CONSULTANCY GROUP LTD,"1,250.00",DISREPAIR,PAYMENTS FOR LEGAL SERVICES,5902513474,1000043952
07.03.2022,ASSET MANAGEMENT,AVONLINE NETWORK SERVICES LTD,840.67,ENG CONTRACTS (NORTH),TV AERIALS R&M,5902513512,1000068672
07.03.2022,CENTRAL FUNCTIONS,CBS MAINTENANCE SERVICES LTD,"8,592.00",COMMERCIAL PROPERTIES,BUILDING R&M,2103396636,3000001518
07.03.2022,CENTRAL FUNCTIONS,CURRIE & BROWN UK LTD,"3,782.50",COMMERCIAL PROPERTIES,PROFESSIONAL FEES,5902513679,1000033455
07.03.2022,CENTRAL FUNCTIONS,PURCELL ARCHITECTURE LTD,"2,500.00",COMMERCIAL PROPERTIES,PROFESSIONAL FEES,5902513692,1000082955
07.03.2022,CHIEF EXECUTIVE,METIS CONSULTANTS LIMITED,"4,175.00",CAPITAL PS (REGEN),CONSTRUCTION FEES  - EXTERNAL,5902513747,1000086330
07.03.2022,CHIEF EXECUTIVE'S OFFICE,RICE RETAIL MARKETING LTD,"10,000.00",ADDITIONAL RESTRICTIONS GRANT,GRANTS,5902513681,1000082370
07.03.2022,CHIEF EXECUTIVE'S OFFICE,SOUTHWARK LAW CENTRE,"12,788.00",CHIEF EXECUTIVE'S OFFICE,EXTERNAL AGENCIES AND BODIES,5902513676,1981325
07.03.2022,CHIEF EXECUTIVE'S OFFICE,LATIN AMERICAN WOMEN'S RIGHTS SERVICES,"7,502.00",CHIEF EXECUTIVE'S OFFICE,EXTERNAL AGENCIES AND BODIES,5902513675,1000068356
07.03.2022,CHILDREN AND ADULT,CULLINAN STUDIO LTD,"49,704.58",CAPITAL PS (EDUCATION),CONSTRUCTION FEES - ARCHITECT,5902513646,1000087576
07.03.2022,CHILDREN AND FAMILIES,REDACTED PERSONAL DATA,300,FE SUPPORT,CLIENT TRANSPORT,REDACTED,REDACTED
07.03.2022,CHILDREN AND FAMILIES,REDACTED PERSONAL DATA,"2,000.00",LEAVING CARE GRANT,OTHER PAYMENTS FOR CLIENTS,REDACTED,REDACTED
07.03.2022,CHILDREN AND FAMILIES,THE APPROPRIATE ADULT SERVICE LTD,"1,300.00",YOS MGMT & SUPPORT,EXTERNAL AGENCIES AND BODIES,5902512828,1000047682
07.03.2022,COMMUNITIES,CHANGE GROW LIVE SERVICES LTD,"285,060.00",ADULT SM SERVICE,OTHER CONTRACTORS,5902513641,1000082721
07.03.2022,COMMUNITIES,HOMELY HOUSING LETS LTD,"1,345.07",NO RECOURSE TO PUBLIC FUNDS,ACCOMMODATION CHARGES,5902513721,1000050013
07.03.2022,COMMUNITIES,HOMELY HOUSING LETS LTD,"15,131.46",NO RECOURSE TO PUBLIC FUNDS,ACCOMMODATION CHARGES,5902513721,1000050013
07.03.2022,COMMUNITIES,TAAKSVALE HOUSING LTD,"27,208.00",NO RECOURSE TO PUBLIC FUNDS,ACCOMMODATION CHARGES,5902513760,1000073665
07.03.2022,COMMUNITIES,STENFORD PROPERTY LTD,"10,903.60",NO RECOURSE TO PUBLIC FUNDS,ACCOMMODATION CHARGES,5902513714,1000074759
07.03.2022,COMMUNITIES,NORBURY PROPERTY SERVICES (LONDON) LTD,"2,171.00",NO RECOURSE TO PUBLIC FUNDS,ACCOMMODATION CHARGES,5902513726,1000075566
07.03.2022,COMMUNITIES,ZFA ACCOMMODATION LTD,"5,164.00",NO RECOURSE TO PUBLIC FUNDS,ACCOMMODATION CHARGES,5902513775,1000082620
07.03.2022,COMMUNITIES,HOMELY HOUSING LETS LTD,718.2,NO RECOURSE TO PUBLIC FUNDS,OTHER PAYMENTS FOR CLIENTS,5902513724,1000050013
07.03.2022,COMMUNITIES,BROOK,"36,437.50",YOUNG PEOPLES SERVICE,OTHER CONTRACTORS,5902513614,1000076901
07.03.2022,CUSTOMER EXPERIENCE HGF,IMPERIAL COLLEGE PROJECTS LTD,292,CORONER'S,PROFESSIONAL FEES,5902513618,1000080106
07.03.2022,CUSTOMER EXPERIENCE HGF,IMPERIAL COLLEGE PROJECTS LTD,352,CORONER'S,PROFESSIONAL FEES,5902513639,1000080106
07.03.2022,CUSTOMER EXPERIENCE HGF,IMPERIAL COLLEGE PROJECTS LTD,376,CORONER'S,PROFESSIONAL FEES,5902513642,1000080106
07.03.2022,CUSTOMER EXPERIENCE HGF,IMPERIAL COLLEGE PROJECTS LTD,424,CORONER'S,PROFESSIONAL FEES,5902513619,1000080106
07.03.2022,CUSTOMER EXPERIENCE HGF,IMPERIAL COLLEGE PROJECTS LTD,468,CORONER'S,PROFESSIONAL FEES,5902513627,1000080106
07.03.2022,CUSTOMER EXPERIENCE HGF,IMPERIAL COLLEGE PROJECTS LTD,492,CORONER'S,PROFESSIONAL FEES,5902513631,1000080106
07.03.2022,CUSTOMER EXPERIENCE HGF,IMPERIAL COLLEGE PROJECTS LTD,580,CORONER'S,PROFESSIONAL FEES,5902513621,1000080106
07.03.2022,DSG,LIONCARE LIMITED,"1,000.00",VIRTUAL SCHOOL PP,SCHOOLS CAPITATION,2103396192,1000065330
07.03.2022,DSG,BONUS PASTOR CATHOLIC COLLEGE,"1,100.00",VIRTUAL SCHOOL PP,SCHOOLS CAPITATION,2103396195,1000073359
07.03.2022,DSG,OASIS ACADEMY SOUTH BANK,"2,800.00",VIRTUAL SCHOOL PP,SCHOOLS CAPITATION,2103396190,1000073422
07.03.2022,DSG,THEDWASTRE EDUCATION TRUST,800,VIRTUAL SCHOOL PP,SCHOOLS CAPITATION,2103396193,1000086508
07.03.2022,DSG,BLACKFEN SCHOOL FOR GIRLS,374.89,VIRTUAL SCHOOL PP,SCHOOLS CAPITATION,2103396199,1000071155
07.03.2022,DSG,SYDENHAM SCHOOL,"4,500.00",VIRTUAL SCHOOL PP,SCHOOLS CAPITATION,2103396189,1000079303
07.03.2022,DSG,ST GEORGE'S C OF E FOUNDATION SCHOOL,"1,500.00",VIRTUAL SCHOOL PP,SCHOOLS CAPITATION,2103396188,1000082968
07.03.2022,DSG,THE BOSWELLS SCHOOL,365,VIRTUAL SCHOOL PP,SCHOOLS CAPITATION,2103396200,1000084151
07.03.2022,DSG,TWO GATES PRIMARY SCHOOL,830.85,VIRTUAL SCHOOL PP,SCHOOLS CAPITATION,2103396194,1000088035
07.03.2022,DSG,CHERRY GARDEN SCHOOL,"1,500.00",VIRTUAL SCHOOL PP,SCHOOLS CAPITATION,2103396191,5001000020
07.03.2022,DSG,GRANGE PRIMARY SCHOOL,"1,050.00",VIRTUAL SCHOOL PP,SCHOOLS CAPITATION,2103396198,5001000029
07.03.2022,DSG,ST SAVIOURS & ST OLAVES SCHOOL,"1,328.00",VIRTUAL SCHOOL PP,SCHOOLS CAPITATION,2103396196,5001000084
07.03.2022,EDUCATION,HERTS FOR LEARNING LTD,"1,791.00",EY & PUPIL TRACKING,TRAINING,5902513715,1000083381
07.03.2022,EDUCATION,SOUTH LONDON MUSIC LIMITED,404.22,LEA MUSIC SERVICE(310) - 5018566,BOOKS & PUBLICATIONS,5902513613,1000088031
07.03.2022,EMPLOYEE EXPERIENCE,STONEWALL EQUALITY LTD,"2,500.00",CONSULTANCY,CONSULTANTS SERVICES,5902512855,1000055279
07.03.2022,ENVIRONMENT AND LEISURE,JONATHAN COOK LANDSCAPE ARCHITECTS,800,CAPITAL PS (LEISURE),CONSTRUCTION FEES  - EXTERNAL,5902513691,1000081576
07.03.2022,ENVIRONMENT AND LEISURE,COMPLETE PRINT SOLUTIONS,"1,881.00",CAPITAL PS (LEISURE),CONSTRUCTION MAIN CONTRACT -CERTIFICATED,5902513820,1000082234
07.03.2022,ENVIRONMENT AND LEISURE,RH WROUGHT IRON,"5,000.00",CAPITAL PS (LEISURE),CONSTRUCTION MAIN CONTRACT -CERTIFICATED,2103396639,3000000680
07.03.2022,ENVIRONMENT AND LEISURE,GOOD WITH DEVICES LTD,"8,367.88",CAPITAL PS (LEISURE),ICT ACQUISITION,5902513651,1000085257
07.03.2022,ENVIRONMENT AND LEISURE,STONEGROVE LIMITED,"4,923.61",MANAGEMENT TEAM,BUILDING R&M,2103396635,3000001525
07.03.2022,ENVIRONMENT AND LEISURE,TENNANT UK CLEANING SOLUTIONS LTD,259.2,MANAGEMENT TEAM,EQUIPMENT PURCHASE & REPAIR,5902513718,1065589
07.03.2022,ENVIRONMENT AND LEISURE,BELL BRUSH COMPANY,338,MANAGEMENT TEAM,MATERIALS,5902512775,1259776
07.03.2022,ENVIRONMENT DIRECTORATE,1ENV SOLUTIONS LTD,580.15,COMMERCIAL PEST CONTROL WORKS,MATERIALS,5902513562,1000075410
07.03.2022,ENVIRONMENT DIRECTORATE,HORIZON ENVIRONMENT SERVICES LTD,950,COMMERCIAL PEST CONTROL WORKS,OTHER CONTRACTORS,5902513729,1000059440
07.03.2022,ENVIRONMENT DIRECTORATE,LEX AUTOLEASE,"19,188.35",COMMERCIAL VEH CTRL A/C,HIRED VEHICLES,5902513657,1000069462
07.03.2022,ENVIRONMENT DIRECTORATE,ENTERPRISE FLEX E RENT,625.36,COMMERCIAL VEH CTRL A/C,HIRED VEHICLES,5902513768,1000069585
07.03.2022,ENVIRONMENT DIRECTORATE,UNIVERSAL TYRE & AUTOCENTRES,288.91,COMMERCIAL VEH CTRL A/C,OTHER VEHICLE RUNNING COSTS,5902513752,1000072475
07.03.2022,ENVIRONMENT DIRECTORATE,UNIVERSAL TYRE & AUTOCENTRES,297.41,COMMERCIAL VEH CTRL A/C,OTHER VEHICLE RUNNING COSTS,5902513830,1000072475
07.03.2022,ENVIRONMENT DIRECTORATE,UNIVERSAL TYRE & AUTOCENTRES,368.87,COMMERCIAL VEH CTRL A/C,OTHER VEHICLE RUNNING COSTS,5902513723,1000072475
07.03.2022,ENVIRONMENT DIRECTORATE,UNIVERSAL TYRE & AUTOCENTRES,671.88,COMMERCIAL VEH CTRL A/C,OTHER VEHICLE RUNNING COSTS,5902513772,1000072475
07.03.2022,ENVIRONMENT DIRECTORATE,AUTOMOTIVE LEASING,609.83,COMMERCIAL VEH CTRL A/C,VEHICLE REPAIRS & MAINTENANCE,5902513779,11014756
07.03.2022,ENVIRONMENT DIRECTORATE,AUTOMOTIVE LEASING,"5,398.42",COMMERCIAL VEH CTRL A/C,VEHICLE REPAIRS & MAINTENANCE,5902513777,11014756
07.03.2022,ENVIRONMENT DIRECTORATE,DUNDALK MOTORS LONDON,"1,270.00",COMMERCIAL VEH CTRL A/C,VEHICLE REPAIRS & MAINTENANCE,5902513757,1000084820
07.03.2022,ENVIRONMENT DIRECTORATE,THE T P PARTNERSHIP,445,ESTATE CLEANING-GENERAL,OTHER CONTRACTORS,5902513490,1000045906
07.03.2022,ENVIRONMENT DIRECTORATE,SPALDINGS (UK) LTD,920.83,GROUNDS MAINTENANCE - GENERAL,MATERIALS,5902513750,1907384
07.03.2022,ENVIRONMENT DIRECTORATE,BSI ASSURANCE UK LIMITED,"1,055.00",PEST CONTROL,SUBSCRIPTIONS,5902513840,1000001195
07.03.2022,ENVIRONMENT DIRECTORATE,GLASDON UK LIMITED,"2,032.20",STREET CLEANING-GENERAL,MATERIALS,5902513203,1024073
07.03.2022,ENVIRONMENT DIRECTORATE,ELLIOT ENVIRONMENTAL LTD,400,STREET CLEANING-GENERAL,OTHER CONTRACTORS,5902513722,1000047392
07.03.2022,ENVIRONMENT DIRECTORATE,EDF ENERGY PLC,"2,088.28",STREET LIGHTING REACTIVE,ELECTRICITY,5902513790,1008746
07.03.2022,F & C S EXCLUDING CORPORATE BUDGETS,NEC SOFTWARE SOLUTIONS UK LTD,259.92,ADMINISTRATIVE SUPPORT,POSTAGES,5902513567,1000087043
07.03.2022,F & C S EXCLUDING CORPORATE BUDGETS,MRO PEOPLE LTD,850,ADMINISTRATIVE SUPPORT,TRAINING,5902513801,1000083017
07.03.2022,FINANCE & GOVERNANCE,STAFFINO,"1,425.00",ADMINISTRATION SUPPORT,SOFTWARE,6102018604,INTERNATIONAL PAYMENT
07.03.2022,HOUSING,SILK & MACKMAN SERVICES LTD,"1,739.66",PAYMENTS CONTROL ACCOUNT SILK & MACKMAN,I-WORLD CONTRACTORS HOLDING ACCOUNT,5902513809,1000035282
07.03.2022,HOUSING GENERAL FUND,MITIE FM LIMITED,"7,963.20",CAPITAL PS (HOUSING GF),CONSTRUCTION MAIN CONTRACT,5902513736,1000070792
07.03.2022,HOUSING GENERAL FUND,INFINITY NETWORKS LTD,738,CAPITAL PS (REGEN),CONSTRUCTION MAIN CONTRACT,5902513611,1000035571
07.03.2022,HOUSING GENERAL FUND,INFINITY NETWORKS LTD,"2,000.00",CAPITAL PS (REGEN),CONSTRUCTION MAIN CONTRACT,5902513611,1000035571
07.03.2022,HOUSING GENERAL FUND,STONEGROVE LIMITED,"22,883.00",CAPITAL PS (REGEN),CONSTRUCTION MAIN CONTRACT,5902513705,1000048879
07.03.2022,HOUSING GENERAL FUND,ASBESTOS SOLUTIONS LTD,600,CAPITAL PS (REGEN),CONSTRUCTION MAIN CONTRACT,5902513630,1000082945
07.03.2022,HOUSING HRA,CRS DRAWING AND DESIGN LTD,"29,955.00",CAPITAL PS (HRA),CONSTRUCTION,5902513515,1000085835
07.03.2022,HOUSING HRA,BETA DISTRIBUTION (SOUTH) LTD,"1,276.88",CAPITAL PS (HRA),CONSTRUCTION FEES,5902513427,1000044844
07.03.2022,HOUSING HRA,HUNTER & PARTNERS LTD,"1,800.00",CAPITAL PS (HRA),CONSTRUCTION FEES,5902513166,1000055088
07.03.2022,HOUSING HRA,POTTER RAPER LTD,"20,047.50",CAPITAL PS (HRA),CONSTRUCTION FEES  - EXTERNAL,5902513798,1009369
07.03.2022,HOUSING HRA,CALFORD SEADEN LLP,814,CAPITAL PS (HRA),CONSTRUCTION FEES  - EXTERNAL,5902513811,1061592
07.03.2022,HOUSING HRA,CALFORD SEADEN LLP,843.78,CAPITAL PS (HRA),CONSTRUCTION FEES  - EXTERNAL,5902513756,1061592
07.03.2022,HOUSING HRA,CALFORD SEADEN LLP,"3,903.45",CAPITAL PS (HRA),CONSTRUCTION FEES  - EXTERNAL,5902513742,1061592
07.03.2022,HOUSING HRA,CALFORD SEADEN LLP,"4,910.10",CAPITAL PS (HRA),CONSTRUCTION FEES  - EXTERNAL,5902513626,1061592
07.03.2022,HOUSING HRA,CALFORD SEADEN LLP,"5,000.00",CAPITAL PS (HRA),CONSTRUCTION FEES  - EXTERNAL,5902513633,1061592
07.03.2022,HOUSING HRA,CALFORD SEADEN LLP,"5,444.34",CAPITAL PS (HRA),CONSTRUCTION FEES  - EXTERNAL,5902513811,1061592
07.03.2022,HOUSING HRA,CALFORD SEADEN LLP,"5,588.86",CAPITAL PS (HRA),CONSTRUCTION FEES  - EXTERNAL,5902513800,1061592
07.03.2022,HOUSING HRA,CALFORD SEADEN LLP,"7,050.77",CAPITAL PS (HRA),CONSTRUCTION FEES  - EXTERNAL,5902513335,1061592
07.03.2022,HOUSING HRA,CALFORD SEADEN LLP,"7,720.52",CAPITAL PS (HRA),CONSTRUCTION FEES  - EXTERNAL,5902513737,1061592
07.03.2022,HOUSING HRA,CALFORD SEADEN LLP,"7,916.80",CAPITAL PS (HRA),CONSTRUCTION FEES  - EXTERNAL,5902513656,1061592
07.03.2022,HOUSING HRA,CALFORD SEADEN LLP,"8,685.75",CAPITAL PS (HRA),CONSTRUCTION FEES  - EXTERNAL,5902513666,1061592
07.03.2022,HOUSING HRA,CALFORD SEADEN LLP,"8,696.85",CAPITAL PS (HRA),CONSTRUCTION FEES  - EXTERNAL,5902513655,1061592
07.03.2022,HOUSING HRA,CALFORD SEADEN LLP,"9,073.47",CAPITAL PS (HRA),CONSTRUCTION FEES  - EXTERNAL,5902513647,1061592
07.03.2022,HOUSING HRA,CALFORD SEADEN LLP,"65,968.42",CAPITAL PS (HRA),CONSTRUCTION FEES  - EXTERNAL,5902513786,1061592
07.03.2022,HOUSING HRA,CALFORD SEADEN LLP,"77,836.50",CAPITAL PS (HRA),CONSTRUCTION FEES  - EXTERNAL,5902513644,1061592
07.03.2022,HOUSING HRA,CALFORD SEADEN LLP,"1,470.00",CAPITAL PS (HRA),CONSTRUCTION FEES - EMPLOYERS AGENT,5902513833,1061592
07.03.2022,HOUSING HRA,CALFORD SEADEN LLP,"2,940.00",CAPITAL PS (HRA),CONSTRUCTION FEES - EMPLOYERS AGENT,5902513834,1061592
07.03.2022,HOUSING HRA,ENGIE REGENERATION (APOLLO) LTD,"40,279.38",CAPITAL PS (HRA),CONSTRUCTION MAIN CONTRACT -CERTIFICATED,2103396147,4000449
07.03.2022,HOUSING HRA,A & E ELKINS LTD,"146,355.33",CAPITAL PS (HRA),CONSTRUCTION MAIN CONTRACT -CERTIFICATED,2103396632,4012501
07.03.2022,HOUSING HRA,SALTASH ENTERPRISES LTD,"210,768.77",CAPITAL PS (HRA),CONSTRUCTION MAIN CONTRACT -CERTIFICATED,2103396634,4013605
07.03.2022,HOUSING HRA,BSW HEATING LTD,"14,061.99",CAPITAL PS (HRA),CONSTRUCTION MAIN CONTRACT -CERTIFICATED,2103396633,3000000580
07.03.2022,HOUSING HRA,GEOFFREY OSBORNE LIMITED,"8,274.39",CAPITAL PS (HRA),CONSTRUCTION MAIN CONTRACT -CERTIFICATED,2103396638,3000000753
07.03.2022,HOUSING HRA,GEOFFREY OSBORNE LIMITED,"131,565.80",CAPITAL PS (HRA),CONSTRUCTION MAIN CONTRACT -CERTIFICATED,2103396637,3000000753
07.03.2022,HOUSING HRA,HEPHER GRINCELL LTD,"7,400.00",CAPITAL PS (HRA),PLANNING & S106 FEES,5902513320,1000086810
07.03.2022,HOUSING HRA,SILK & MACKMAN SERVICES LTD,253.52,CAPITAL PS (HRA),UTILITIES INSTALLATION,5902513028,1000035282
07.03.2022,HOUSING HRA,HOARE LEA LLP,"2,965.82",CAPITAL PS (REGEN),CONSTRUCTION FEES  - EXTERNAL,5902513671,1000056233
07.03.2022,HOUSING HRA,MAX FORDHAM LLP,"8,200.00",CAPITAL PS (REGEN),CONSTRUCTION FEES  - EXTERNAL,5902513392,1000082810
07.03.2022,HOUSING HRA,BLOOM PROCUREMENT SERVICES LTD,"20,842.50",CAPITAL PS (REGEN),CONSTRUCTION FEES - ENGINEER,5902512995,1000082531
07.03.2022,HOUSING HRA,BLOOM PROCUREMENT SERVICES LTD,"20,842.50",CAPITAL PS (REGEN),CONSTRUCTION FEES - ENGINEER,5902512995,1000082531
